Workbook

Sheet Main
B10: 2018-10-31
B12: Sheet No. | C12: Template Name | D12: Summary
B13: 1 | C13: Future Intra | D13: For Intraday trading in F&O segment
B14: 2 | C14: Cash Intra | D14: For Intraday trading in cash market segment
B15: 3 | C15: Mid-cap Intra | D15: For Intraday trading in Mid-cap stocks
B16: 4 | C16: Bulk Deals | D16: Reveals Bulk Deals carried on NSE & BSE
B17: 5 | C17: Call Tracker

Sheet Future Intra
M5: Back to Main Page
A6: FOR INTRA DAY TRADING | L6: =Main!B10 -> 2018-10-31
A9: Sr.no | B9: Sector | C9: Scrip | D9: CLOSE RATE | E9: Pivot Point | F9: Supports | I9: Resistances
B10: Sector | D10: Point | E10: Point | F10: S1 | G10: S2 | H10: S3 | I10: R1 | J10: R2 | K10: R3 | L10: HIGH | M10: LOW | N10: OI | O10: % Change in OI
A11: 1 | B11: Index | C11: BANKNIFTY | D11: 24912.90 | E11: 24964.75 | F11: 24715.50 | G11: 24518.10 | H11: 24268.85 | I11: 25162.15 | J11: 25411.40 | K11: 25608.80 | L11: 25214 | M11: 24767.35 | N11: 1623320 | O11: -4.98%
A12: 2 | B12: Index | C12: NIFTY | D12: 10229.25 | E12: 10246.52 | F12: 10178.03 | G12: 10126.82 | H12: 10058.33 | I12: 10297.73 | J12: 10366.22 | K12: 10417.43 | L12: 10315 | M12: 10195.3 | N12: 22753800 | O12: -1.12%
A13: 5 | B13: Index | C13: NIFTYIT | D13: 14406.00 | E13: 14322.00 | F13: 14164.00 | G13: 13922.00 | H13: 13764.00 | I13: 14564.00 | J13: 14722.00 | K13: 14964.00 | L13: 14480 | M13: 14080 | N13: 26800 | O13: -3.60%
A14: 6 | B14: Index | C14: NIFTYMID50 | D14: 4616.30 | E14: 1538.77 | F14: 3077.53 | G14: 1538.77 | H14: 3077.53 | I14: 3077.53 | J14: 1538.77 | K14: 3077.53 | L14: 0 | M14: 0 | N14: 725780 | O14: 0.00%
A15: 8 | B15: Cement | C15: ACC | D15: 1351.45 | E15: 1356.08 | F15: 1338.47 | G15: 1325.48 | H15: 1307.87 | I15: 1369.07 | J15: 1386.68 | K15: 1399.67 | L15: 1373.7 | M15: 1343.1 | N15: 897200 | O15: 3.51%
A16: 9 | B16: Others | C16: ADANIENT | D16: 169.75 | E16: 171.07 | F16: 167.23 | G16: 164.72 | H16: 160.88 | I16: 173.58 | J16: 177.42 | K16: 179.93 | L16: 174.9 | M16: 168.55 | N16: 34144000 | O16: -1.93%
A17: 10 | B17: Others | C17: ADANIPORTS | D17: 323.70 | E17: 326.90 | F17: 318.00 | G17: 312.30 | H17: 303.40 | I17: 332.60 | J17: 341.50 | K17: 347.20 | L17: 335.8 | M17: 321.2 | N17: 15057500 | O17: -0.68%
A18: 11 | B18: Power | C18: ADANIPOWER | D18: 45.45 | E18: 44.68 | F18: 43.02 | G18: 40.58 | H18: 38.92 | I18: 47.12 | J18: 48.78 | K18: 51.22 | L18: 46.35 | M18: 42.25 | N18: 154180000 | O18: -1.85%
A19: 12 | B19: Pharma | C19: AJANTPHARM | D19: 1002.90 | E19: 1011.82 | F19: 987.73 | G19: 972.57 | H19: 948.48 | I19: 1026.98 | J19: 1051.07 | K19: 1066.23 | L19: 1035.9 | M19: 996.65 | N19: 532500 | O19: 3.40%
A20: 13 | B20: Banking | C20: ALBK | D20: 42.00 | E20: 42.00 | F20: 40.30 | G20: 38.60 | H20: 36.90 | I20: 43.70 | J20: 45.40 | K20: 47.10 | L20: 43.7 | M20: 40.3 | N20: 13728000 | O20: -9.89%
A21: 14 | B21: Automobile | C21: AMARAJABAT | D21: 755.00 | E21: 757.87 | F21: 745.73 | G21: 736.47 | H21: 724.33 | I21: 767.13 | J21: 779.27 | K21: 788.53 | L21: 770 | M21: 748.6 | N21: 1207500 | O21: -3.04%
A22: 15 | B22: Cement | C22: AMBUJACEM | D22: 193.40 | E22: 194.57 | F22: 191.33 | G22: 189.27 | H22: 186.03 | I22: 196.63 | J22: 199.87 | K22: 201.93 | L22: 197.8 | M22: 192.5 | N22: 17602500 | O22: -1.57%
A23: 17 | B23: Others | C23: APOLLOHOSP | D23: 1169.85 | E23: 1160.92 | F23: 1144.88 | G23: 1119.92 | H23: 1103.88 | I23: 1185.88 | J23: 1201.92 | K23: 1226.88 | L23: 1176.95 | M23: 1135.95 | N23: 765000 | O23: -2.98%
A24: 18 | B24: Automobile | C24: APOLLOTYRE | D24: 216.15 | E24: 217.17 | F24: 213.78 | G24: 211.42 | H24: 208.03 | I24: 219.53 | J24: 222.92 | K24: 225.28 | L24: 220.55 | M24: 214.8 | N24: 7638000 | O24: 1.35%
A25: 19 | B25: Textile | C25: ARVIND | D25: 346.85 | E25: 342.42 | F25: 336.48 | G25: 326.12 | H25: 320.18 | I25: 352.78 | J25: 358.72 | K25: 369.08 | L25: 348.35 | M25: 332.05 | N25: 5190000 | O25: -4.88%
A26: 20 | B26: Automobile | C26: ASHOKLEY | D26: 115.50 | E26: 115.82 | F26: 114.23 | G26: 112.97 | H26: 111.38 | I26: 117.08 | J26: 118.67 | K26: 119.93 | L26: 117.4 | M26: 114.55 | N26: 50128000 | O26: 2.46%
A27: 21 | B27: FMCG | C27: ASIANPAINT | D27: 1201.95 | E27: 1199.17 | F27: 1185.83 | G27: 1169.72 | H27: 1156.38 | I27: 1215.28 | J27: 1228.62 | K27: 1244.73 | L27: 1212.5 | M27: 1183.05 | N27: 4706400 | O27: -1.51%
A28: 22 | B28: Pharma | C28: AUROPHARMA | D28: 770.75 | E28: 770.20 | F28: 762.40 | G28: 754.05 | H28: 746.25 | I28: 778.55 | J28: 786.35 | K28: 794.70 | L28: 778 | M28: 761.85 | N28: 18099000 | O28: -0.39%
A29: 23 | B29: Banking | C29: AXISBANK | D29: 563.90 | E29: 565.28 | F29: 557.82 | G29: 551.73 | H29: 544.27 | I29: 571.37 | J29: 578.83 | K29: 584.92 | L29: 572.75 | M29: 559.2 | N29: 35366400 | O29: -3.07%
A30: 24 | B30: Automobile | C30: BAJAJ-AUTO | D30: 2560.65 | E30: 2562.47 | F30: 2537.93 | G30: 2515.22 | H30: 2490.68 | I30: 2585.18 | J30: 2609.72 | K30: 2632.43 | L30: 2587 | M30: 2539.75 | N30: 2183750 | O30: -0.55%
A31: 25 | B31: Others | C31: BAJAJFINSV | D31: 5397.90 | E31: 5402.62 | F31: 5330.23 | G31: 5262.57 | H31: 5190.18 | I31: 5470.28 | J31: 5542.67 | K31: 5610.33 | L31: 5475 | M31: 5334.95 | N31: 693750 | O31: -2.92%
A32: 26 | B32: Finance | C32: BAJFINANCE | D32: 2364.80 | E32: 2384.95 | F32: 2339.90 | G32: 2315.00 | H32: 2269.95 | I32: 2409.85 | J32: 2454.90 | K32: 2479.80 | L32: 2430 | M32: 2360.05 | N32: 6617500 | O32: 0.55%
A33: 27 | B33: Others | C33: BALKRISIND | D33: 1069.55 | E33: 1081.50 | F33: 1050.05 | G33: 1030.55 | H33: 999.10 | I33: 1101.00 | J33: 1132.45 | K33: 1151.95 | L33: 1112.95 | M33: 1062 | N33: 1586400 | O33: 5.09%
A34: 29 | B34: Banking | C34: BANKBARODA | D34: 110.60 | E34: 110.27 | F34: 106.63 | G34: 102.67 | H34: 99.03 | I34: 114.23 | J34: 117.87 | K34: 121.83 | L34: 113.9 | M34: 106.3 | N34: 78484000 | O34: 1.61%
A35: 30 | B35: Banking | C35: BANKINDIA | D35: 84.95 | E35: 84.70 | F35: 80.85 | G35: 76.75 | H35: 72.90 | I35: 88.80 | J35: 92.65 | K35: 96.75 | L35: 88.55 | M35: 80.6 | N35: 18900000 | O35: -0.41%
A36: 31 | B36: FMCG | C36: BATAINDIA | D36: 942.65 | E36: 942.02 | F36: 926.93 | G36: 911.22 | H36: 896.13 | I36: 957.73 | J36: 972.82 | K36: 988.53 | L36: 957.1 | M36: 926.3 | N36: 1640650 | O36: 1.36%
A37: 32 | B37: Capital_Goods | C37: BEL | D37: 89.70 | E37: 89.20 | F37: 87.25 | G37: 84.80 | H37: 82.85 | I37: 91.65 | J37: 93.60 | K37: 96.05 | L37: 91.15 | M37: 86.75 | N37: 24831600 | O37: -8.09%
A38: 33 | B38: Infrastructure | C38: BEML | D38: 588.10 | E38: 581.77 | F38: 565.53 | G38: 542.97 | H38: 526.73 | I38: 604.33 | J38: 620.57 | K38: 643.13 | L38: 598 | M38: 559.2 | N38: 1749000 | O38: 3.03%
A39: 34 | B39: Others | C39: BERGEPAINT | D39: 284.85 | E39: 284.53 | F39: 281.82 | G39: 278.78 | H39: 276.07 | I39: 287.57 | J39: 290.28 | K39: 293.32 | L39: 287.25 | M39: 281.5 | N39: 2217600 | O39: -2.51%
A40: 35 | B40: Finance | C40: BHARATFIN | D40: 840.85 | E40: 845.63 | F40: 828.22 | G40: 815.58 | H40: 798.17 | I40: 858.27 | J40: 875.68 | K40: 888.32 | L40: 863.05 | M40: 833 | N40: 8146500 | O40: 0.74%
A41: 36 | B41: Automobile | C41: BHARATFORG | D41: 570.85 | E41: 567.17 | F41: 558.93 | G41: 547.02 | H41: 538.78 | I41: 579.08 | J41: 587.32 | K41: 599.23 | L41: 575.4 | M41: 555.25 | N41: 7107600 | O41: -1.50%
A42: 37 | B42: Telecom | C42: BHARTIARTL | D42: 290.45 | E42: 291.22 | F42: 286.88 | G42: 283.32 | H42: 278.98 | I42: 294.78 | J42: 299.12 | K42: 302.68 | L42: 295.55 | M42: 287.65 | N42: 45772500 | O42: 0.32%
A43: 38 | B43: Capital_Goods | C43: BHEL | D43: 67.50 | E43: 67.27 | F43: 66.28 | G43: 65.07 | H43: 64.08 | I43: 68.48 | J43: 69.47 | K43: 70.68 | L43: 68.25 | M43: 66.05 | N43: 49207500 | O43: 2.84%
A44: 39 | B44: Pharma | C44: BIOCON | D44: 641.90 | E44: 637.20 | F44: 627.90 | G44: 613.90 | H44: 604.60 | I44: 651.20 | J44: 660.50 | K44: 674.50 | L44: 646.5 | M44: 623.2 | N44: 5908500 | O44: -2.60%
A45: 40 | B45: Automobile | C45: BOSCHLTD | D45: 19815.45 | E45: 19496.82 | F45: 19070.63 | G45: 18325.82 | H45: 17899.63 | I45: 20241.63 | J45: 20667.82 | K45: 21412.63 | L45: 19923 | M45: 18752 | N45: 133860 | O45: 4.33%
A46: 41 | B46: Oil_Gas | C46: BPCL | D46: 267.60 | E46: 269.18 | F46: 263.97 | G46: 260.33 | H46: 255.12 | I46: 272.82 | J46: 278.03 | K46: 281.67 | L46: 274.4 | M46: 265.55 | N46: 13460400 | O46: -3.62%
A47: 42 | B47: FMCG | C47: BRITANNIA | D47: 5463.55 | E47: 5448.00 | F47: 5408.00 | G47: 5352.45 | H47: 5312.45 | I47: 5503.55 | J47: 5543.55 | K47: 5599.10 | L47: 5488 | M47: 5392.45 | N47: 1403700 | O47: 2.68%
A48: 43 | B48: Pharma | C48: CADILAHC | D48: 349.10 | E48: 351.77 | F48: 345.13 | G48: 341.17 | H48: 334.53 | I48: 355.73 | J48: 362.37 | K48: 366.33 | L48: 358.4 | M48: 347.8 | N48: 8377600 | O48: -0.83%
A49: 44 | B49: Banking | C49: CANBK | D49: 256.35 | E49: 252.58 | F49: 240.92 | G49: 225.48 | H49: 213.82 | I49: 268.02 | J49: 279.68 | K49: 295.12 | L49: 264.25 | M49: 237.15 | N49: 8590000 | O49: -15.20%
A50: 45 | B50: Others | C50: CANFINHOME | D50: 266.70 | E50: 268.63 | F50: 262.27 | G50: 257.83 | H50: 251.47 | I50: 273.07 | J50: 279.43 | K50: 283.87 | L50: 275 | M50: 264.2 | N50: 3588750 | O50: -5.15%
A51: 46 | B51: Finance | C51: CAPF | D51: 468.55 | E51: 469.70 | F51: 462.95 | G51: 457.35 | H51: 450.60 | I51: 475.30 | J51: 482.05 | K51: 487.65 | L51: 476.45 | M51: 464.1 | N51: 6025600 | O51: 1.30%
A52: 47 | B52: Oil_Gas | C52: CASTROLIND | D52: 147.30 | E52: 147.37 | F52: 145.53 | G52: 143.77 | H52: 141.93 | I52: 149.13 | J52: 150.97 | K52: 152.73 | L52: 149.2 | M52: 145.6 | N52: 7260400 | O52: -2.08%
A53: 48 | B53: Automobile | C53: CEATLTD | D53: 1132.80 | E53: 1139.50 | F53: 1120.85 | G53: 1108.90 | H53: 1090.25 | I53: 1151.45 | J53: 1170.10 | K53: 1182.05 | L53: 1158.15 | M53: 1127.55 | N53: 830250 | O53: -7.13%
A54: 49 | B54: Textile | C54: CENTURYTEX | D54: 813.50 | E54: 814.43 | F54: 801.37 | G54: 789.23 | H54: 776.17 | I54: 826.57 | J54: 839.63 | K54: 851.77 | L54: 827.5 | M54: 802.3 | N54: 5804150 | O54: -0.35%
A55: 50 | B55: Power | C55: CESC | D55: 717.60 | E55: 695.28 | F55: 668.57 | G55: 619.53 | H55: 592.82 | I55: 744.32 | J55: 771.03 | K55: 820.07 | L55: 722 | M55: 646.25 | N55: 1216050 | O55: -35.63%
A56: 51 | B56: Power | C56: CGPOWER | D56: 35.50 | E56: 35.78 | F56: 34.87 | G56: 34.23 | H56: 33.32 | I56: 36.42 | J56: 37.33 | K56: 37.97 | L56: 36.7 | M56: 35.15 | N56: 37332000 | O56: 4.47%
A57: 52 | B57: Others | C57: CHENNPETRO | D57: 252.75 | E57: 253.30 | F57: 244.50 | G57: 236.25 | H57: 227.45 | I57: 261.55 | J57: 270.35 | K57: 278.60 | L57: 262.1 | M57: 245.05 | N57: 1098000 | O57: -0.95%
A58: 53 | B58: Others | C58: CHOLAFIN | D58: 1243.25 | E58: 1254.42 | F58: 1223.83 | G58: 1204.42 | H58: 1173.83 | I58: 1273.83 | J58: 1304.42 | K58: 1323.83 | L58: 1285 | M58: 1235 | N58: 506500 | O58: -9.96%
A59: 54 | B59: Pharma | C59: CIPLA | D59: 612.75 | E59: 620.05 | F59: 602.00 | G59: 591.25 | H59: 573.20 | I59: 630.80 | J59: 648.85 | K59: 659.60 | L59: 638.1 | M59: 609.3 | N59: 8841000 | O59: -0.51%
A60: 55 | B60: Others | C60: COALINDIA | D60: 276.10 | E60: 279.03 | F60: 272.12 | G60: 268.13 | H60: 261.22 | I60: 283.02 | J60: 289.93 | K60: 293.92 | L60: 285.95 | M60: 275.05 | N60: 13281400 | O60: -9.44%
A61: 56 | B61: FMCG | C61: COLPAL | D61: 1093.75 | E61: 1101.90 | F61: 1079.80 | G61: 1065.85 | H61: 1043.75 | I61: 1115.85 | J61: 1137.95 | K61: 1151.90 | L61: 1124 | M61: 1087.95 | N61: 1708000 | O61: 4.77%
A62: 57 | B62: Others | C62: CONCOR | D62: 626.15 | E62: 625.40 | F62: 616.10 | G62: 606.05 | H62: 596.75 | I62: 635.45 | J62: 644.75 | K62: 654.80 | L62: 634.7 | M62: 615.35 | N62: 2547500 | O62: 3.61%
A63: 58 | B63: Capital_Goods | C63: CUMMINSIND | D63: 677.55 | E63: 677.40 | F63: 665.80 | G63: 654.05 | H63: 642.45 | I63: 689.15 | J63: 700.75 | K63: 712.50 | L63: 689 | M63: 665.65 | N63: 803600 | O63: 11.78%
A64: 59 | B64: FMCG | C64: DABUR | D64: 395.05 | E64: 396.25 | F64: 386.00 | G64: 376.95 | H64: 366.70 | I64: 405.30 | J64: 415.55 | K64: 424.60 | L64: 406.5 | M64: 387.2 | N64: 14438750 | O64: -5.37%
A65: 60 | B65: Cement | C65: DALMIABHA | D65: 2073.10 | E65: 2057.80 | F65: 2023.30 | G65: 1973.50 | H65: 1939.00 | I65: 2107.60 | J65: 2142.10 | K65: 2191.90 | L65: 2092.3 | M65: 2008 | N65: 438300 | O65: 14.23%
A66: 61 | B66: Banking | C66: DCBBANK | D66: 159.70 | E66: 161.85 | F66: 155.70 | G66: 151.70 | H66: 145.55 | I66: 165.85 | J66: 172.00 | K66: 176.00 | L66: 168 | M66: 157.85 | N66: 4441500 | O66: 5.00%
A67: 62 | B67: Finance | C67: DHFL | D67: 207.60 | E67: 201.08 | F67: 187.52 | G67: 167.43 | H67: 153.87 | I67: 221.17 | J67: 234.73 | K67: 254.82 | L67: 214.65 | M67: 181 | N67: 18714000 | O67: -9.91%
A68: 63 | B68: Media | C68: DISHTV | D68: 43.25 | E68: 43.25 | F68: 42.50 | G68: 41.75 | H68: 41.00 | I68: 44.00 | J68: 44.75 | K68: 45.50 | L68: 44 | M68: 42.5 | N68: 42904000 | O68: -2.21%
A69: 64 | B69: Pharma | C69: DIVISLAB | D69: 1492.75 | E69: 1481.90 | F69: 1454.85 | G69: 1416.95 | H69: 1389.90 | I69: 1519.80 | J69: 1546.85 | K69: 1584.75 | L69: 1508.95 | M69: 1444 | N69: 3286800 | O69: 4.13%
A70: 65 | B70: Realty | C70: DLF | D70: 162.20 | E70: 163.08 | F70: 158.87 | G70: 155.53 | H70: 151.32 | I70: 166.42 | J70: 170.63 | K70: 173.97 | L70: 167.3 | M70: 159.75 | N70: 25770300 | O70: -3.72%
A71: 66 | B71: Pharma | C71: DRREDDY | D71: 2595.70 | E71: 2576.83 | F71: 2540.37 | G71: 2485.03 | H71: 2448.57 | I71: 2632.17 | J71: 2668.63 | K71: 2723.97 | L71: 2613.3 | M71: 2521.5 | N71: 3924000 | O71: -1.76%
A72: 67 | B72: Automobile | C72: EICHERMOT | D72: 21139.60 | E72: 21262.48 | F72: 20925.12 | G72: 20710.63 | H72: 20373.27 | I72: 21476.97 | J72: 21814.33 | K72: 22028.82 | L72: 21599.85 | M72: 21048 | N72: 307675 | O72: 6.92%
A73: 68 | B73: Infrastructure | C73: ENGINERSIN | D73: 114.55 | E73: 115.57 | F73: 112.73 | G73: 110.92 | H73: 108.08 | I73: 117.38 | J73: 120.22 | K73: 122.03 | L73: 118.4 | M73: 113.75 | N73: 6492500 | O73: -1.38%
A74: 69 | B74: Finance | C74: EQUITAS | D74: 103.45 | E74: 102.15 | F74: 98.70 | G74: 93.95 | H74: 90.50 | I74: 106.90 | J74: 110.35 | K74: 115.10 | L74: 105.6 | M74: 97.4 | N74: 14364000 | O74: -4.60%
A75: 70 | B75: Automobile | C75: ESCORTS | D75: 607.00 | E75: 603.02 | F75: 595.23 | G75: 583.47 | H75: 575.68 | I75: 614.78 | J75: 622.57 | K75: 634.33 | L75: 610.8 | M75: 591.25 | N75: 4347200 | O75: 4.55%
A76: 71 | B76: Automobile | C76: EXIDEIND | D76: 260.85 | E76: 259.12 | F76: 254.83 | G76: 248.82 | H76: 244.53 | I76: 265.13 | J76: 269.42 | K76: 275.43 | L76: 263.4 | M76: 253.1 | N76: 5314000 | O76: -1.08%
A77: 72 | B77: Banking | C77: FEDERALBNK | D77: 83.35 | E77: 83.63 | F77: 81.32 | G77: 79.28 | H77: 76.97 | I77: 85.67 | J77: 87.98 | K77: 90.02 | L77: 85.95 | M77: 81.6 | N77: 45369500 | O77: 3.81%
A78: 73 | B78: Oil_Gas | C78: GAIL | D78: 359.60 | E78: 361.02 | F78: 353.33 | G78: 347.07 | H78: 339.38 | I78: 367.28 | J78: 374.97 | K78: 381.23 | L78: 368.7 | M78: 354.75 | N78: 19930491 | O78: -2.03%
A79: 74 | B79: Pharma | C79: GLENMARK | D79: 607.10 | E79: 608.42 | F79: 599.33 | G79: 591.57 | H79: 582.48 | I79: 616.18 | J79: 625.27 | K79: 633.03 | L79: 617.5 | M79: 600.65 | N79: 3897000 | O79: 1.19%
A80: 75 | B80: Infrastructure | C80: GMRINFRA | D80: 16.50 | E80: 16.43 | F80: 16.12 | G80: 15.73 | H80: 15.42 | I80: 16.82 | J80: 17.13 | K80: 17.52 | L80: 16.75 | M80: 16.05 | N80: 170685000 | O80: -0.91%
A81: 76 | B81: Others | C81: GODFRYPHLP | D81: 778.30 | E81: 777.78 | F81: 759.07 | G81: 739.83 | H81: 721.12 | I81: 797.02 | J81: 815.73 | K81: 834.97 | L81: 796.5 | M81: 758.55 | N81: 483700 | O81: 1.02%
A82: 77 | B82: FMCG | C82: GODREJCP | D82: 716.85 | E82: 714.55 | F82: 706.95 | G82: 697.05 | H82: 689.45 | I82: 724.45 | J82: 732.05 | K82: 741.95 | L82: 722.15 | M82: 704.65 | N82: 4237200 | O82: 0.63%
A83: 78 | B83: FMCG | C83: GODREJIND | D83: 463.65 | E83: 466.73 | F83: 456.47 | G83: 449.28 | H83: 439.02 | I83: 473.92 | J83: 484.18 | K83: 491.37 | L83: 477 | M83: 459.55 | N83: 2334000 | O83: -0.70%
A84: 79 | B84: Pharma | C84: GRANULES | D84: 97.10 | E84: 98.72 | F84: 93.98 | G84: 90.87 | H84: 86.13 | I84: 101.83 | J84: 106.57 | K84: 109.68 | L84: 103.45 | M84: 95.6 | N84: 13790000 | O84: -8.31%
A85: 80 | B85: Cement | C85: GRASIM | D85: 807.45 | E85: 803.10 | F85: 792.35 | G85: 777.25 | H85: 766.50 | I85: 818.20 | J85: 828.95 | K85: 844.05 | L85: 813.85 | M85: 788 | N85: 8001750 | O85: 3.33%
A86: 81 | B86: Others | C86: GSFC | D86: 103.30 | E86: 103.07 | F86: 100.73 | G86: 98.17 | H86: 95.83 | I86: 105.63 | J86: 107.97 | K86: 110.53 | L86: 105.4 | M86: 100.5 | N86: 14427200 | O86: 3.39%
A87: 82 | B87: Others | C87: HAVELLS | D87: 634.60 | E87: 632.02 | F87: 625.08 | G87: 615.57 | H87: 608.63 | I87: 641.53 | J87: 648.47 | K87: 657.98 | L87: 638.95 | M87: 622.5 | N87: 4706000 | O87: 3.61%
A88: 83 | B88: Others | C88: HCC | D88: 12.20 | E88: 12.30 | F88: 12.00 | G88: 11.80 | H88: 11.50 | I88: 12.50 | J88: 12.80 | K88: 13.00 | L88: 12.6 | M88: 12.1 | N88: 29304000 | O88: -0.43%
A89: 84 | B89: Technology | C89: HCLTECH | D89: 1008.90 | E89: 1002.97 | F89: 986.43 | G89: 963.97 | H89: 947.43 | I89: 1025.43 | J89: 1041.97 | K89: 1064.43 | L89: 1019.5 | M89: 980.5 | N89: 7443100 | O89: 1.63%
A90: 85 | B90: Finance | C90: HDFC | D90: 1679.50 | E90: 1689.40 | F90: 1661.00 | G90: 1642.50 | H90: 1614.10 | I90: 1707.90 | J90: 1736.30 | K90: 1754.80 | L90: 1717.8 | M90: 1670.9 | N90: 24628000 | O90: 1.12%
A91: 86 | B91: Banking | C91: HDFCBANK | D91: 1921.05 | E91: 1923.42 | F91: 1905.98 | G91: 1890.92 | H91: 1873.48 | I91: 1938.48 | J91: 1955.92 | K91: 1970.98 | L91: 1940.85 | M91: 1908.35 | N91: 12846250 | O91: 2.17%
A92: 88 | B92: Automobile | C92: HEROMOTOCO | D92: 2774.15 | E92: 2778.62 | F92: 2741.08 | G92: 2708.02 | H92: 2670.48 | I92: 2811.68 | J92: 2849.22 | K92: 2882.28 | L92: 2816.15 | M92: 2745.55 | N92: 1392600 | O92: -1.67%
A93: 89 | B93: Technology | C93: HEXAWARE | D93: 324.25 | E93: 321.82 | F93: 316.13 | G93: 308.02 | H93: 302.33 | I93: 329.93 | J93: 335.62 | K93: 343.73 | L93: 327.5 | M93: 313.7 | N93: 6198000 | O93: 0.81%
A94: 90 | B94: Metals | C94: HINDALCO | D94: 224.25 | E94: 225.17 | F94: 221.33 | G94: 218.42 | H94: 214.58 | I94: 228.08 | J94: 231.92 | K94: 234.83 | L94: 229 | M94: 222.25 | N94: 31132500 | O94: -1.09%
A95: 91 | B95: Oil_Gas | C95: HINDPETRO | D95: 220.70 | E95: 222.62 | F95: 216.48 | G95: 212.27 | H95: 206.13 | I95: 226.83 | J95: 232.97 | K95: 237.18 | L95: 228.75 | M95: 218.4 | N95: 20585250 | O95: -1.05%
A96: 92 | B96: FMCG | C96: HINDUNILVR | D96: 1593.75 | E96: 1582.00 | F96: 1559.20 | G96: 1524.65 | H96: 1501.85 | I96: 1616.55 | J96: 1639.35 | K96: 1673.90 | L96: 1604.8 | M96: 1547.45 | N96: 8038200 | O96: 1.82%
A97: 93 | B97: Metals | C97: HINDZINC | D97: 278.30 | E97: 277.72 | F97: 275.58 | G97: 272.87 | H97: 270.73 | I97: 280.43 | J97: 282.57 | K97: 285.28 | L97: 279.85 | M97: 275 | N97: 7715200 | O97: 7.39%
A98: 94 | B98: Finance | C98: IBULHSGFIN | D98: 772.50 | E98: 779.10 | F98: 750.40 | G98: 728.30 | H98: 699.60 | I98: 801.20 | J98: 829.90 | K98: 852.00 | L98: 807.8 | M98: 757 | N98: 17417000 | O98: -0.93%
A99: 95 | B99: Banking | C99: ICICIBANK | D99: 347.40 | E99: 348.87 | F99: 343.08 | G99: 338.77 | H99: 332.98 | I99: 353.18 | J99: 358.97 | K99: 363.28 | L99: 354.65 | M99: 344.55 | N99: 107324250 | O99: 2.48%
A100: 96 | B100: Others | C100: ICICIPRULI | D100: 324.20 | E100: 326.93 | F100: 317.57 | G100: 310.93 | H100: 301.57 | I100: 333.57 | J100: 342.93 | K100: 349.57 | L100: 336.3 | M100: 320.3 | N100: 3916900 | O100: -0.13%
A101: 97 | B101: Banking | C101: IDBI | D101: 59.95 | E101: 60.17 | F101: 59.18 | G101: 58.42 | H101: 57.43 | I101: 60.93 | J101: 61.92 | K101: 62.68 | L101: 61.15 | M101: 59.4 | N101: 39140000 | O101: 0.51%
A102: 98 | B102: Telecom | C102: IDEA | D102: 39.15 | E102: 38.72 | F102: 37.98 | G102: 36.82 | H102: 36.08 | I102: 39.88 | J102: 40.62 | K102: 41.78 | L102: 39.45 | M102: 37.55 | N102: 137646000 | O102: 1.20%
A103: 99 | B103: Finance | C103: IDFC | D103: 36.20 | E103: 36.33 | F103: 35.77 | G103: 35.33 | H103: 34.77 | I103: 36.77 | J103: 37.33 | K103: 37.77 | L103: 36.9 | M103: 35.9 | N103: 108834000 | O103: -0.37%
A104: 100 | B104: Banking | C104: IDFCBANK | D104: 34.70 | E104: 34.77 | F104: 34.28 | G104: 33.87 | H104: 33.38 | I104: 35.18 | J104: 35.67 | K104: 36.08 | L104: 35.25 | M104: 34.35 | N104: 116483000 | O104: -0.77%
A105: 101 | B105: Finance | C105: IFCI | D105: 13.70 | E105: 13.72 | F105: 13.38 | G105: 13.07 | H105: 12.73 | I105: 14.03 | J105: 14.37 | K105: 14.68 | L105: 14.05 | M105: 13.4 | N105: 53910000 | O105: -1.01%
A106: 102 | B106: Oil_Gas | C106: IGL | D106: 253.35 | E106: 254.05 | F106: 250.30 | G106: 247.25 | H106: 243.50 | I106: 257.10 | J106: 260.85 | K106: 263.90 | L106: 257.8 | M106: 251 | N106: 2367750 | O106: 4.49%
A107: 103 | B107: Cement | C107: INDIACEM | D107: 88.70 | E107: 87.92 | F107: 86.13 | G107: 83.57 | H107: 81.78 | I107: 90.48 | J107: 92.27 | K107: 94.83 | L107: 89.7 | M107: 85.35 | N107: 17371500 | O107: -3.10%
A108: 104 | B108: Banking | C108: INDIANB | D108: 256.80 | E108: 254.02 | F108: 242.78 | G108: 228.77 | H108: 217.53 | I108: 268.03 | J108: 279.27 | K108: 293.28 | L108: 265.25 | M108: 240 | N108: 4288000 | O108: -9.54%
A109: 105 | B109: Others | C109: INDIGO | D109: 885.65 | E109: 887.23 | F109: 870.97 | G109: 856.28 | H109: 840.02 | I109: 901.92 | J109: 918.18 | K109: 932.87 | L109: 903.5 | M109: 872.55 | N109: 3926400 | O109: -2.88%
A110: 106 | B110: Banking | C110: INDUSINDBK | D110: 1370.75 | E110: 1381.27 | F110: 1344.33 | G110: 1317.92 | H110: 1280.98 | I110: 1407.68 | J110: 1444.62 | K110: 1471.03 | L110: 1418.2 | M110: 1354.85 | N110: 7793700 | O110: 9.68%
A111: 107 | B111: Technology | C111: INFIBEAM | D111: 31.00 | E111: 30.80 | F111: 28.55 | G111: 26.10 | H111: 23.85 | I111: 33.25 | J111: 35.50 | K111: 37.95 | L111: 33.05 | M111: 28.35 | N111: 14980000 | O111: 5.37%
A112: 108 | B112: Telecom | C112: INFRATEL | D112: 259.90 | E112: 259.58 | F112: 257.42 | G112: 254.93 | H112: 252.77 | I112: 262.07 | J112: 264.23 | K112: 266.72 | L112: 261.75 | M112: 257.1 | N112: 5817400 | O112: 3.60%
A113: 109 | B113: Technology | C113: INFY | D113: 661.85 | E113: 656.27 | F113: 646.63 | G113: 631.42 | H113: 621.78 | I113: 671.48 | J113: 681.12 | K113: 696.33 | L113: 665.9 | M113: 641.05 | N113: 34393200 | O113: 1.78%
A114: 110 | B114: Oil_Gas | C114: IOC | D114: 136.75 | E114: 137.80 | F114: 134.95 | G114: 133.15 | H114: 130.30 | I114: 139.60 | J114: 142.45 | K114: 144.25 | L114: 140.65 | M114: 136 | N114: 29053500 | O114: -0.45%
A115: 111 | B115: Infrastructure | C115: IRB | D115: 126.60 | E115: 127.30 | F115: 124.55 | G115: 122.50 | H115: 119.75 | I115: 129.35 | J115: 132.10 | K115: 134.15 | L115: 130.05 | M115: 125.25 | N115: 12330000 | O115: -0.44%
A116: 112 | B116: FMCG | C116: ITC | D116: 280.25 | E116: 281.40 | F116: 278.25 | G116: 276.25 | H116: 273.10 | I116: 283.40 | J116: 286.55 | K116: 288.55 | L116: 284.55 | M116: 279.4 | N116: 62743200 | O116: 2.28%
A117: 113 | B117: Others | C117: JETAIRWAYS | D117: 237.05 | E117: 232.10 | F117: 222.25 | G117: 207.45 | H117: 197.60 | I117: 246.90 | J117: 256.75 | K117: 271.55 | L117: 241.95 | M117: 217.3 | N117: 5855600 | O117: 0.49%
A118: 114 | B118: Metals | C118: JINDALSTEL | D118: 170.40 | E118: 171.65 | F118: 166.90 | G118: 163.40 | H118: 158.65 | I118: 175.15 | J118: 179.90 | K118: 183.40 | L118: 176.4 | M118: 168.15 | N118: 23928750 | O118: -1.64%
A119: 115 | B119: Others | C119: JISLJALEQS | D119: 70.45 | E119: 70.78 | F119: 68.82 | G119: 67.18 | H119: 65.22 | I119: 72.42 | J119: 74.38 | K119: 76.02 | L119: 72.75 | M119: 69.15 | N119: 32670000 | O119: -0.38%
A120: 116 | B120: Realty | C120: JPASSOCIAT | D120: 6.25 | E120: 6.27 | F120: 6.03 | G120: 5.82 | H120: 5.58 | I120: 6.48 | J120: 6.72 | K120: 6.93 | L120: 6.5 | M120: 6.05 | N120: 111826000 | O120: -0.24%
A121: 117 | B121: Metals | C121: JSWSTEEL | D121: 337.50 | E121: 338.72 | F121: 334.08 | G121: 330.67 | H121: 326.03 | I121: 342.13 | J121: 346.77 | K121: 350.18 | L121: 343.35 | M121: 335.3 | N121: 48297000 | O121: 0.31%
A122: 118 | B122: Others | C122: JUBLFOOD | D122: 1063.25 | E122: 1068.53 | F122: 1043.12 | G122: 1022.98 | H122: 997.57 | I122: 1088.67 | J122: 1114.08 | K122: 1134.22 | L122: 1093.95 | M122: 1048.4 | N122: 2979000 | O122: 1.59%
A123: 119 | B123: Others | C123: JUSTDIAL | D123: 508.45 | E123: 498.65 | F123: 479.35 | G123: 450.25 | H123: 430.95 | I123: 527.75 | J123: 547.05 | K123: 576.15 | L123: 517.95 | M123: 469.55 | N123: 2419200 | O123: 17.15%
A124: 120 | B124: Others | C124: KAJARIACER | D124: 388.20 | E124: 389.58 | F124: 376.17 | G124: 364.13 | H124: 350.72 | I124: 401.62 | J124: 415.03 | K124: 427.07 | L124: 403 | M124: 377.55 | N124: 2156000 | O124: 0.84%
A125: 121 | B125: Banking | C125: KOTAKBANK | D125: 1128.05 | E125: 1133.10 | F125: 1114.00 | G125: 1099.95 | H125: 1080.85 | I125: 1147.15 | J125: 1166.25 | K125: 1180.30 | L125: 1152.2 | M125: 1119.05 | N125: 10924000 | O125: 4.88%
A126: 122 | B126: Technology | C126: KPIT | D126: 215.65 | E126: 217.93 | F126: 211.42 | G126: 207.18 | H126: 200.67 | I126: 222.17 | J126: 228.68 | K126: 232.92 | L126: 224.45 | M126: 213.7 | N126: 7787250 | O126: -4.84%
A127: 123 | B127: Others | C127: KSCL | D127: 482.30 | E127: 484.28 | F127: 472.32 | G127: 462.33 | H127: 450.37 | I127: 494.27 | J127: 506.23 | K127: 516.22 | L127: 496.25 | M127: 474.3 | N127: 799500 | O127: -0.19%
A128: 124 | B128: Banking | C128: KTKBANK | D128: 102.75 | E128: 102.57 | F128: 98.83 | G128: 94.92 | H128: 91.18 | I128: 106.48 | J128: 110.22 | K128: 114.13 | L128: 106.3 | M128: 98.65 | N128: 15295900 | O128: -5.16%
A129: 125 | B129: Finance | C129: L&TFH | D129: 123.95 | E129: 123.98 | F129: 121.47 | G129: 118.98 | H129: 116.47 | I129: 126.47 | J129: 128.98 | K129: 131.47 | L129: 126.5 | M129: 121.5 | N129: 27855000 | O129: -3.46%
A130: 126 | B130: Finance | C130: LICHSGFIN | D130: 407.50 | E130: 413.48 | F130: 398.27 | G130: 389.03 | H130: 373.82 | I130: 422.72 | J130: 437.93 | K130: 447.17 | L130: 428.7 | M130: 404.25 | N130: 10937300 | O130: 5.70%
A131: 127 | B131: Capital_Goods | C131: LT | D131: 1271.45 | E131: 1268.23 | F131: 1256.47 | G131: 1241.48 | H131: 1229.72 | I131: 1283.22 | J131: 1294.98 | K131: 1309.97 | L131: 1280 | M131: 1253.25 | N131: 10505625 | O131: 0.42%
A132: 128 | B132: Pharma | C132: LUPIN | D132: 880.00 | E132: 880.17 | F132: 870.53 | G132: 861.07 | H132: 851.43 | I132: 889.63 | J132: 899.27 | K132: 908.73 | L132: 889.8 | M132: 870.7 | N132: 8251600 | O132: -0.37%
A133: 129 | B133: Automobile | C133: M&M | D133: 748.05 | E133: 749.83 | F133: 737.17 | G133: 726.28 | H133: 713.62 | I133: 760.72 | J133: 773.38 | K133: 784.27 | L133: 762.5 | M133: 738.95 | N133: 16339000 | O133: -2.58%
A134: 130 | B134: Finance | C134: M&MFIN | D134: 397.00 | E134: 399.33 | F134: 392.12 | G134: 387.23 | H134: 380.02 | I134: 404.22 | J134: 411.43 | K134: 416.32 | L134: 406.55 | M134: 394.45 | N134: 9903750 | O134: -1.93%
A135: 131 | B135: Others | C135: MANAPPURAM | D135: 75.75 | E135: 75.60 | F135: 74.80 | G135: 73.85 | H135: 73.05 | I135: 76.55 | J135: 77.35 | K135: 78.30 | L135: 76.4 | M135: 74.65 | N135: 14352000 | O135: -2.01%
A136: 132 | B136: FMCG | C136: MARICO | D136: 312.35 | E136: 309.78 | F136: 305.77 | G136: 299.18 | H136: 295.17 | I136: 316.37 | J136: 320.38 | K136: 326.97 | L136: 313.8 | M136: 303.2 | N136: 6351800 | O136: 1.16%
A137: 133 | B137: Automobile | C137: MARUTI | D137: 6704.65 | E137: 6763.55 | F137: 6627.10 | G137: 6549.55 | H137: 6413.10 | I137: 6841.10 | J137: 6977.55 | K137: 7055.10 | L137: 6900 | M137: 6686 | N137: 2828400 | O137: 0.89%
A138: 134 | B138: FMCG | C138: MCDOWELL-N | D138: 562.35 | E138: 554.08 | F138: 542.27 | G138: 522.18 | H138: 510.37 | I138: 574.17 | J138: 585.98 | K138: 606.07 | L138: 565.9 | M138: 534 | N138: 11477500 | O138: -2.95%
A139: 135 | B139: Others | C139: MCX | D139: 715.00 | E139: 717.47 | F139: 707.23 | G139: 699.47 | H139: 689.23 | I139: 725.23 | J139: 735.47 | K139: 743.23 | L139: 727.7 | M139: 709.7 | N139: 3695300 | O139: 1.09%
A140: 136 | B140: Finance | C140: MFSL | D140: 368.90 | E140: 372.65 | F140: 361.80 | G140: 354.70 | H140: 343.85 | I140: 379.75 | J140: 390.60 | K140: 397.70 | L140: 383.5 | M140: 365.55 | N140: 2155200 | O140: 0.73%
A141: 137 | B141: Others | C141: MGL | D141: 819.85 | E141: 827.27 | F141: 807.53 | G141: 795.22 | H141: 775.48 | I141: 839.58 | J141: 859.32 | K141: 871.63 | L141: 847 | M141: 814.95 | N141: 1608600 | O141: -3.56%
A142: 138 | B142: Technology | C142: MINDTREE | D142: 790.25 | E142: 786.53 | F142: 776.07 | G142: 761.88 | H142: 751.42 | I142: 800.72 | J142: 811.18 | K142: 825.37 | L142: 797 | M142: 772.35 | N142: 4680600 | O142: 6.09%
A143: 139 | B143: Automobile | C143: MOTHERSUMI | D143: 162.40 | E143: 163.93 | F143: 153.97 | G143: 145.53 | H143: 135.57 | I143: 172.37 | J143: 182.33 | K143: 190.77 | L143: 173.9 | M143: 155.5 | N143: 24910500 | O143: 56.94%
A144: 140 | B144: Automobile | C144: MRF | D144: 64488.90 | E144: 64530.18 | F144: 63791.77 | G144: 63094.63 | H144: 62356.22 | I144: 65227.32 | J144: 65965.73 | K144: 66662.87 | L144: 65268.6 | M144: 63833.05 | N144: 21630 | O144: -3.00%
A145: 141 | B145: Others | C145: MRPL | D145: 80.75 | E145: 81.00 | F145: 79.60 | G145: 78.45 | H145: 77.05 | I145: 82.15 | J145: 83.55 | K145: 84.70 | L145: 82.4 | M145: 79.85 | N145: 4257000 | O145: -3.67%
A146: 142 | B146: Finance | C146: MUTHOOTFIN | D146: 398.35 | E146: 397.93 | F146: 391.87 | G146: 385.38 | H146: 379.32 | I146: 404.42 | J146: 410.48 | K146: 416.97 | L146: 404 | M146: 391.45 | N146: 1926000 | O146: -0.85%
A147: 143 | B147: Others | C147: NATIONALUM | D147: 69.50 | E147: 70.15 | F147: 68.30 | G147: 67.10 | H147: 65.25 | I147: 71.35 | J147: 73.20 | K147: 74.40 | L147: 72 | M147: 68.95 | N147: 32528000 | O147: 0.97%
A148: 144 | B148: Others | C148: NBCC | D148: 53.65 | E148: 53.82 | F148: 52.63 | G148: 51.62 | H148: 50.43 | I148: 54.83 | J148: 56.02 | K148: 57.03 | L148: 55 | M148: 52.8 | N148: 23594000 | O148: -1.99%
A149: 145 | B149: Infrastructure | C149: NCC | D149: 74.85 | E149: 74.32 | F149: 72.33 | G149: 69.82 | H149: 67.83 | I149: 76.83 | J149: 78.82 | K149: 81.33 | L149: 76.3 | M149: 71.8 | N149: 45936000 | O149: -2.97%
A150: 146 | B150: Others | C150: NESTLEIND | D150: 9730.55 | E150: 9721.43 | F150: 9654.12 | G150: 9577.68 | H150: 9510.37 | I150: 9797.87 | J150: 9865.18 | K150: 9941.62 | L150: 9788.75 | M150: 9645 | N150: 377600 | O150: -0.22%
A151: 147 | B151: Power | C151: NHPC | D151: 24.20 | E151: 24.15 | F151: 23.70 | G151: 23.20 | H151: 22.75 | I151: 24.65 | J151: 25.10 | K151: 25.60 | L151: 24.6 | M151: 23.65 | N151: 18819000 | O151: -0.57%
A152: 148 | B152: Technology | C152: NIITTECH | D152: 1216.85 | E152: 1227.03 | F152: 1195.12 | G152: 1173.38 | H152: 1141.47 | I152: 1248.77 | J152: 1280.68 | K152: 1302.42 | L152: 1258.95 | M152: 1205.3 | N152: 1458750 | O152: 6.23%
A153: 149 | B153: Metals | C153: NMDC | D153: 109.40 | E153: 109.55 | F153: 108.10 | G153: 106.80 | H153: 105.35 | I153: 110.85 | J153: 112.30 | K153: 113.60 | L153: 111 | M153: 108.25 | N153: 19080000 | O153: 0.19%
A154: 150 | B154: Power | C154: NTPC | D154: 159.45 | E154: 159.17 | F154: 157.58 | G154: 155.72 | H154: 154.13 | I154: 161.03 | J154: 162.62 | K154: 164.48 | L154: 160.75 | M154: 157.3 | N154: 31704000 | O154: 2.10%
A155: 151 | B155: Technology | C155: OFSS | D155: 3536.20 | E155: 3540.27 | F155: 3501.58 | G155: 3466.97 | H155: 3428.28 | I155: 3574.88 | J155: 3613.57 | K155: 3648.18 | L155: 3578.95 | M155: 3505.65 | N155: 213150 | O155: -1.73%
A156: 152 | B156: Oil_Gas | C156: OIL | D156: 195.75 | E156: 196.60 | F156: 194.35 | G156: 192.95 | H156: 190.70 | I156: 198.00 | J156: 200.25 | K156: 201.65 | L156: 198.85 | M156: 195.2 | N156: 2420088 | O156: 2.30%
A157: 153 | B157: Oil_Gas | C157: ONGC | D157: 153.45 | E157: 153.63 | F157: 152.22 | G157: 150.98 | H157: 149.57 | I157: 154.87 | J157: 156.28 | K157: 157.52 | L157: 155.05 | M157: 152.4 | N157: 38557500 | O157: 1.37%
A158: 154 | B158: Banking | C158: ORIENTBANK | D158: 77.40 | E158: 78.38 | F158: 73.57 | G158: 69.73 | H158: 64.92 | I158: 82.22 | J158: 87.03 | K158: 90.87 | L158: 83.2 | M158: 74.55 | N158: 10476000 | O158: -12.74%
A159: 155 | B159: Textile | C159: PAGEIND | D159: 29103.30 | E159: 29351.10 | F159: 28802.20 | G159: 28501.10 | H159: 27952.20 | I159: 29652.20 | J159: 30201.10 | K159: 30502.20 | L159: 29900 | M159: 29050 | N159: 105250 | O159: -3.42%
A160: 156 | B160: Others | C160: PCJEWELLER | D160: 54.50 | E160: 53.68 | F160: 51.27 | G160: 48.03 | H160: 45.62 | I160: 56.92 | J160: 59.33 | K160: 62.57 | L160: 56.1 | M160: 50.45 | N160: 9159000 | O160: -2.52%
A161: 157 | B161: Pharma | C161: PEL | D161: 2013.20 | E161: 2023.33 | F161: 1974.87 | G161: 1936.53 | H161: 1888.07 | I161: 2061.67 | J161: 2110.13 | K161: 2148.47 | L161: 2071.8 | M161: 1985 | N161: 3558164 | O161: 1.94%
A162: 158 | B162: Oil_Gas | C162: PETRONET | D162: 215.10 | E162: 216.13 | F162: 213.07 | G162: 211.03 | H162: 207.97 | I162: 218.17 | J162: 221.23 | K162: 223.27 | L162: 219.2 | M162: 214.1 | N162: 11100000 | O162: 1.54%
A163: 159 | B163: Finance | C163: PFC | D163: 91.70 | E163: 91.85 | F163: 89.95 | G163: 88.20 | H163: 86.30 | I163: 93.60 | J163: 95.50 | K163: 97.25 | L163: 93.75 | M163: 90.1 | N163: 32058200 | O163: -3.26%
A164: 160 | B164: FMCG | C164: PIDILITIND | D164: 938.50 | E164: 947.27 | F164: 921.58 | G164: 904.67 | H164: 878.98 | I164: 964.18 | J164: 989.87 | K164: 1006.78 | L164: 972.95 | M164: 930.35 | N164: 2962000 | O164: 3.55%
A165: 161 | B165: Banking | C165: PNB | D165: 72.80 | E165: 73.13 | F165: 70.67 | G165: 68.53 | H165: 66.07 | I165: 75.27 | J165: 77.73 | K165: 79.87 | L165: 75.6 | M165: 71 | N165: 103889000 | O165: -2.38%
A166: 162 | B166: Power | C166: POWERGRID | D166: 187.10 | E166: 188.10 | F166: 185.50 | G166: 183.90 | H166: 181.30 | I166: 189.70 | J166: 192.30 | K166: 193.90 | L166: 190.7 | M166: 186.5 | N166: 37452000 | O166: 1.07%
A167: 163 | B167: Power | C167: PTC | D167: 76.15 | E167: 77.12 | F167: 74.73 | G167: 73.32 | H167: 70.93 | I167: 78.53 | J167: 80.92 | K167: 82.33 | L167: 79.5 | M167: 75.7 | N167: 9520000 | O167: -2.06%
A168: 164 | B168: Others | C168: PVR | D168: 1342.65 | E168: 1342.23 | F168: 1324.42 | G168: 1306.18 | H168: 1288.37 | I168: 1360.47 | J168: 1378.28 | K168: 1396.52 | L168: 1360.05 | M168: 1324 | N168: 1188400 | O168: 0.20%
A169: 165 | B169: Cement | C169: RAMCOCEM | D169: 604.90 | E169: 592.25 | F169: 573.75 | G169: 542.60 | H169: 524.10 | I169: 623.40 | J169: 641.90 | K169: 673.05 | L169: 610.75 | M169: 561.1 | N169: 742400 | O169: -2.62%
A170: 166 | B170: Others | C170: RAYMOND | D170: 748.75 | E170: 747.70 | F170: 727.95 | G170: 707.15 | H170: 687.40 | I170: 768.50 | J170: 788.25 | K170: 809.05 | L170: 767.45 | M170: 726.9 | N170: 4183200 | O170: 0.17%
A171: 167 | B171: Banking | C171: RBLBANK | D171: 527.30 | E171: 526.63 | F171: 514.67 | G171: 502.03 | H171: 490.07 | I171: 539.27 | J171: 551.23 | K171: 563.87 | L171: 538.6 | M171: 514 | N171: 6608400 | O171: -4.67%
A172: 168 | B172: Telecom | C172: RCOM | D172: 11.70 | E172: 11.53 | F172: 11.02 | G172: 10.33 | H172: 9.82 | I172: 12.22 | J172: 12.73 | K172: 13.42 | L172: 12.05 | M172: 10.85 | N172: 80528000 | O172: -5.58%
A173: 169 | B173: Power | C173: RECLTD | D173: 112.15 | E173: 112.83 | F173: 110.47 | G173: 108.78 | H173: 106.42 | I173: 114.52 | J173: 116.88 | K173: 118.57 | L173: 115.2 | M173: 111.15 | N173: 34434000 | O173: -2.36%
A174: 170 | B174: Finance | C174: RELCAPITAL | D174: 236.75 | E174: 238.80 | F174: 231.60 | G174: 226.45 | H174: 219.25 | I174: 243.95 | J174: 251.15 | K174: 256.30 | L174: 246 | M174: 233.65 | N174: 11511000 | O174: -0.29%
A175: 171 | B175: Oil_Gas | C175: RELIANCE | D175: 1061.50 | E175: 1069.18 | F175: 1047.82 | G175: 1034.13 | H175: 1012.77 | I175: 1082.87 | J175: 1104.23 | K175: 1117.92 | L175: 1090.55 | M175: 1055.5 | N175: 46902000 | O175: 2.03%
A176: 172 | B176: Power | C176: RELINFRA | D176: 351.05 | E176: 351.38 | F176: 345.02 | G176: 338.98 | H176: 332.62 | I176: 357.42 | J176: 363.78 | K176: 369.82 | L176: 357.75 | M176: 345.35 | N176: 6280300 | O176: -0.94%
A177: 173 | B177: Others | C177: REPCOHOME | D177: 347.85 | E177: 348.30 | F177: 341.65 | G177: 335.45 | H177: 328.80 | I177: 354.50 | J177: 361.15 | K177: 367.35 | L177: 354.95 | M177: 342.1 | N177: 677700 | O177: -10.25%
A178: 174 | B178: Power | C178: RPOWER | D178: 29.90 | E178: 30.05 | F178: 29.35 | G178: 28.80 | H178: 28.10 | I178: 30.60 | J178: 31.30 | K178: 31.85 | L178: 30.75 | M178: 29.5 | N178: 41777000 | O178: -0.91%
A179: 175 | B179: Metals | C179: SAIL | D179: 65.65 | E179: 65.58 | F179: 64.82 | G179: 63.98 | H179: 63.22 | I179: 66.42 | J179: 67.18 | K179: 68.02 | L179: 66.35 | M179: 64.75 | N179: 67332000 | O179: -0.25%
A180: 176 | B180: Banking | C180: SBIN | D180: 273.85 | E180: 273.63 | F180: 267.47 | G180: 261.08 | H180: 254.92 | I180: 280.02 | J180: 286.18 | K180: 292.57 | L180: 279.8 | M180: 267.25 | N180: 93396000 | O180: -0.59%
A181: 177 | B181: Cement | C181: SHREECEM | D181: 13574.25 | E181: 13543.42 | F181: 13455.83 | G181: 13337.42 | H181: 13249.83 | I181: 13661.83 | J181: 13749.42 | K181: 13867.83 | L181: 13631 | M181: 13425 | N181: 116550 | O181: 0.09%
A182: 178 | B182: Capital_Goods | C182: SIEMENS | D182: 910.55 | E182: 901.62 | F182: 889.43 | G182: 868.32 | H182: 856.13 | I182: 922.73 | J182: 934.92 | K182: 956.03 | L182: 913.8 | M182: 880.5 | N182: 1066000 | O182: -5.20%
A183: 179 | B183: Banking | C183: SOUTHBANK | D183: 14.40 | E183: 14.40 | F183: 13.95 | G183: 13.50 | H183: 13.05 | I183: 14.85 | J183: 15.30 | K183: 15.75 | L183: 14.85 | M183: 13.95 | N183: 125670672 | O183: 1.53%
A184: 180 | B184: Others | C184: SREINFRA | D184: 32.10 | E184: 31.65 | F184: 30.75 | G184: 29.40 | H184: 28.50 | I184: 33.00 | J184: 33.90 | K184: 35.25 | L184: 32.55 | M184: 30.3 | N184: 11711000 | O184: -3.07%
A185: 181 | B185: Textile | C185: SRF | D185: 1873.70 | E185: 1871.63 | F185: 1853.77 | G185: 1833.83 | H185: 1815.97 | I185: 1891.57 | J185: 1909.43 | K185: 1929.37 | L185: 1889.5 | M185: 1851.7 | N185: 731000 | O185: 0.41%
A186: 182 | B186: Finance | C186: SRTRANSFIN | D186: 1119.45 | E186: 1107.43 | F186: 1083.27 | G186: 1047.08 | H186: 1022.92 | I186: 1143.62 | J186: 1167.78 | K186: 1203.97 | L186: 1131.6 | M186: 1071.25 | N186: 3673200 | O186: 1.01%
A187: 183 | B187: Pharma | C187: STAR | D187: 414.75 | E187: 416.42 | F187: 408.33 | G187: 401.92 | H187: 393.83 | I187: 422.83 | J187: 430.92 | K187: 437.33 | L187: 424.5 | M187: 410 | N187: 3676000 | O187: -1.08%
A188: 184 | B188: Pharma | C188: SUNPHARMA | D188: 563.35 | E188: 566.65 | F188: 556.90 | G188: 550.45 | H188: 540.70 | I188: 573.10 | J188: 582.85 | K188: 589.30 | L188: 576.4 | M188: 560.2 | N188: 29966200 | O188: 0.35%
A189: 185 | B189: Media | C189: SUNTV | D189: 652.05 | E189: 654.62 | F189: 639.43 | G189: 626.82 | H189: 611.63 | I189: 667.23 | J189: 682.42 | K189: 695.03 | L189: 669.8 | M189: 642 | N189: 6845000 | O189: 1.17%
A190: 186 | B190: Power | C190: SUZLON | D190: 6.30 | E190: 6.33 | F190: 6.22 | G190: 6.13 | H190: 6.02 | I190: 6.42 | J190: 6.53 | K190: 6.62 | L190: 6.45 | M190: 6.25 | N190: 284505000 | O190: 0.96%
A191: 187 | B191: Banking | C191: SYNDIBANK | D191: 35.10 | E191: 35.13 | F191: 33.32 | G191: 31.53 | H191: 29.72 | I191: 36.92 | J191: 38.73 | K191: 40.52 | L191: 36.95 | M191: 33.35 | N191: 25155000 | O191: 6.44%
A192: 188 | B192: Fertilisers | C192: TATACHEM | D192: 683.75 | E192: 683.63 | F192: 677.12 | G192: 670.48 | H192: 663.97 | I192: 690.27 | J192: 696.78 | K192: 703.42 | L192: 690.15 | M192: 677 | N192: 2290500 | O192: -0.07%
A193: 189 | B193: Telecom | C193: TATACOMM | D193: 471.05 | E193: 474.63 | F193: 461.47 | G193: 451.88 | H193: 438.72 | I193: 484.22 | J193: 497.38 | K193: 506.97 | L193: 487.8 | M193: 465.05 | N193: 2920000 | O193: 1.67%
A194: 190 | B194: Technology | C194: TATAELXSI | D194: 1012.10 | E194: 1007.72 | F194: 992.48 | G194: 972.87 | H194: 957.63 | I194: 1027.33 | J194: 1042.57 | K194: 1062.18 | L194: 1022.95 | M194: 988.1 | N194: 1387200 | O194: -5.38%
A195: 191 | B195: FMCG | C195: TATAGLOBAL | D195: 228.20 | E195: 225.93 | F195: 222.12 | G195: 216.03 | H195: 212.22 | I195: 232.02 | J195: 235.83 | K195: 241.92 | L195: 229.75 | M195: 219.85 | N195: 10109250 | O195: -1.94%
A196: 192 | B196: Automobile | C196: TATAMOTORS | D196: 177.35 | E196: 178.43 | F196: 174.97 | G196: 172.58 | H196: 169.12 | I196: 180.82 | J196: 184.28 | K196: 186.67 | L196: 181.9 | M196: 176.05 | N196: 66072000 | O196: -2.41%
A197: 193 | B197: Automobile | C197: TATAMTRDVR | D197: 97.05 | E197: 97.30 | F197: 95.75 | G197: 94.45 | H197: 92.90 | I197: 98.60 | J197: 100.15 | K197: 101.45 | L197: 98.85 | M197: 96 | N197: 26406200 | O197: -2.17%
A198: 194 | B198: Power | C198: TATAPOWER | D198: 78.05 | E198: 78.28 | F198: 76.77 | G198: 75.48 | H198: 73.97 | I198: 79.57 | J198: 81.08 | K198: 82.37 | L198: 79.8 | M198: 77 | N198: 50760000 | O198: 3.79%
A199: 195 | B199: Metals | C199: TATASTEEL | D199: 566.80 | E199: 570.18 | F199: 562.07 | G199: 557.33 | H199: 549.22 | I199: 574.92 | J199: 583.03 | K199: 587.77 | L199: 578.3 | M199: 565.45 | N199: 33437415 | O199: 2.01%
A200: 196 | B200: Technology | C200: TCS | D200: 1901.90 | E200: 1890.43 | F200: 1863.87 | G200: 1825.83 | H200: 1799.27 | I200: 1928.47 | J200: 1955.03 | K200: 1993.07 | L200: 1917 | M200: 1852.4 | N200: 9195750 | O200: 0.23%
A201: 197 | B201: Technology | C201: TECHM | D201: 686.10 | E201: 680.87 | F201: 667.73 | G201: 649.37 | H201: 636.23 | I201: 699.23 | J201: 712.37 | K201: 730.73 | L201: 694 | M201: 662.5 | N201: 14563200 | O201: 2.26%
A202: 198 | B202: FMCG | C202: TITAN | D202: 831.60 | E202: 833.07 | F202: 821.93 | G202: 812.27 | H202: 801.13 | I202: 842.73 | J202: 853.87 | K202: 863.53 | L202: 844.2 | M202: 823.4 | N202: 14142750 | O202: 0.36%
A203: 199 | B203: Pharma | C203: TORNTPHARM | D203: 1657.85 | E203: 1656.30 | F203: 1637.55 | G203: 1617.25 | H203: 1598.50 | I203: 1676.60 | J203: 1695.35 | K203: 1715.65 | L203: 1675.05 | M203: 1636 | N203: 460000 | O203: -4.47%
A204: 200 | B204: Power | C204: TORNTPOWER | D204: 228.45 | E204: 232.03 | F204: 223.72 | G204: 218.98 | H204: 210.67 | I204: 236.77 | J204: 245.08 | K204: 249.82 | L204: 240.35 | M204: 227.3 | N204: 2055000 | O204: -4.86%
A205: 201 | B205: Media | C205: TV18BRDCST | D205: 37.25 | E205: 37.47 | F205: 36.83 | G205: 36.42 | H205: 35.78 | I205: 37.88 | J205: 38.52 | K205: 38.93 | L205: 38.1 | M205: 37.05 | N205: 47115500 | O205: 0.11%
A206: 202 | B206: Automobile | C206: TVSMOTOR | D206: 537.90 | E206: 538.33 | F206: 531.97 | G206: 526.03 | H206: 519.67 | I206: 544.27 | J206: 550.63 | K206: 556.57 | L206: 544.7 | M206: 532.4 | N206: 8520000 | O206: 0.11%
... 30 more rows

Sheet Cash Intra
M5: Back to Main Page
A6: FOR INTRA DAY TRADING | K6: =Main!B10 -> 2018-10-31
A8: Sr.no | B8: Scrip | C8: CLOSE RATE | D8: Pivot Point | E8: Supports | H8: Resistances
C9: Point | E9: S1 | F9: S2 | G9: S3 | H9: R1 | I9: R2 | J9: R3 | K9: HIGH | L9: LOW | M9: Total Trade Quanity in Lakhs
A10: 1 | B10: Nifty 50 | C10: 10198.4 | D10: 10219.62 | E10: 10154.13 | F10: 10109.87 | G10: 10044.38 | H10: 10263.88 | I10: 10329.37 | J10: 10373.63 | K10: 10285.1 | L10: 10175.35
A11: 2 | B11: Nifty Bank | C11: 24807.75 | D11: 24872.03 | E11: 24622.57 | F11: 24437.38 | G11: 24187.92 | H11: 25057.22 | I11: 25306.68 | J11: 25491.87 | K11: 25121.5 | L11: 24686.85
A12: 3 | B12: Nifty CPSE | C12: 2136.55 | D12: 2145.52 | E12: 2124.43 | F12: 2112.32 | G12: 2091.23 | H12: 2157.63 | I12: 2178.72 | J12: 2190.83 | K12: 2166.6 | L12: 2133.4
A13: 4 | B13: Nifty Infra | C13: 2936.4 | D13: 2932.95 | E13: 2916.25 | F13: 2896.10 | G13: 2879.40 | H13: 2953.10 | I13: 2969.80 | J13: 2989.95 | K13: 2949.65 | L13: 2912.8
A14: 5 | B14: Nifty IT | C14: 14355.85 | D14: 14274.08 | E14: 14110.57 | F14: 13865.28 | G14: 13701.77 | H14: 14519.37 | I14: 14682.88 | J14: 14928.17 | K14: 14437.6 | L14: 14028.8
A15: 6 | B15: Nifty PSE | C15: 3361.95 | D15: 3371.25 | E15: 3347.25 | F15: 3332.55 | G15: 3308.55 | H15: 3385.95 | I15: 3409.95 | J15: 3424.65 | K15: 3395.25 | L15: 3356.55
A16: 7 | B16: Nifty Midcap 50 | C16: 4653.4 | D16: 4646.88 | E16: 4611.37 | F16: 4569.33 | G16: 4533.82 | H16: 4688.92 | I16: 4724.43 | J16: 4766.47 | K16: 4682.4 | L16: 4604.85
A17: 8 | B17: ABB | C17: 1208.2 | D17: 1221.07 | E17: 1177.13 | F17: 1146.07 | G17: 1102.13 | H17: 1252.13 | I17: 1296.07 | J17: 1327.13 | K17: 1265 | L17: 1190 | M17: 3.70386
A18: 9 | B18: ACC | C18: 1344.9 | D18: 1349.03 | E18: 1332.07 | F18: 1319.23 | G18: 1302.27 | H18: 1361.87 | I18: 1378.83 | J18: 1391.67 | K18: 1366 | L18: 1336.2 | M18: 6.2705
A19: 10 | B19: AIAENG | C19: 1731.1 | D19: 1732.92 | E19: 1691.03 | F19: 1650.97 | G19: 1609.08 | H19: 1772.98 | I19: 1814.87 | J19: 1854.93 | K19: 1774.8 | L19: 1692.85 | M19: 0.32163
A20: 11 | B20: AUBANK | C20: 546.1 | D20: 540.02 | E20: 530.08 | F20: 514.07 | G20: 504.13 | H20: 556.03 | I20: 565.97 | J20: 581.98 | K20: 549.95 | L20: 524 | M20: 4.09842
A21: 12 | B21: ADANIENT | C21: 169.05 | D21: 170.38 | E21: 166.77 | F21: 164.48 | G21: 160.87 | H21: 172.67 | I21: 176.28 | J21: 178.57 | K21: 174 | L21: 168.1 | M21: 38.85243
A22: 13 | B22: ADANIPORTS | C22: 322.6 | D22: 326.00 | E22: 316.60 | F22: 310.60 | G22: 301.20 | H22: 332.00 | I22: 341.40 | J22: 347.40 | K22: 335.4 | L22: 320 | M22: 43.01781
A23: 14 | B23: ADANIPOWER | C23: 44.75 | D23: 43.98 | E23: 42.37 | F23: 39.98 | G23: 38.37 | H23: 46.37 | I23: 47.98 | J23: 50.37 | K23: 45.6 | L23: 41.6 | M23: 523.94875
A24: 15 | B24: ABFRL | C24: 180.25 | D24: 180.95 | E24: 177.50 | F24: 174.75 | G24: 171.30 | H24: 183.70 | I24: 187.15 | J24: 189.90 | K24: 184.4 | L24: 178.2 | M24: 3.15475
A25: 16 | B25: AJANTPHARM | C25: 1010 | D25: 1017.75 | E25: 997.85 | F25: 985.70 | G25: 965.80 | H25: 1029.90 | I25: 1049.80 | J25: 1061.95 | K25: 1037.65 | L25: 1005.6 | M25: 2.56601
A26: 17 | B26: ALKEM | C26: 1918.6 | D26: 1920.97 | E26: 1898.63 | F26: 1878.67 | G26: 1856.33 | H26: 1940.93 | I26: 1963.27 | J26: 1983.23 | K26: 1943.3 | L26: 1901 | M26: 0.27349
A27: 18 | B27: AMARAJABAT | C27: 753.2 | D27: 758.05 | E27: 743.60 | F27: 734.00 | G27: 719.55 | H27: 767.65 | I27: 782.10 | J27: 791.70 | K27: 772.5 | L27: 748.45 | M27: 2.75795
A28: 19 | B28: AMBUJACEM | C28: 192.45 | D28: 193.87 | E28: 190.63 | F28: 188.82 | G28: 185.58 | H28: 195.68 | I28: 198.92 | J28: 200.73 | K28: 197.1 | L28: 192.05 | M28: 39.81871
A29: 20 | B29: APOLLOHOSP | C29: 1166.6 | D29: 1157.53 | E29: 1139.07 | F29: 1111.53 | G29: 1093.07 | H29: 1185.07 | I29: 1203.53 | J29: 1231.07 | K29: 1176 | L29: 1130 | M29: 6.17733
A30: 21 | B30: APOLLOTYRE | C30: 215.05 | D30: 216.12 | E30: 212.53 | F30: 210.02 | G30: 206.43 | H30: 218.63 | I30: 222.22 | J30: 224.73 | K30: 219.7 | L30: 213.6 | M30: 23.83136
A31: 22 | B31: ARVIND | C31: 345.85 | D31: 341.45 | E31: 335.00 | F31: 324.15 | G31: 317.70 | H31: 352.30 | I31: 358.75 | J31: 369.60 | K31: 347.9 | L31: 330.6 | M31: 23.5479
A32: 23 | B32: ASHOKLEY | C32: 115 | D32: 115.32 | E32: 113.88 | F32: 112.77 | G32: 111.33 | H32: 116.43 | I32: 117.87 | J32: 118.98 | K32: 116.75 | L32: 114.2 | M32: 138.68396
A33: 24 | B33: ASIANPAINT | C33: 1196.3 | D33: 1193.28 | E33: 1178.57 | F33: 1160.83 | G33: 1146.12 | H33: 1211.02 | I33: 1225.73 | J33: 1243.47 | K33: 1208 | L33: 1175.55 | M33: 10.75337
A34: 25 | B34: AUROPHARMA | C34: 770.5 | D34: 769.23 | E34: 761.97 | F34: 753.43 | G34: 746.17 | H34: 777.77 | I34: 785.03 | J34: 793.57 | K34: 776.5 | L34: 760.7 | M34: 16.69833
A35: 26 | B35: DMART | C35: 1273.6 | D35: 1288.22 | E35: 1251.43 | F35: 1229.27 | G35: 1192.48 | H35: 1310.38 | I35: 1347.17 | J35: 1369.33 | K35: 1325 | L35: 1266.05 | M35: 7.29259
A36: 27 | B36: AXISBANK | C36: 562.7 | D36: 564.48 | E36: 557.22 | F36: 551.73 | G36: 544.47 | H36: 569.97 | I36: 577.23 | J36: 582.72 | K36: 571.75 | L36: 559 | M36: 85.22604
A37: 28 | B37: BAJAJ-AUTO | C37: 2556.25 | D37: 2557.38 | E37: 2531.77 | F37: 2507.28 | G37: 2481.67 | H37: 2581.87 | I37: 2607.48 | J37: 2631.97 | K37: 2583 | L37: 2532.9 | M37: 2.70336
A38: 29 | B38: BAJFINANCE | C38: 2356.35 | D38: 2376.87 | E38: 2329.83 | F38: 2303.32 | G38: 2256.28 | H38: 2403.38 | I38: 2450.42 | J38: 2476.93 | K38: 2423.9 | L38: 2350.35 | M38: 22.0223
A39: 30 | B39: BAJAJFINSV | C39: 5391.15 | D39: 5389.57 | E39: 5324.13 | F39: 5257.12 | G39: 5191.68 | H39: 5456.58 | I39: 5522.02 | J39: 5589.03 | K39: 5455 | L39: 5322.55 | M39: 2.91037
A40: 31 | B40: BALKRISIND | C40: 1069.25 | D40: 1081.67 | E40: 1048.43 | F40: 1027.62 | G40: 994.38 | H40: 1102.48 | I40: 1135.72 | J40: 1156.53 | K40: 1114.9 | L40: 1060.85 | M40: 9.20161
A41: 32 | B41: BANKBARODA | C41: 110 | D41: 109.85 | E41: 106.00 | F41: 102.00 | G41: 98.15 | H41: 113.85 | I41: 117.70 | J41: 121.70 | K41: 113.7 | L41: 105.85 | M41: 512.40583
A42: 33 | B42: BANKINDIA | C42: 84.35 | D42: 84.20 | E42: 80.40 | F42: 76.45 | G42: 72.65 | H42: 88.15 | I42: 91.95 | J42: 95.90 | K42: 88 | L42: 80.25 | M42: 137.18542
A43: 34 | B43: BATAINDIA | C43: 939.55 | D43: 938.65 | E43: 922.75 | F43: 905.95 | G43: 890.05 | H43: 955.45 | I43: 971.35 | J43: 988.15 | K43: 954.55 | L43: 921.85 | M43: 9.17806
A44: 35 | B44: BERGEPAINT | C44: 285 | D44: 285.42 | E44: 283.08 | F44: 281.17 | G44: 278.83 | H44: 287.33 | I44: 289.67 | J44: 291.58 | K44: 287.75 | L44: 283.5 | M44: 3.83406
A45: 36 | B45: BEL | C45: 89.85 | D45: 89.08 | E45: 87.17 | F45: 84.48 | G45: 82.57 | H45: 91.77 | I45: 93.68 | J45: 96.37 | K45: 91 | L45: 86.4 | M45: 178.45565
A46: 37 | B46: BHARATFIN | C46: 839.9 | D46: 843.78 | E46: 826.67 | F46: 813.43 | G46: 796.32 | H46: 857.02 | I46: 874.13 | J46: 887.37 | K46: 860.9 | L46: 830.55 | M46: 7.57033
A47: 38 | B47: BHARATFORG | C47: 569.5 | D47: 565.73 | E47: 557.27 | F47: 545.03 | G47: 536.57 | H47: 577.97 | I47: 586.43 | J47: 598.67 | K47: 574.2 | L47: 553.5 | M47: 9.52329
A48: 39 | B48: BHEL | C48: 69.15 | D48: 69.03 | E48: 68.12 | F48: 67.08 | G48: 66.17 | H48: 70.07 | I48: 70.98 | J48: 72.02 | K48: 69.95 | L48: 68 | M48: 177.63932
A49: 40 | B49: BPCL | C49: 266.35 | D49: 268.03 | E49: 262.37 | F49: 258.38 | G49: 252.72 | H49: 272.02 | I49: 277.68 | J49: 281.67 | K49: 273.7 | L49: 264.05 | M49: 104.99832
A50: 41 | B50: BHARTIARTL | C50: 292.6 | D50: 293.05 | E50: 288.90 | F50: 285.20 | G50: 281.05 | H50: 296.75 | I50: 300.90 | J50: 304.60 | K50: 297.2 | L50: 289.35 | M50: 48.07626
A51: 42 | B51: INFRATEL | C51: 266.2 | D51: 265.88 | E51: 263.82 | F51: 261.43 | G51: 259.37 | H51: 268.27 | I51: 270.33 | J51: 272.72 | K51: 267.95 | L51: 263.5 | M51: 15.24274
A52: 43 | B52: BIOCON | C52: 639.7 | D52: 634.82 | E52: 624.88 | F52: 610.07 | G52: 600.13 | H52: 649.63 | I52: 659.57 | J52: 674.38 | K52: 644.75 | L52: 620 | M52: 29.0831
A53: 44 | B53: BOSCHLTD | C53: 19738.8 | D53: 19406.35 | E53: 18932.70 | F53: 18126.60 | G53: 17652.95 | H53: 20212.45 | I53: 20686.10 | J53: 21492.20 | K53: 19880 | L53: 18600.25 | M53: 0.187
A54: 45 | B54: BRITANNIA | C54: 5447.9 | D54: 5430.10 | E54: 5393.20 | F54: 5338.50 | G54: 5301.60 | H54: 5484.80 | I54: 5521.70 | J54: 5576.40 | K54: 5467 | L54: 5375.4 | M54: 1.34636
A55: 46 | B55: CRISIL | C55: 1419.4 | D55: 1420.65 | E55: 1392.30 | F55: 1365.20 | G55: 1336.85 | H55: 1447.75 | I55: 1476.10 | J55: 1503.20 | K55: 1449 | L55: 1393.55 | M55: 0.16722
A56: 47 | B56: CADILAHC | C56: 348.25 | D56: 350.97 | E56: 344.43 | F56: 340.62 | G56: 334.08 | H56: 354.78 | I56: 361.32 | J56: 365.13 | K56: 357.5 | L56: 347.15 | M56: 10.91197
A57: 48 | B57: CANBK | C57: 256.25 | D57: 251.93 | E57: 240.17 | F57: 224.08 | G57: 212.32 | H57: 268.02 | I57: 279.78 | J57: 295.87 | K57: 263.7 | L57: 235.85 | M57: 216.00916
A58: 49 | B58: CASTROLIND | C58: 146.5 | D58: 146.88 | E58: 144.97 | F58: 143.43 | G58: 141.52 | H58: 148.42 | I58: 150.33 | J58: 151.87 | K58: 148.8 | L58: 145.35 | M58: 7.27667
A59: 50 | B59: CENTRALBK | C59: 31.55 | D59: 31.53 | E59: 30.87 | F59: 30.18 | G59: 29.52 | H59: 32.22 | I59: 32.88 | J59: 33.57 | K59: 32.2 | L59: 30.85 | M59: 8.9742
A60: 51 | B60: CENTURYTEX | C60: 811.7 | D60: 812.60 | E60: 799.20 | F60: 786.70 | G60: 773.30 | H60: 825.10 | I60: 838.50 | J60: 851.00 | K60: 826 | L60: 800.1 | M60: 9.08281
A61: 52 | B61: CHOLAFIN | C61: 1243.75 | D61: 1255.17 | E61: 1220.33 | F61: 1196.92 | G61: 1162.08 | H61: 1278.58 | I61: 1313.42 | J61: 1336.83 | K61: 1290 | L61: 1231.75 | M61: 3.45154
A62: 53 | B62: CIPLA | C62: 610.35 | D62: 618.38 | E62: 600.07 | F62: 589.78 | G62: 571.47 | H62: 628.67 | I62: 646.98 | J62: 657.27 | K62: 636.7 | L62: 608.1 | M62: 24.18471
A63: 54 | B63: COALINDIA | C63: 275.85 | D63: 279.08 | E63: 271.77 | F63: 267.68 | G63: 260.37 | H63: 283.17 | I63: 290.48 | J63: 294.57 | K63: 286.4 | L63: 275 | M63: 27.57658
A64: 55 | B64: COLPAL | C64: 1100.4 | D64: 1108.63 | E64: 1087.27 | F64: 1074.13 | G64: 1052.77 | H64: 1121.77 | I64: 1143.13 | J64: 1156.27 | K64: 1130 | L64: 1095.5 | M64: 7.29179
A65: 56 | B65: CONCOR | C65: 623.35 | D65: 622.00 | E65: 612.35 | F65: 601.35 | G65: 591.70 | H65: 633.00 | I65: 642.65 | J65: 653.65 | K65: 631.65 | L65: 611 | M65: 5.6391
A66: 57 | B66: COROMANDEL | C66: 413.7 | D66: 409.57 | E66: 400.28 | F66: 386.87 | G66: 377.58 | H66: 422.98 | I66: 432.27 | J66: 445.68 | K66: 418.85 | L66: 396.15 | M66: 1.35254
A67: 58 | B67: CROMPTON | C67: 206.2 | D67: 203.92 | E67: 200.58 | F67: 194.97 | G67: 191.63 | H67: 209.53 | I67: 212.87 | J67: 218.48 | K67: 207.25 | L67: 198.3 | M67: 3.07294
A68: 59 | B68: CUMMINSIND | C68: 673.3 | D68: 674.15 | E68: 662.60 | F68: 651.90 | G68: 640.35 | H68: 684.85 | I68: 696.40 | J68: 707.10 | K68: 685.7 | L68: 663.45 | M68: 4.55587
A69: 60 | B69: DLF | C69: 161.85 | D69: 162.70 | E69: 158.90 | F69: 155.95 | G69: 152.15 | H69: 165.65 | I69: 169.45 | J69: 172.40 | K69: 166.5 | L69: 159.75 | M69: 57.47572
A70: 61 | B70: DABUR | C70: 396.35 | D70: 397.33 | E70: 387.22 | F70: 378.08 | G70: 367.97 | H70: 406.47 | I70: 416.58 | J70: 425.72 | K70: 407.45 | L70: 388.2 | M70: 48.06534
A71: 62 | B71: DALMIABHA | C71: 2111.15 | D71: 2084.27 | E71: 2038.53 | F71: 1965.92 | G71: 1920.18 | H71: 2156.88 | I71: 2202.62 | J71: 2275.23 | K71: 2130 | L71: 2011.65 | M71: 2.12262
A72: 63 | B72: DHFL | C72: 207.1 | D72: 203.97 | E72: 188.23 | F72: 169.37 | G72: 153.63 | H72: 222.83 | I72: 238.57 | J72: 257.43 | K72: 219.7 | L72: 185.1 | M72: 493.9441
A73: 64 | B73: DISHTV | C73: 43.7 | D73: 43.63 | E73: 42.82 | F73: 41.93 | G73: 41.12 | H73: 44.52 | I73: 45.33 | J73: 46.22 | K73: 44.45 | L73: 42.75 | M73: 58.92394
A74: 65 | B74: DIVISLAB | C74: 1485.75 | D74: 1474.25 | E74: 1448.00 | F74: 1410.25 | G74: 1384.00 | H74: 1512.00 | I74: 1538.25 | J74: 1576.00 | K74: 1500.5 | L74: 1436.5 | M74: 33.3843
A75: 66 | B75: LALPATHLAB | C75: 881.25 | D75: 883.72 | E75: 867.53 | F75: 853.82 | G75: 837.63 | H75: 897.43 | I75: 913.62 | J75: 927.33 | K75: 899.9 | L75: 870 | M75: 1.61154
A76: 67 | B76: DRREDDY | C76: 2594.3 | D76: 2573.18 | E76: 2536.37 | F76: 2478.43 | G76: 2441.62 | H76: 2631.12 | I76: 2667.93 | J76: 2725.87 | K76: 2610 | L76: 2515.25 | M76: 9.71039
A77: 68 | B77: EDELWEISS | C77: 154.9 | D77: 153.27 | E77: 151.63 | F77: 148.37 | G77: 146.73 | H77: 156.53 | I77: 158.17 | J77: 161.43 | K77: 154.9 | L77: 150 | M77: 11.20646
A78: 69 | B78: EICHERMOT | C78: 21026.15 | D78: 21174.85 | E78: 20836.30 | F78: 20646.45 | G78: 20307.90 | H78: 21364.70 | I78: 21703.25 | J78: 21893.10 | K78: 21513.4 | L78: 20985 | M78: 0.63135
A79: 70 | B79: EMAMILTD | C79: 402.4 | D79: 405.50 | E79: 393.00 | F79: 383.60 | G79: 371.10 | H79: 414.90 | I79: 427.40 | J79: 436.80 | K79: 418 | L79: 396.1 | M79: 6.49844
A80: 71 | B80: ENDURANCE | C80: 1198.4 | D80: 1181.13 | E80: 1147.27 | F80: 1096.13 | G80: 1062.27 | H80: 1232.27 | I80: 1266.13 | J80: 1317.27 | K80: 1215 | L80: 1130 | M80: 0.77732
A81: 72 | B81: ENGINERSIN | C81: 114.15 | D81: 115.28 | E81: 112.37 | F81: 110.58 | G81: 107.67 | H81: 117.07 | I81: 119.98 | J81: 121.77 | K81: 118.2 | L81: 113.5 | M81: 14.26046
A82: 73 | B82: EXIDEIND | C82: 261.45 | D82: 259.33 | E82: 255.12 | F82: 248.78 | G82: 244.57 | H82: 265.67 | I82: 269.88 | J82: 276.22 | K82: 263.55 | L82: 253 | M82: 14.60751
A83: 74 | B83: FEDERALBNK | C83: 83.15 | D83: 83.23 | E83: 80.92 | F83: 78.68 | G83: 76.37 | H83: 85.47 | I83: 87.78 | J83: 90.02 | K83: 85.55 | L83: 81 | M83: 202.00119
A84: 75 | B84: GAIL | C84: 360.25 | D84: 360.83 | E84: 352.67 | F84: 345.08 | G84: 336.92 | H84: 368.42 | I84: 376.58 | J84: 384.17 | K84: 369 | L84: 353.25 | M84: 71.76942
A85: 76 | B85: GMRINFRA | C85: 16.45 | D85: 16.38 | E85: 16.12 | F85: 15.78 | G85: 15.52 | H85: 16.72 | I85: 16.98 | J85: 17.32 | K85: 16.65 | L85: 16.05 | M85: 201.57795
A86: 77 | B86: GSKCONS | C86: 6943.2 | D86: 6933.73 | E86: 6895.22 | F86: 6847.23 | G86: 6808.72 | H86: 6981.72 | I86: 7020.23 | J86: 7068.22 | K86: 6972.25 | L86: 6885.75 | M86: 0.15147
A87: 78 | B87: GLAXO | C87: 1385.85 | D87: 1369.40 | E87: 1339.80 | F87: 1293.75 | G87: 1264.15 | H87: 1415.45 | I87: 1445.05 | J87: 1491.10 | K87: 1399 | L87: 1323.35 | M87: 0.1772
A88: 79 | B88: GLENMARK | C88: 604 | D88: 606.40 | E88: 596.85 | F88: 589.70 | G88: 580.15 | H88: 613.55 | I88: 623.10 | J88: 630.25 | K88: 615.95 | L88: 599.25 | M88: 6.64523
A89: 80 | B89: GODREJCP | C89: 713.85 | D89: 711.52 | E89: 704.03 | F89: 694.22 | G89: 686.73 | H89: 721.33 | I89: 728.82 | J89: 738.63 | K89: 719 | L89: 701.7 | M89: 4.96211
A90: 81 | B90: GODREJIND | C90: 461.65 | D90: 465.75 | E90: 453.90 | F90: 446.15 | G90: 434.30 | H90: 473.50 | I90: 485.35 | J90: 493.10 | K90: 477.6 | L90: 458 | M90: 5.62245
A91: 82 | B91: GRUH | C91: 274.85 | D91: 274.43 | E91: 265.97 | F91: 257.08 | G91: 248.62 | H91: 283.32 | I91: 291.78 | J91: 300.67 | K91: 282.9 | L91: 265.55 | M91: 7.93377
A92: 83 | B92: GPPL | C92: 101.7 | D92: 101.98 | E92: 99.87 | F92: 98.03 | G92: 95.92 | H92: 103.82 | I92: 105.93 | J92: 107.77 | K92: 104.1 | L92: 100.15 | M92: 2.17266
A93: 84 | B93: GSPL | C93: 175.5 | D93: 173.60 | E93: 171.00 | F93: 166.50 | G93: 163.90 | H93: 178.10 | I93: 180.70 | J93: 185.20 | K93: 176.2 | L93: 169.1 | M93: 1.24955
A94: 85 | B94: HCLTECH | C94: 1004.85 | D94: 999.50 | E94: 982.05 | F94: 959.25 | G94: 941.80 | H94: 1022.30 | I94: 1039.75 | J94: 1062.55 | K94: 1016.95 | L94: 976.7 | M94: 30.60534
A95: 86 | B95: HDFCBANK | C95: 1912.75 | D95: 1914.68 | E95: 1897.37 | F95: 1881.98 | G95: 1864.67 | H95: 1930.07 | I95: 1947.38 | J95: 1962.77 | K95: 1932 | L95: 1899.3 | M95: 34.57176
A96: 87 | B96: HAVELLS | C96: 634.5 | D96: 631.93 | E96: 624.87 | F96: 615.23 | G96: 608.17 | H96: 641.57 | I96: 648.63 | J96: 658.27 | K96: 639 | L96: 622.3 | M96: 17.26408
A97: 88 | B97: HEROMOTOCO | C97: 2773.9 | D97: 2772.95 | E97: 2735.95 | F97: 2698.00 | G97: 2661.00 | H97: 2810.90 | I97: 2847.90 | J97: 2885.85 | K97: 2809.95 | L97: 2735 | M97: 4.03508
A98: 89 | B98: HEXAWARE | C98: 324.95 | D98: 322.30 | E98: 316.65 | F98: 308.35 | G98: 302.70 | H98: 330.60 | I98: 336.25 | J98: 344.55 | K98: 327.95 | L98: 314 | M98: 15.11224
A99: 90 | B99: HINDALCO | C99: 223.9 | D99: 224.95 | E99: 221.15 | F99: 218.40 | G99: 214.60 | H99: 227.70 | I99: 231.50 | J99: 234.25 | K99: 228.75 | L99: 222.2 | M99: 65.68207
A100: 91 | B100: HINDPETRO | C100: 219.95 | D100: 222.27 | E100: 216.03 | F100: 212.12 | G100: 205.88 | H100: 226.18 | I100: 232.42 | J100: 236.33 | K100: 228.5 | L100: 218.35 | M100: 58.29019
A101: 92 | B101: HINDUNILVR | C101: 1593.05 | D101: 1579.70 | E101: 1555.80 | F101: 1518.55 | G101: 1494.65 | H101: 1616.95 | I101: 1640.85 | J101: 1678.10 | K101: 1603.6 | L101: 1542.45 | M101: 13.66068
A102: 93 | B102: HINDZINC | C102: 287.15 | D102: 287.55 | E102: 283.10 | F102: 279.05 | G102: 274.60 | H102: 291.60 | I102: 296.05 | J102: 300.10 | K102: 292 | L102: 283.5 | M102: 18.86558
A103: 94 | B103: HUDCO | C103: 43.15 | D103: 42.83 | E103: 41.77 | F103: 40.38 | G103: 39.32 | H103: 44.22 | I103: 45.28 | J103: 46.67 | K103: 43.9 | L103: 41.45 | M103: 11.29821
A104: 95 | B104: HDFC | C104: 1671.9 | D104: 1681.70 | E104: 1653.40 | F104: 1634.90 | G104: 1606.60 | H104: 1700.20 | I104: 1728.50 | J104: 1747.00 | K104: 1710 | L104: 1663.2 | M104: 20.73955
A105: 96 | B105: ITC | C105: 278.95 | D105: 280.27 | E105: 276.68 | F105: 274.42 | G105: 270.83 | H105: 282.53 | I105: 286.12 | J105: 288.38 | K105: 283.85 | L105: 278 | M105: 68.47149
A106: 97 | B106: ICICIBANK | C106: 345.7 | D106: 347.48 | E106: 341.12 | F106: 336.53 | G106: 330.17 | H106: 352.07 | I106: 358.43 | J106: 363.02 | K106: 353.85 | L106: 342.9 | M106: 344.60428
A107: 98 | B107: ICICIPRULI | C107: 324.9 | D107: 327.67 | E107: 318.43 | F107: 311.97 | G107: 302.73 | H107: 334.13 | I107: 343.37 | J107: 349.83 | K107: 336.9 | L107: 321.2 | M107: 22.64074
A108: 99 | B108: IDBI | C108: 59.7 | D108: 59.93 | E108: 58.97 | F108: 58.23 | G108: 57.27 | H108: 60.67 | I108: 61.63 | J108: 62.37 | K108: 60.9 | L108: 59.2 | M108: 66.66242
A109: 100 | B109: IDFCBANK | C109: 34.65 | D109: 34.70 | E109: 34.20 | F109: 33.75 | G109: 33.25 | H109: 35.15 | I109: 35.65 | J109: 36.10 | K109: 35.2 | L109: 34.25 | M109: 89.43454
A110: 101 | B110: IDFC | C110: 36.05 | D110: 36.22 | E110: 35.63 | F110: 35.22 | G110: 34.63 | H110: 36.63 | I110: 37.22 | J110: 37.63 | K110: 36.8 | L110: 35.8 | M110: 35.37533
A111: 102 | B111: IRB | C111: 126.2 | D111: 126.98 | E111: 124.17 | F111: 122.13 | G111: 119.32 | H111: 129.02 | I111: 131.83 | J111: 133.87 | K111: 129.8 | L111: 124.95 | M111: 21.20328
A112: 103 | B112: IDEA | C112: 39 | D112: 38.58 | E112: 37.82 | F112: 36.63 | G112: 35.87 | H112: 39.77 | I112: 40.53 | J112: 41.72 | K112: 39.35 | L112: 37.4 | M112: 158.90037
A113: 104 | B113: IBULHSGFIN | C113: 769.15 | D113: 775.75 | E113: 746.75 | F113: 724.35 | G113: 695.35 | H113: 798.15 | I113: 827.15 | J113: 849.55 | K113: 804.75 | L113: 753.35 | M113: 75.82149
A114: 105 | B114: INDIANB | C114: 256.65 | D114: 252.68 | E114: 240.97 | F114: 225.28 | G114: 213.57 | H114: 268.37 | I114: 280.08 | J114: 295.77 | K114: 264.4 | L114: 237 | M114: 46.23688
A115: 106 | B115: INDHOTEL | C115: 127 | D115: 126.57 | E115: 125.23 | F115: 123.47 | G115: 122.13 | H115: 128.33 | I115: 129.67 | J115: 131.43 | K115: 127.9 | L115: 124.8 | M115: 4.47578
A116: 107 | B116: IOC | C116: 136.3 | D116: 137.48 | E116: 134.47 | F116: 132.63 | G116: 129.62 | H116: 139.32 | I116: 142.33 | J116: 144.17 | K116: 140.5 | L116: 135.65 | M116: 69.1036
A117: 108 | B117: IGL | C117: 252.9 | D117: 253.35 | E117: 249.80 | F117: 246.70 | G117: 243.15 | H117: 256.45 | I117: 260.00 | J117: 263.10 | K117: 256.9 | L117: 250.25 | M117: 11.19409
A118: 109 | B118: INDUSINDBK | C118: 1364.3 | D118: 1374.63 | E118: 1339.27 | F118: 1314.23 | G118: 1278.87 | H118: 1399.67 | I118: 1435.03 | J118: 1460.07 | K118: 1410 | L118: 1349.6 | M118: 59.74755
A119: 110 | B119: NAUKRI | C119: 1581.05 | D119: 1578.07 | E119: 1536.13 | F119: 1491.22 | G119: 1449.28 | H119: 1622.98 | I119: 1664.92 | J119: 1709.83 | K119: 1620 | L119: 1533.15 | M119: 1.10355
A120: 111 | B120: INFY | C120: 659.6 | D120: 653.62 | E120: 643.43 | F120: 627.27 | G120: 617.08 | H120: 669.78 | I120: 679.97 | J120: 696.13 | K120: 663.8 | L120: 637.45 | M120: 87.93411
A121: 112 | B121: INDIGO | C121: 882.4 | D121: 884.68 | E121: 867.77 | F121: 853.13 | G121: 836.22 | H121: 899.32 | I121: 916.23 | J121: 930.87 | K121: 901.6 | L121: 870.05 | M121: 9.68278
A122: 113 | B122: IPCALAB | C122: 659.6 | D122: 660.20 | E122: 633.40 | F122: 607.20 | G122: 580.40 | H122: 686.40 | I122: 713.20 | J122: 739.40 | K122: 687 | L122: 634 | M122: 6.11633
A123: 114 | B123: JSWENERGY | C123: 66.1 | D123: 65.92 | E123: 64.48 | F123: 62.87 | G123: 61.43 | H123: 67.53 | I123: 68.97 | J123: 70.58 | K123: 67.35 | L123: 64.3 | M123: 4.23965
A124: 115 | B124: JSWSTEEL | C124: 335.8 | D124: 337.07 | E124: 332.33 | F124: 328.87 | G124: 324.13 | H124: 340.53 | I124: 345.27 | J124: 348.73 | K124: 341.8 | L124: 333.6 | M124: 31.97919
A125: 116 | B125: JINDALSTEL | C125: 170.15 | D125: 171.17 | E125: 166.83 | F125: 163.52 | G125: 159.18 | H125: 174.48 | I125: 178.82 | J125: 182.13 | K125: 175.5 | L125: 167.85 | M125: 69.09915
A126: 117 | B126: JUBLFOOD | C126: 1065.05 | D126: 1070.48 | E126: 1044.57 | F126: 1024.08 | G126: 998.17 | H126: 1090.97 | I126: 1116.88 | J126: 1137.37 | K126: 1096.4 | L126: 1050 | M126: 18.48454
A127: 118 | B127: JUBILANT | C127: 651.3 | D127: 653.80 | E127: 641.65 | F127: 632.00 | G127: 619.85 | H127: 663.45 | I127: 675.60 | J127: 685.25 | K127: 665.95 | L127: 644.15 | M127: 2.66234
A128: 119 | B128: KARURVYSYA | C128: 79.1 | D128: 78.72 | E128: 77.93 | F128: 76.77 | G128: 75.98 | H128: 79.88 | I128: 80.67 | J128: 81.83 | K128: 79.5 | L128: 77.55 | M128: 8.98226
A129: 120 | B129: KOTAKBANK | C129: 1123.8 | D129: 1128.37 | E129: 1110.73 | F129: 1097.67 | G129: 1080.03 | H129: 1141.43 | I129: 1159.07 | J129: 1172.13 | K129: 1146 | L129: 1115.3 | M129: 19.50633
A130: 121 | B130: L&TFH | C130: 124.15 | D130: 123.88 | E130: 121.57 | F130: 118.98 | G130: 116.67 | H130: 126.47 | I130: 128.78 | J130: 131.37 | K130: 126.2 | L130: 121.3 | M130: 83.7089
A131: 122 | B131: LICHSGFIN | C131: 405.9 | D131: 412.25 | E131: 397.55 | F131: 389.20 | G131: 374.50 | H131: 420.60 | I131: 435.30 | J131: 443.65 | K131: 426.95 | L131: 403.9 | M131: 53.63885
A132: 123 | B132: LT | C132: 1271.25 | D132: 1266.05 | E132: 1253.45 | F132: 1235.65 | G132: 1223.05 | H132: 1283.85 | I132: 1296.45 | J132: 1314.25 | K132: 1278.65 | L132: 1248.25 | M132: 19.57735
A133: 124 | B133: LUPIN | C133: 876.65 | D133: 879.27 | E133: 869.18 | F133: 861.72 | G133: 851.63 | H133: 886.73 | I133: 896.82 | J133: 904.28 | K133: 889.35 | L133: 871.8 | M133: 11.8297
A134: 125 | B134: MRF | C134: 64309.15 | D134: 64203.78 | E134: 63507.57 | F134: 62705.98 | G134: 62009.77 | H134: 65005.37 | I134: 65701.58 | J134: 66503.17 | K134: 64900 | L134: 63402.2 | M134: 0.06896
A135: 126 | B135: MGL | C135: 820.6 | D135: 826.68 | E135: 809.42 | F135: 798.23 | G135: 780.97 | H135: 837.87 | I135: 855.13 | J135: 866.32 | K135: 843.95 | L135: 815.5 | M135: 3.4061
A136: 127 | B136: M&MFIN | C136: 395.2 | D136: 397.47 | E136: 390.28 | F136: 385.37 | G136: 378.18 | H136: 402.38 | I136: 409.57 | J136: 414.48 | K136: 404.65 | L136: 392.55 | M136: 8.40418
A137: 128 | B137: M&M | C137: 746.3 | D137: 748.68 | E137: 734.62 | F137: 722.93 | G137: 708.87 | H137: 760.37 | I137: 774.43 | J137: 786.12 | K137: 762.75 | L137: 737 | M137: 27.56355
A138: 129 | B138: MANAPPURAM | C138: 75.9 | D138: 75.67 | E138: 74.83 | F138: 73.77 | G138: 72.93 | H138: 76.73 | I138: 77.57 | J138: 78.63 | K138: 76.5 | L138: 74.6 | M138: 16.69823
A139: 130 | B139: MRPL | C139: 80.25 | D139: 80.78 | E139: 79.07 | F139: 77.88 | G139: 76.17 | H139: 81.97 | I139: 83.68 | J139: 84.87 | K139: 82.5 | L139: 79.6 | M139: 18.95339
A140: 131 | B140: MARICO | C140: 312.75 | D140: 310.07 | E140: 305.93 | F140: 299.12 | G140: 294.98 | H140: 316.88 | I140: 321.02 | J140: 327.83 | K140: 314.2 | L140: 303.25 | M140: 24.04498
A141: 132 | B141: MARUTI | C141: 6697 | D141: 6747.05 | E141: 6625.15 | F141: 6553.30 | G141: 6431.40 | H141: 6818.90 | I141: 6940.80 | J141: 7012.65 | K141: 6868.95 | L141: 6675.2 | M141: 7.71389
A142: 133 | B142: MFSL | C142: 367.05 | D142: 371.08 | E142: 360.27 | F142: 353.48 | G142: 342.67 | H142: 377.87 | I142: 388.68 | J142: 395.47 | K142: 381.9 | L142: 364.3 | M142: 3.97489
A143: 134 | B143: MINDTREE | C143: 786.15 | D143: 782.15 | E143: 772.05 | F143: 757.95 | G143: 747.85 | H143: 796.25 | I143: 806.35 | J143: 820.45 | K143: 792.25 | L143: 768.05 | M143: 22.20031
A144: 135 | B144: MOTHERSUMI | C144: 161.7 | D144: 163.65 | E144: 153.05 | F144: 144.40 | G144: 133.80 | H144: 172.30 | I144: 182.90 | J144: 191.55 | K144: 174.25 | L144: 155 | M144: 139.00537
A145: 136 | B145: MPHASIS | C145: 955.1 | D145: 957.37 | E145: 935.73 | F145: 916.37 | G145: 894.73 | H145: 976.73 | I145: 998.37 | J145: 1017.73 | K145: 979 | L145: 938 | M145: 7.64902
A146: 137 | B146: MUTHOOTFIN | C146: 395.7 | D146: 396.88 | E146: 388.82 | F146: 381.93 | G146: 373.87 | H146: 403.77 | I146: 411.83 | J146: 418.72 | K146: 404.95 | L146: 390 | M146: 9.65128
A147: 138 | B147: NATCOPHARM | C147: 739.9 | D147: 739.05 | E147: 730.60 | F147: 721.30 | G147: 712.85 | H147: 748.35 | I147: 756.80 | J147: 766.10 | K147: 747.5 | L147: 729.75 | M147: 1.80627
A148: 139 | B148: NBCC | C148: 53.4 | D148: 53.53 | E148: 52.57 | F148: 51.73 | G148: 50.77 | H148: 54.37 | I148: 55.33 | J148: 56.17 | K148: 54.5 | L148: 52.7 | M148: 48.61063
A149: 140 | B149: NHPC | C149: 24.05 | D149: 24.17 | E149: 23.83 | F149: 23.62 | G149: 23.28 | H149: 24.38 | I149: 24.72 | J149: 24.93 | K149: 24.5 | L149: 23.95 | M149: 20.30263
A150: 141 | B150: NMDC | C150: 109.5 | D150: 109.65 | E150: 108.05 | F150: 106.60 | G150: 105.00 | H150: 111.10 | I150: 112.70 | J150: 114.15 | K150: 111.25 | L150: 108.2 | M150: 26.4719
A151: 142 | B151: NTPC | C151: 159.4 | D151: 159.10 | E151: 157.15 | F151: 154.90 | G151: 152.95 | H151: 161.35 | I151: 163.30 | J151: 165.55 | K151: 161.05 | L151: 156.85 | M151: 27.14226
A152: 143 | B152: NATIONALUM | C152: 69.15 | D152: 70.00 | E152: 67.85 | F152: 66.55 | G152: 64.40 | H152: 71.30 | I152: 73.45 | J152: 74.75 | K152: 72.15 | L152: 68.7 | M152: 165.40247
A153: 144 | B153: OBEROIRLTY | C153: 424.9 | D153: 429.30 | E153: 418.60 | F153: 412.30 | G153: 401.60 | H153: 435.60 | I153: 446.30 | J153: 452.60 | K153: 440 | L153: 423 | M153: 3.16858
A154: 145 | B154: ONGC | C154: 152.95 | D154: 153.35 | E154: 151.70 | F154: 150.45 | G154: 148.80 | H154: 154.60 | I154: 156.25 | J154: 157.50 | K154: 155 | L154: 152.1 | M154: 41.56028
A155: 146 | B155: OIL | C155: 196.6 | D155: 197.27 | E155: 195.38 | F155: 194.17 | G155: 192.28 | H155: 198.48 | I155: 200.37 | J155: 201.58 | K155: 199.15 | L155: 196.05 | M155: 4.7319
A156: 147 | B156: OFSS | C156: 3521.65 | D156: 3527.55 | E156: 3496.10 | F156: 3470.55 | G156: 3439.10 | H156: 3553.10 | I156: 3584.55 | J156: 3610.10 | K156: 3559 | L156: 3502 | M156: 0.54558
A157: 148 | B157: PCJEWELLER | C157: 54.25 | D157: 53.42 | E157: 51.08 | F157: 47.92 | G157: 45.58 | H157: 56.58 | I157: 58.92 | J157: 62.08 | K157: 55.75 | L157: 50.25 | M157: 131.74491
A158: 149 | B158: PIIND | C158: 757.75 | D158: 749.25 | E158: 735.00 | F158: 712.25 | G158: 698.00 | H158: 772.00 | I158: 786.25 | J158: 809.00 | K158: 763.5 | L158: 726.5 | M158: 1.07817
A159: 150 | B159: PNBHOUSING | C159: 732.05 | D159: 732.33 | E159: 715.77 | F159: 699.48 | G159: 682.92 | H159: 748.62 | I159: 765.18 | J159: 781.47 | K159: 748.9 | L159: 716.05 | M159: 1.78847
A160: 151 | B160: PAGEIND | C160: 29048.8 | D160: 29306.60 | E160: 28693.20 | F160: 28337.60 | G160: 27724.20 | H160: 29662.20 | I160: 30275.60 | J160: 30631.20 | K160: 29920 | L160: 28951 | M160: 0.27408
A161: 152 | B161: PETRONET | C161: 217.6 | D161: 218.58 | E161: 215.52 | F161: 213.43 | G161: 210.37 | H161: 220.67 | I161: 223.73 | J161: 225.82 | K161: 221.65 | L161: 216.5 | M161: 19.07537
A162: 153 | B162: PIDILITIND | C162: 935.6 | D162: 945.93 | E162: 919.87 | F162: 904.13 | G162: 878.07 | H162: 961.67 | I162: 987.73 | J162: 1003.47 | K162: 972 | L162: 930.2 | M162: 5.00756
A163: 154 | B163: PEL | C163: 2013.85 | D163: 2021.95 | E163: 1975.90 | F163: 1937.95 | G163: 1891.90 | H163: 2059.90 | I163: 2105.95 | J163: 2143.90 | K163: 2068 | L163: 1984 | M163: 5.99611
A164: 155 | B164: PFC | C164: 91.55 | D164: 91.87 | E164: 89.98 | F164: 88.42 | G164: 86.53 | H164: 93.43 | I164: 95.32 | J164: 96.88 | K164: 93.75 | L164: 90.3 | M164: 95.72677
A165: 156 | B165: POWERGRID | C165: 186.15 | D165: 187.10 | E165: 184.65 | F165: 183.15 | G165: 180.70 | H165: 188.60 | I165: 191.05 | J165: 192.55 | K165: 189.55 | L165: 185.6 | M165: 28.71863
A166: 157 | B166: PRESTIGE | C166: 190.95 | D166: 189.87 | E166: 185.98 | F166: 181.02 | G166: 177.13 | H166: 194.83 | I166: 198.72 | J166: 203.68 | K166: 193.75 | L166: 184.9 | M166: 1.77804
A167: 158 | B167: PGHH | C167: 9491.1 | D167: 9427.45 | E167: 9219.90 | F167: 8948.70 | G167: 8741.15 | H167: 9698.65 | I167: 9906.20 | J167: 10177.40 | K167: 9635 | L167: 9156.25 | M167: 0.03555
A168: 159 | B168: PNB | C168: 72.55 | D168: 72.85 | E168: 70.45 | F168: 68.35 | G168: 65.95 | H168: 74.95 | I168: 77.35 | J168: 79.45 | K168: 75.25 | L168: 70.75 | M168: 436.26784
A169: 160 | B169: RBLBANK | C169: 526.45 | D169: 526.92 | E169: 516.43 | F169: 506.42 | G169: 495.93 | H169: 536.93 | I169: 547.42 | J169: 557.43 | K169: 537.4 | L169: 516.9 | M169: 23.84629
A170: 161 | B170: RAJESHEXPO | C170: 568.6 | D170: 569.68 | E170: 567.42 | F170: 566.23 | G170: 563.97 | H170: 570.87 | I170: 573.13 | J170: 574.32 | K170: 571.95 | L170: 568.5 | M170: 4.44475
A171: 162 | B171: RELCAPITAL | C171: 235.6 | D171: 237.78 | E171: 230.92 | F171: 226.23 | G171: 219.37 | H171: 242.47 | I171: 249.33 | J171: 254.02 | K171: 244.65 | L171: 233.1 | M171: 60.16839
A172: 163 | B172: RCOM | C172: 11.65 | D172: 11.45 | E172: 10.95 | F172: 10.25 | G172: 9.75 | H172: 12.15 | I172: 12.65 | J172: 13.35 | K172: 11.95 | L172: 10.75 | M172: 926.40562
A173: 164 | B173: RELIANCE | C173: 1057 | D173: 1064.87 | E173: 1044.23 | F173: 1031.47 | G173: 1010.83 | H173: 1077.63 | I173: 1098.27 | J173: 1111.03 | K173: 1085.5 | L173: 1052.1 | M173: 88.06701
A174: 165 | B174: RELINFRA | C174: 350.55 | D174: 350.80 | E174: 344.85 | F174: 339.15 | G174: 333.20 | H174: 356.50 | I174: 362.45 | J174: 368.15 | K174: 356.75 | L174: 345.1 | M174: 27.07755
A175: 166 | B175: RPOWER | C175: 29.75 | D175: 29.93 | E175: 29.27 | F175: 28.78 | G175: 28.12 | H175: 30.42 | I175: 31.08 | J175: 31.57 | K175: 30.6 | L175: 29.45 | M175: 112.28703
A176: 167 | B176: RECLTD | C176: 111.55 | D176: 112.27 | E176: 109.88 | F176: 108.22 | G176: 105.83 | H176: 113.93 | I176: 116.32 | J176: 117.98 | K176: 114.65 | L176: 110.6 | M176: 55.50197
A177: 168 | B177: SRF | C177: 1873.6 | D177: 1870.30 | E177: 1853.30 | F177: 1833.00 | G177: 1816.00 | H177: 1890.60 | I177: 1907.60 | J177: 1927.90 | K177: 1887.3 | L177: 1850 | M177: 4.38603
A178: 169 | B178: SHREECEM | C178: 13514.2 | D178: 13494.97 | E178: 13389.93 | F178: 13265.67 | G178: 13160.63 | H178: 13619.23 | I178: 13724.27 | J178: 13848.53 | K178: 13600 | L178: 13370.7 | M178: 0.57103
A179: 170 | B179: SRTRANSFIN | C179: 1119.75 | D179: 1107.53 | E179: 1080.22 | F179: 1040.68 | G179: 1013.37 | H179: 1147.07 | I179: 1174.38 | J179: 1213.92 | K179: 1134.85 | L179: 1068 | M179: 16.57603
A180: 171 | B180: SIEMENS | C180: 907.45 | D180: 898.80 | E180: 885.20 | F180: 862.95 | G180: 849.35 | H180: 921.05 | I180: 934.65 | J180: 956.90 | K180: 912.4 | L180: 876.55 | M180: 2.998
A181: 172 | B181: SBIN | C181: 273.15 | D181: 272.75 | E181: 266.40 | F181: 259.65 | G181: 253.30 | H181: 279.50 | I181: 285.85 | J181: 292.60 | K181: 279.1 | L181: 266 | M181: 334.01683
A182: 173 | B182: SAIL | C182: 65.35 | D182: 65.23 | E182: 64.47 | F182: 63.58 | G182: 62.82 | H182: 66.12 | I182: 66.88 | J182: 67.77 | K182: 66 | L182: 64.35 | M182: 47.26655
A183: 174 | B183: SPARC | C183: 299.6 | D183: 304.13 | E183: 293.57 | F183: 287.53 | G183: 276.97 | H183: 310.17 | I183: 320.73 | J183: 326.77 | K183: 314.7 | L183: 298.1 | M183: 4.11522
A184: 175 | B184: SUNPHARMA | C184: 562.05 | D184: 565.87 | E184: 555.83 | F184: 549.62 | G184: 539.58 | H184: 572.08 | I184: 582.12 | J184: 588.33 | K184: 575.9 | L184: 559.65 | M184: 27.83468
A185: 176 | B185: SUNTV | C185: 651.45 | D185: 653.48 | E185: 638.27 | F185: 625.08 | G185: 609.87 | H185: 666.67 | I185: 681.88 | J185: 695.07 | K185: 668.7 | L185: 640.3 | M185: 12.10908
A186: 177 | B186: SUZLON | C186: 6.25 | D186: 6.27 | E186: 6.13 | F186: 6.02 | G186: 5.88 | H186: 6.38 | I186: 6.52 | J186: 6.63 | K186: 6.4 | L186: 6.15 | M186: 125.14516
A187: 178 | B187: SYNDIBANK | C187: 35 | D187: 35.00 | E187: 33.20 | F187: 31.40 | G187: 29.60 | H187: 36.80 | I187: 38.60 | J187: 40.40 | K187: 36.8 | L187: 33.2 | M187: 165.23166
A188: 179 | B188: SYNGENE | C188: 570.3 | D188: 573.90 | E188: 561.80 | F188: 553.30 | G188: 541.20 | H188: 582.40 | I188: 594.50 | J188: 603.00 | K188: 586 | L188: 565.4 | M188: 0.93693
A189: 180 | B189: TV18BRDCST | C189: 37.25 | D189: 37.43 | E189: 36.82 | F189: 36.38 | G189: 35.77 | H189: 37.87 | I189: 38.48 | J189: 38.92 | K189: 38.05 | L189: 37 | M189: 27.79428
A190: 181 | B190: TVSMOTOR | C190: 539.65 | D190: 541.82 | E190: 533.63 | F190: 527.62 | G190: 519.43 | H190: 547.83 | I190: 556.02 | J190: 562.03 | K190: 550 | L190: 535.8 | M190: 12.62296
A191: 182 | B191: TATACHEM | C191: 681.15 | D191: 681.05 | E191: 674.15 | F191: 667.15 | G191: 660.25 | H191: 688.05 | I191: 694.95 | J191: 701.95 | K191: 687.95 | L191: 674.05 | M191: 3.21099
A192: 183 | B192: TATACOMM | C192: 469.2 | D192: 472.95 | E192: 458.90 | F192: 448.60 | G192: 434.55 | H192: 483.25 | I192: 497.30 | J192: 507.60 | K192: 487 | L192: 462.65 | M192: 3.40834
A193: 184 | B193: TCS | C193: 1894.8 | D193: 1883.07 | E193: 1856.73 | F193: 1818.67 | G193: 1792.33 | H193: 1921.13 | I193: 1947.47 | J193: 1985.53 | K193: 1909.4 | L193: 1845 | M193: 24.04883
A194: 185 | B194: TATAGLOBAL | C194: 227.3 | D194: 225.17 | E194: 221.53 | F194: 215.77 | G194: 212.13 | H194: 230.93 | I194: 234.57 | J194: 240.33 | K194: 228.8 | L194: 219.4 | M194: 22.30812
A195: 186 | B195: TATAMTRDVR | C195: 96.9 | D195: 97.13 | E195: 95.72 | F195: 94.53 | G195: 93.12 | H195: 98.32 | I195: 99.73 | J195: 100.92 | K195: 98.55 | L195: 95.95 | M195: 24.36581
A196: 187 | B196: TATAMOTORS | C196: 177.25 | D196: 178.27 | E196: 175.03 | F196: 172.82 | G196: 169.58 | H196: 180.48 | I196: 183.72 | J196: 185.93 | K196: 181.5 | L196: 176.05 | M196: 156.02414
A197: 188 | B197: TATAPOWER | C197: 77.75 | D197: 78.15 | E197: 76.25 | F197: 74.75 | G197: 72.85 | H197: 79.65 | I197: 81.55 | J197: 83.05 | K197: 80.05 | L197: 76.65 | M197: 174.0993
A198: 189 | B198: TATASTEEL | C198: 564.5 | D198: 566.53 | E198: 561.07 | F198: 557.63 | G198: 552.17 | H198: 569.97 | I198: 575.43 | J198: 578.87 | K198: 572 | L198: 563.1 | M198: 40.15319
A199: 190 | B199: TECHM | C199: 685.1 | D199: 678.48 | E199: 664.52 | F199: 643.93 | G199: 629.97 | H199: 699.07 | I199: 713.03 | J199: 733.62 | K199: 692.45 | L199: 657.9 | M199: 38.25436
A200: 191 | B200: RAMCOCEM | C200: 602 | D200: 590.65 | E200: 571.50 | F200: 541.00 | G200: 521.85 | H200: 621.15 | I200: 640.30 | J200: 670.80 | K200: 609.8 | L200: 560.15 | M200: 15.22098
A201: 192 | B201: TITAN | C201: 830.5 | D201: 830.43 | E201: 819.47 | F201: 808.43 | G201: 797.47 | H201: 841.47 | I201: 852.43 | J201: 863.47 | K201: 841.4 | L201: 819.4 | M201: 18.76874
A202: 193 | B202: TORNTPHARM | C202: 1660.45 | D202: 1658.42 | E202: 1641.68 | F202: 1622.92 | G202: 1606.18 | H202: 1677.18 | I202: 1693.92 | J202: 1712.68 | K202: 1675.15 | L202: 1639.65 | M202: 2.00489
A203: 194 | B203: TORNTPOWER | C203: 227.75 | D203: 231.32 | E203: 222.93 | F203: 218.12 | G203: 209.73 | H203: 236.13 | I203: 244.52 | J203: 249.33 | K203: 239.7 | L203: 226.5 | M203: 13.34249
A204: 195 | B204: UPL | C204: 636.8 | D204: 636.07 | E204: 624.23 | F204: 611.67 | G204: 599.83 | H204: 648.63 | I204: 660.47 | J204: 673.03 | K204: 647.9 | L204: 623.5 | M204: 24.9538
A205: 196 | B205: ULTRACEMCO | C205: 3463.65 | D205: 3462.38 | E205: 3423.82 | F205: 3383.98 | G205: 3345.42 | H205: 3502.22 | I205: 3540.78 | J205: 3580.62 | K205: 3500.95 | L205: 3422.55 | M205: 1.59145
... 30 more rows

Sheet MidCap Intra
L5: Back To Main Page
A6: FOR INTRA DAY TRADING | K6: =Main!B10 -> 2018-10-31
A9: Sr.no | B9: Scrip | C9: CLOSE RATE | D9: Pivot Point | E9: Supports | H9: Resistances
C10: Point | E10: S1 | F10: S2 | G10: S3 | H10: R1 | I10: R2 | J10: R3 | K10: HIGH | L10: LOW | M10: Total Trade Quanity in Lakhs
A11: 1 | B11: 3MINDIA | C11: 20271.75 | D11: 20175.98 | E11: 19898.52 | F11: 19525.28 | G11: 19247.82 | H11: 20549.22 | I11: 20826.68 | J11: 21199.92 | K11: 20453.45 | L11: 19802.75 | M11: 0.01894
A12: 2 | B12: 8KMILES | C12: 75.85 | D12: 75.85 | E12: 75.85 | F12: 75.85 | G12: 75.85 | H12: 75.85 | I12: 75.85 | J12: 75.85 | K12: 75.85 | L12: 75.85 | M12: 2.58606
A13: 3 | B13: AARTIIND | C13: 1260.2 | D13: 1261.73 | E13: 1248.47 | F13: 1236.73 | G13: 1223.47 | H13: 1273.47 | I13: 1286.73 | J13: 1298.47 | K13: 1275 | L13: 1250 | M13: 0.62352
A14: 4 | B14: ABAN | C14: 73.75 | D14: 73.87 | E14: 72.38 | F14: 71.02 | G14: 69.53 | H14: 75.23 | I14: 76.72 | J14: 78.08 | K14: 75.35 | L14: 72.5 | M14: 3.79551
A15: 5 | B15: ABB | C15: 1208.2 | D15: 1221.07 | E15: 1177.13 | F15: 1146.07 | G15: 1102.13 | H15: 1252.13 | I15: 1296.07 | J15: 1327.13 | K15: 1265 | L15: 1190 | M15: 3.70386
A16: 6 | B16: ABCAPITAL | C16: 100.85 | D16: 101.65 | E16: 99.30 | F16: 97.75 | G16: 95.40 | H16: 103.20 | I16: 105.55 | J16: 107.10 | K16: 104 | L16: 100.1 | M16: 12.88058
A17: 7 | B17: ABFRL | C17: 180.25 | D17: 180.95 | E17: 177.50 | F17: 174.75 | G17: 171.30 | H17: 183.70 | I17: 187.15 | J17: 189.90 | K17: 184.4 | L17: 178.2 | M17: 3.15475
A18: 8 | B18: ACC | C18: 1344.9 | D18: 1349.03 | E18: 1332.07 | F18: 1319.23 | G18: 1302.27 | H18: 1361.87 | I18: 1378.83 | J18: 1391.67 | K18: 1366 | L18: 1336.2 | M18: 6.2705
A19: 9 | B19: ADANIPORTS | C19: 322.6 | D19: 326.00 | E19: 316.60 | F19: 310.60 | G19: 301.20 | H19: 332.00 | I19: 341.40 | J19: 347.40 | K19: 335.4 | L19: 320 | M19: 43.01781
A20: 10 | B20: ADANIPOWER | C20: 44.75 | D20: 43.98 | E20: 42.37 | F20: 39.98 | G20: 38.37 | H20: 46.37 | I20: 47.98 | J20: 50.37 | K20: 45.6 | L20: 41.6 | M20: 523.94875
A21: 11 | B21: ADANITRANS | C21: 162.6 | D21: 166.20 | E21: 158.40 | F21: 154.20 | G21: 146.40 | H21: 170.40 | I21: 178.20 | J21: 182.40 | K21: 174 | L21: 162 | M21: 3.13079
A22: 12 | B22: ADVENZYMES | C22: 177.4 | D22: 178.65 | E22: 175.30 | F22: 173.20 | G22: 169.85 | H22: 180.75 | I22: 184.10 | J22: 186.20 | K22: 182 | L22: 176.55 | M22: 0.899
A23: 13 | B23: AEGISCHEM | C23: 226.2 | D23: 227.07 | E23: 223.58 | F23: 220.97 | G23: 217.48 | H23: 229.68 | I23: 233.17 | J23: 235.78 | K23: 230.55 | L23: 224.45 | M23: 1.16264
A24: 14 | B24: AIAENG | C24: 1731.1 | D24: 1732.92 | E24: 1691.03 | F24: 1650.97 | G24: 1609.08 | H24: 1772.98 | I24: 1814.87 | J24: 1854.93 | K24: 1774.8 | L24: 1692.85 | M24: 0.32163
A25: 15 | B25: AJANTPHARM | C25: 1010 | D25: 1017.75 | E25: 997.85 | F25: 985.70 | G25: 965.80 | H25: 1029.90 | I25: 1049.80 | J25: 1061.95 | K25: 1037.65 | L25: 1005.6 | M25: 2.56601
A26: 16 | B26: AKZOINDIA | C26: 1502.3 | D26: 1508.60 | E26: 1473.20 | F26: 1444.10 | G26: 1408.70 | H26: 1537.70 | I26: 1573.10 | J26: 1602.20 | K26: 1544 | L26: 1479.5 | M26: 0.13226
A27: 17 | B27: ALBK | C27: 41.75 | D27: 41.78 | E27: 40.12 | F27: 38.48 | G27: 36.82 | H27: 43.42 | I27: 45.08 | J27: 46.72 | K27: 43.45 | L27: 40.15 | M27: 82.25585
A28: 18 | B28: ALKEM | C28: 1918.6 | D28: 1920.97 | E28: 1898.63 | F28: 1878.67 | G28: 1856.33 | H28: 1940.93 | I28: 1963.27 | J28: 1983.23 | K28: 1943.3 | L28: 1901 | M28: 0.27349
A29: 19 | B29: ALLCARGO | C29: 101.35 | D29: 101.33 | E29: 99.77 | F29: 98.18 | G29: 96.62 | H29: 102.92 | I29: 104.48 | J29: 106.07 | K29: 102.9 | L29: 99.75 | M29: 1.00141
A30: 20 | B30: AMARAJABAT | C30: 753.2 | D30: 758.05 | E30: 743.60 | F30: 734.00 | G30: 719.55 | H30: 767.65 | I30: 782.10 | J30: 791.70 | K30: 772.5 | L30: 748.45 | M30: 2.75795
A31: 21 | B31: AMBUJACEM | C31: 192.45 | D31: 193.87 | E31: 190.63 | F31: 188.82 | G31: 185.58 | H31: 195.68 | I31: 198.92 | J31: 200.73 | K31: 197.1 | L31: 192.05 | M31: 39.81871
A32: 22 | B32: ANDHRABANK | C32: 27.8 | D32: 27.53 | E32: 26.72 | F32: 25.63 | G32: 24.82 | H32: 28.62 | I32: 29.43 | J32: 30.52 | K32: 28.35 | L32: 26.45 | M32: 37.8156
A33: 23 | B33: APLAPOLLO | C33: 1208.8 | D33: 1210.57 | E33: 1196.23 | F33: 1183.67 | G33: 1169.33 | H33: 1223.13 | I33: 1237.47 | J33: 1250.03 | K33: 1224.9 | L33: 1198 | M33: 0.27775
A34: 24 | B34: APLLTD | C34: 593.55 | D34: 595.85 | E34: 577.70 | F34: 561.85 | G34: 543.70 | H34: 611.70 | I34: 629.85 | J34: 645.70 | K34: 614 | L34: 580 | M34: 0.8902
A35: 25 | B35: APOLLOHOSP | C35: 1166.6 | D35: 1157.53 | E35: 1139.07 | F35: 1111.53 | G35: 1093.07 | H35: 1185.07 | I35: 1203.53 | J35: 1231.07 | K35: 1176 | L35: 1130 | M35: 6.17733
A36: 26 | B36: APOLLOTYRE | C36: 215.05 | D36: 216.12 | E36: 212.53 | F36: 210.02 | G36: 206.43 | H36: 218.63 | I36: 222.22 | J36: 224.73 | K36: 219.7 | L36: 213.6 | M36: 23.83136
A37: 27 | B37: ARVIND | C37: 345.85 | D37: 341.45 | E37: 335.00 | F37: 324.15 | G37: 317.70 | H37: 352.30 | I37: 358.75 | J37: 369.60 | K37: 347.9 | L37: 330.6 | M37: 23.5479
A38: 28 | B38: ASAHIINDIA | C38: 285.85 | D38: 284.57 | E38: 278.18 | F38: 270.52 | G38: 264.13 | H38: 292.23 | I38: 298.62 | J38: 306.28 | K38: 290.95 | L38: 276.9 | M38: 0.89286
A39: 29 | B39: ASHOKA | C39: 110.7 | D39: 109.90 | E39: 107.30 | F39: 103.90 | G39: 101.30 | H39: 113.30 | I39: 115.90 | J39: 119.30 | K39: 112.5 | L39: 106.5 | M39: 1.0023
A40: 30 | B40: ASHOKLEY | C40: 115 | D40: 115.32 | E40: 113.88 | F40: 112.77 | G40: 111.33 | H40: 116.43 | I40: 117.87 | J40: 118.98 | K40: 116.75 | L40: 114.2 | M40: 138.68396
A41: 31 | B41: ASIANPAINT | C41: 1196.3 | D41: 1193.28 | E41: 1178.57 | F41: 1160.83 | G41: 1146.12 | H41: 1211.02 | I41: 1225.73 | J41: 1243.47 | K41: 1208 | L41: 1175.55 | M41: 10.75337
A42: 32 | B42: ASTRAL | C42: 909.2 | D42: 896.47 | E42: 874.98 | F42: 840.77 | G42: 819.28 | H42: 930.68 | I42: 952.17 | J42: 986.38 | K42: 917.95 | L42: 862.25 | M42: 1.19956
A43: 33 | B43: ATUL | C43: 3260.2 | D43: 3263.40 | E43: 3217.80 | F43: 3175.40 | G43: 3129.80 | H43: 3305.80 | I43: 3351.40 | J43: 3393.80 | K43: 3309 | L43: 3221 | M43: 0.10664
A44: 34 | B44: AUBANK | C44: 546.1 | D44: 540.02 | E44: 530.08 | F44: 514.07 | G44: 504.13 | H44: 556.03 | I44: 565.97 | J44: 581.98 | K44: 549.95 | L44: 524 | M44: 4.09842
A45: 35 | B45: AUROPHARMA | C45: 770.5 | D45: 769.23 | E45: 761.97 | F45: 753.43 | G45: 746.17 | H45: 777.77 | I45: 785.03 | J45: 793.57 | K45: 776.5 | L45: 760.7 | M45: 16.69833
A46: 36 | B46: AVANTIFEED | C46: 397.45 | D46: 397.97 | E46: 390.73 | F46: 384.02 | G46: 376.78 | H46: 404.68 | I46: 411.92 | J46: 418.63 | K46: 405.2 | L46: 391.25 | M46: 3.90803
A47: 37 | B47: AXISBANK | C47: 562.7 | D47: 564.48 | E47: 557.22 | F47: 551.73 | G47: 544.47 | H47: 569.97 | I47: 577.23 | J47: 582.72 | K47: 571.75 | L47: 559 | M47: 85.22604
A48: 38 | B48: BAJAJ-AUTO | C48: 2556.25 | D48: 2557.38 | E48: 2531.77 | F48: 2507.28 | G48: 2481.67 | H48: 2581.87 | I48: 2607.48 | J48: 2631.97 | K48: 2583 | L48: 2532.9 | M48: 2.70336
A49: 39 | B49: BAJAJCORP | C49: 354 | D49: 354.70 | E49: 349.30 | F49: 344.60 | G49: 339.20 | H49: 359.40 | I49: 364.80 | J49: 369.50 | K49: 360.1 | L49: 350 | M49: 0.69615
A50: 40 | B50: BAJAJELEC | C50: 472.5 | D50: 471.00 | E50: 465.05 | F50: 457.60 | G50: 451.65 | H50: 478.45 | I50: 484.40 | J50: 491.85 | K50: 476.95 | L50: 463.55 | M50: 1.27139
A51: 41 | B51: BAJAJFINSV | C51: 5391.15 | D51: 5389.57 | E51: 5324.13 | F51: 5257.12 | G51: 5191.68 | H51: 5456.58 | I51: 5522.02 | J51: 5589.03 | K51: 5455 | L51: 5322.55 | M51: 2.91037
A52: 42 | B52: BAJAJHIND | C52: 10.45 | D52: 10.55 | E52: 10.25 | F52: 10.05 | G52: 9.75 | H52: 10.75 | I52: 11.05 | J52: 11.25 | K52: 10.85 | L52: 10.35 | M52: 34.70595
A53: 43 | B53: BAJAJHLDNG | C53: 2734.4 | D53: 2714.47 | E53: 2679.93 | F53: 2625.47 | G53: 2590.93 | H53: 2768.93 | I53: 2803.47 | J53: 2857.93 | K53: 2749 | L53: 2660 | M53: 0.06168
A54: 44 | B54: BAJFINANCE | C54: 2356.35 | D54: 2376.87 | E54: 2329.83 | F54: 2303.32 | G54: 2256.28 | H54: 2403.38 | I54: 2450.42 | J54: 2476.93 | K54: 2423.9 | L54: 2350.35 | M54: 22.0223
A55: 45 | B55: BALKRISIND | C55: 1069.25 | D55: 1081.67 | E55: 1048.43 | F55: 1027.62 | G55: 994.38 | H55: 1102.48 | I55: 1135.72 | J55: 1156.53 | K55: 1114.9 | L55: 1060.85 | M55: 9.20161
A56: 46 | B56: BALLARPUR | C56: 6.2 | D56: 6.32 | E56: 6.03 | F56: 5.87 | G56: 5.58 | H56: 6.48 | I56: 6.77 | J56: 6.93 | K56: 6.6 | L56: 6.15 | M56: 5.64244
A57: 47 | B57: BALMLAWRIE | C57: 196.3 | D57: 195.52 | E57: 190.83 | F57: 185.37 | G57: 180.68 | H57: 200.98 | I57: 205.67 | J57: 211.13 | K57: 200.2 | L57: 190.05 | M57: 0.72658
A58: 48 | B58: BALRAMCHIN | C58: 109.95 | D58: 110.50 | E58: 107.65 | F58: 105.35 | G58: 102.50 | H58: 112.80 | I58: 115.65 | J58: 117.95 | K58: 113.35 | L58: 108.2 | M58: 65.53926
A59: 49 | B59: BANKBARODA | C59: 110 | D59: 109.85 | E59: 106.00 | F59: 102.00 | G59: 98.15 | H59: 113.85 | I59: 117.70 | J59: 121.70 | K59: 113.7 | L59: 105.85 | M59: 512.40583
A60: 50 | B60: BANKINDIA | C60: 84.35 | D60: 84.20 | E60: 80.40 | F60: 76.45 | G60: 72.65 | H60: 88.15 | I60: 91.95 | J60: 95.90 | K60: 88 | L60: 80.25 | M60: 137.18542
A61: 51 | B61: BASF | C61: 1656 | D61: 1657.03 | E61: 1589.07 | F61: 1522.13 | G61: 1454.17 | H61: 1723.97 | I61: 1791.93 | J61: 1858.87 | K61: 1725 | L61: 1590.1 | M61: 0.51782
A62: 52 | B62: BATAINDIA | C62: 939.55 | D62: 938.65 | E62: 922.75 | F62: 905.95 | G62: 890.05 | H62: 955.45 | I62: 971.35 | J62: 988.15 | K62: 954.55 | L62: 921.85 | M62: 9.17806
A63: 53 | B63: BBTC | C63: 1204.05 | D63: 1204.23 | E63: 1184.92 | F63: 1165.78 | G63: 1146.47 | H63: 1223.37 | I63: 1242.68 | J63: 1261.82 | K63: 1223.55 | L63: 1185.1 | M63: 1.45393
A64: 54 | B64: BEL | C64: 89.85 | D64: 89.08 | E64: 87.17 | F64: 84.48 | G64: 82.57 | H64: 91.77 | I64: 93.68 | J64: 96.37 | K64: 91 | L64: 86.4 | M64: 178.45565
A65: 55 | B65: BEML | C65: 585.65 | D65: 578.57 | E65: 562.58 | F65: 539.52 | G65: 523.53 | H65: 601.63 | I65: 617.62 | J65: 640.68 | K65: 594.55 | L65: 555.5 | M65: 11.01102
A66: 56 | B66: BERGEPAINT | C66: 285 | D66: 285.42 | E66: 283.08 | F66: 281.17 | G66: 278.83 | H66: 287.33 | I66: 289.67 | J66: 291.58 | K66: 287.75 | L66: 283.5 | M66: 3.83406
A67: 57 | B67: BFUTILITIE | C67: 200.3 | D67: 202.70 | E67: 196.90 | F67: 193.50 | G67: 187.70 | H67: 206.10 | I67: 211.90 | J67: 215.30 | K67: 208.5 | L67: 199.3 | M67: 2.41889
A68: 58 | B68: BGRENERGY | C68: 55.8 | D68: 55.50 | E68: 54.30 | F68: 52.80 | G68: 51.60 | H68: 57.00 | I68: 58.20 | J68: 59.70 | K68: 56.7 | L68: 54 | M68: 0.8475
A69: 59 | B69: BHARATFIN | C69: 839.9 | D69: 843.78 | E69: 826.67 | F69: 813.43 | G69: 796.32 | H69: 857.02 | I69: 874.13 | J69: 887.37 | K69: 860.9 | L69: 830.55 | M69: 7.57033
A70: 60 | B70: BHARATFORG | C70: 569.5 | D70: 565.73 | E70: 557.27 | F70: 545.03 | G70: 536.57 | H70: 577.97 | I70: 586.43 | J70: 598.67 | K70: 574.2 | L70: 553.5 | M70: 9.52329
A71: 61 | B71: BHARTIARTL | C71: 292.6 | D71: 293.05 | E71: 288.90 | F71: 285.20 | G71: 281.05 | H71: 296.75 | I71: 300.90 | J71: 304.60 | K71: 297.2 | L71: 289.35 | M71: 48.07626
A72: 62 | B72: BHEL | C72: 69.15 | D72: 69.03 | E72: 68.12 | F72: 67.08 | G72: 66.17 | H72: 70.07 | I72: 70.98 | J72: 72.02 | K72: 69.95 | L72: 68 | M72: 177.63932
A73: 63 | B73: BHUSANSTL | C73: 29.4 | D73: 29.48 | E73: 29.02 | F73: 28.63 | G73: 28.17 | H73: 29.87 | I73: 30.33 | J73: 30.72 | K73: 29.95 | L73: 29.1 | M73: 11.62283
A74: 64 | B74: BIOCON | C74: 639.7 | D74: 634.82 | E74: 624.88 | F74: 610.07 | G74: 600.13 | H74: 649.63 | I74: 659.57 | J74: 674.38 | K74: 644.75 | L74: 620 | M74: 29.0831
A75: 65 | B75: BIRLACORPN | C75: 570.65 | D75: 575.45 | E75: 562.20 | F75: 553.75 | G75: 540.50 | H75: 583.90 | I75: 597.15 | J75: 605.60 | K75: 588.7 | L75: 567 | M75: 0.21121
A76: 66 | B76: BLISSGVS | C76: 166.55 | D76: 166.48 | E76: 165.12 | F76: 163.68 | G76: 162.32 | H76: 167.92 | I76: 169.28 | J76: 170.72 | K76: 167.85 | L76: 165.05 | M76: 0.84931
A77: 67 | B77: BLUEDART | C77: 2799.8 | D77: 2767.60 | E77: 2695.20 | F77: 2590.60 | G77: 2518.20 | H77: 2872.20 | I77: 2944.60 | J77: 3049.20 | K77: 2840 | L77: 2663 | M77: 0.05087
A78: 68 | B78: BLUESTARCO | C78: 557.65 | D78: 554.53 | E78: 544.07 | F78: 530.48 | G78: 520.02 | H78: 568.12 | I78: 578.58 | J78: 592.17 | K78: 565 | L78: 540.95 | M78: 0.19331
A79: 69 | B79: BOMDYEING | C79: 95.05 | D79: 95.05 | E79: 95.05 | F79: 95.05 | G79: 95.05 | H79: 95.05 | I79: 95.05 | J79: 95.05 | K79: 95.05 | L79: 95.05 | M79: 0.58822
A80: 70 | B80: BOSCHLTD | C80: 19738.8 | D80: 19406.35 | E80: 18932.70 | F80: 18126.60 | G80: 17652.95 | H80: 20212.45 | I80: 20686.10 | J80: 21492.20 | K80: 19880 | L80: 18600.25 | M80: 0.187
A81: 71 | B81: BPCL | C81: 266.35 | D81: 268.03 | E81: 262.37 | F81: 258.38 | G81: 252.72 | H81: 272.02 | I81: 277.68 | J81: 281.67 | K81: 273.7 | L81: 264.05 | M81: 104.99832
A82: 72 | B82: BRFL | C82: 12.8 | D82: 13.20 | E82: 12.40 | F82: 12.00 | G82: 11.20 | H82: 13.60 | I82: 14.40 | J82: 14.80 | K82: 14 | L82: 12.8 | M82: 3.22878
A83: 73 | B83: BRIGADE | C83: 160 | D83: 161.57 | E83: 154.93 | F83: 149.87 | G83: 143.23 | H83: 166.63 | I83: 173.27 | J83: 178.33 | K83: 168.2 | L83: 156.5 | M83: 1.49374
A84: 74 | B84: BRITANNIA | C84: 5447.9 | D84: 5430.10 | E84: 5393.20 | F84: 5338.50 | G84: 5301.60 | H84: 5484.80 | I84: 5521.70 | J84: 5576.40 | K84: 5467 | L84: 5375.4 | M84: 1.34636
A85: 75 | B85: BSE | C85: 600.5 | D85: 603.17 | E85: 596.33 | F85: 592.17 | G85: 585.33 | H85: 607.33 | I85: 614.17 | J85: 618.33 | K85: 610 | L85: 599 | M85: 1.05462
A86: 77 | B86: CADILAHC | C86: 348.25 | D86: 350.97 | E86: 344.43 | F86: 340.62 | G86: 334.08 | H86: 354.78 | I86: 361.32 | J86: 365.13 | K86: 357.5 | L86: 347.15 | M86: 10.91197
A87: 78 | B87: CANBK | C87: 256.25 | D87: 251.93 | E87: 240.17 | F87: 224.08 | G87: 212.32 | H87: 268.02 | I87: 279.78 | J87: 295.87 | K87: 263.7 | L87: 235.85 | M87: 216.00916
A88: 79 | B88: CANFINHOME | C88: 265.05 | D88: 267.38 | E88: 260.77 | F88: 256.48 | G88: 249.87 | H88: 271.67 | I88: 278.28 | J88: 282.57 | K88: 274 | L88: 263.1 | M88: 13.08018
A89: 80 | B89: CAPF | C89: 465.4 | D89: 467.30 | E89: 459.70 | F89: 454.00 | G89: 446.40 | H89: 473.00 | I89: 480.60 | J89: 486.30 | K89: 474.9 | L89: 461.6 | M89: 10.16814
A90: 81 | B90: CAPLIPOINT | C90: 404.65 | D90: 403.60 | E90: 400.00 | F90: 395.35 | G90: 391.75 | H90: 408.25 | I90: 411.85 | J90: 416.50 | K90: 407.2 | L90: 398.95 | M90: 0.18847
A91: 82 | B91: CARBORUNIV | C91: 363.05 | D91: 360.63 | E91: 356.42 | F91: 349.78 | G91: 345.57 | H91: 367.27 | I91: 371.48 | J91: 378.12 | K91: 364.85 | L91: 354 | M91: 1.42311
A92: 83 | B92: CARERATING | C92: 1081.45 | D92: 1084.68 | E92: 1068.97 | F92: 1056.48 | G92: 1040.77 | H92: 1097.17 | I92: 1112.88 | J92: 1125.37 | K92: 1100.4 | L92: 1072.2 | M92: 0.21688
A93: 84 | B93: CASTROLIND | C93: 146.5 | D93: 146.88 | E93: 144.97 | F93: 143.43 | G93: 141.52 | H93: 148.42 | I93: 150.33 | J93: 151.87 | K93: 148.8 | L93: 145.35 | M93: 7.27667
A94: 85 | B94: CCL | C94: 237.1 | D94: 237.20 | E94: 234.60 | F94: 232.10 | G94: 229.50 | H94: 239.70 | I94: 242.30 | J94: 244.80 | K94: 239.8 | L94: 234.7 | M94: 1.44936
A95: 86 | B95: CDSL | C95: 243 | D95: 241.48 | E95: 239.07 | F95: 235.13 | G95: 232.72 | H95: 245.42 | I95: 247.83 | J95: 251.77 | K95: 243.9 | L95: 237.55 | M95: 1.18891
A96: 87 | B96: CEATLTD | C96: 1130.2 | D96: 1136.35 | E96: 1118.85 | F96: 1107.50 | G96: 1090.00 | H96: 1147.70 | I96: 1165.20 | J96: 1176.55 | K96: 1153.85 | L96: 1125 | M96: 5.0324
A97: 88 | B97: CENTRALBK | C97: 31.55 | D97: 31.53 | E97: 30.87 | F97: 30.18 | G97: 29.52 | H97: 32.22 | I97: 32.88 | J97: 33.57 | K97: 32.2 | L97: 30.85 | M97: 8.9742
A98: 89 | B98: CENTURYPLY | C98: 173.85 | D98: 172.93 | E98: 169.92 | F98: 165.98 | G98: 162.97 | H98: 176.87 | I98: 179.88 | J98: 183.82 | K98: 175.95 | L98: 169 | M98: 1.60755
A99: 90 | B99: CENTURYTEX | C99: 811.7 | D99: 812.60 | E99: 799.20 | F99: 786.70 | G99: 773.30 | H99: 825.10 | I99: 838.50 | J99: 851.00 | K99: 826 | L99: 800.1 | M99: 9.08281
A100: 91 | B100: CERA | C100: 2379.4 | D100: 2396.22 | E100: 2336.43 | F100: 2293.47 | G100: 2233.68 | H100: 2439.18 | I100: 2498.97 | J100: 2541.93 | K100: 2456 | L100: 2353.25 | M100: 0.03307
A101: 92 | B101: CGPOWER | C101: 35.45 | D101: 35.72 | E101: 34.83 | F101: 34.22 | G101: 33.33 | H101: 36.33 | I101: 37.22 | J101: 37.83 | K101: 36.6 | L101: 35.1 | M101: 69.02989
A102: 93 | B102: CHAMBLFERT | C102: 144.55 | D102: 144.53 | E102: 140.72 | F102: 136.88 | G102: 133.07 | H102: 148.37 | I102: 152.18 | J102: 156.02 | K102: 148.35 | L102: 140.7 | M102: 2.76439
A103: 94 | B103: CHENNPETRO | C103: 252.1 | D103: 253.05 | E103: 244.20 | F103: 236.30 | G103: 227.45 | H103: 260.95 | I103: 269.80 | J103: 277.70 | K103: 261.9 | L103: 245.15 | M103: 15.22036
A104: 95 | B104: CHOLAFIN | C104: 1243.75 | D104: 1255.17 | E104: 1220.33 | F104: 1196.92 | G104: 1162.08 | H104: 1278.58 | I104: 1313.42 | J104: 1336.83 | K104: 1290 | L104: 1231.75 | M104: 3.45154
A105: 96 | B105: CIPLA | C105: 610.35 | D105: 618.38 | E105: 600.07 | F105: 589.78 | G105: 571.47 | H105: 628.67 | I105: 646.98 | J105: 657.27 | K105: 636.7 | L105: 608.1 | M105: 24.18471
A106: 97 | B106: COALINDIA | C106: 275.85 | D106: 279.08 | E106: 271.77 | F106: 267.68 | G106: 260.37 | H106: 283.17 | I106: 290.48 | J106: 294.57 | K106: 286.4 | L106: 275 | M106: 27.57658
A107: 98 | B107: COCHINSHIP | C107: 381.3 | D107: 380.27 | E107: 377.58 | F107: 373.87 | G107: 371.18 | H107: 383.98 | I107: 386.67 | J107: 390.38 | K107: 382.95 | L107: 376.55 | M107: 0.85414
A108: 99 | B108: COFFEEDAY | C108: 260.15 | D108: 260.70 | E108: 257.45 | F108: 254.75 | G108: 251.50 | H108: 263.40 | I108: 266.65 | J108: 269.35 | K108: 263.95 | L108: 258 | M108: 1.73881
A109: 100 | B109: COLPAL | C109: 1100.4 | D109: 1108.63 | E109: 1087.27 | F109: 1074.13 | G109: 1052.77 | H109: 1121.77 | I109: 1143.13 | J109: 1156.27 | K109: 1130 | L109: 1095.5 | M109: 7.29179
A110: 101 | B110: CONCOR | C110: 623.35 | D110: 622.00 | E110: 612.35 | F110: 601.35 | G110: 591.70 | H110: 633.00 | I110: 642.65 | J110: 653.65 | K110: 631.65 | L110: 611 | M110: 5.6391
A111: 102 | B111: COROMANDEL | C111: 413.7 | D111: 409.57 | E111: 400.28 | F111: 386.87 | G111: 377.58 | H111: 422.98 | I111: 432.27 | J111: 445.68 | K111: 418.85 | L111: 396.15 | M111: 1.35254
A112: 103 | B112: COX&KINGS | C112: 204.45 | D112: 204.45 | E112: 204.45 | F112: 204.45 | G112: 204.45 | H112: 204.45 | I112: 204.45 | J112: 204.45 | K112: 204.45 | L112: 204.45 | M112: 0.08802
A113: 104 | B113: CRISIL | C113: 1419.4 | D113: 1420.65 | E113: 1392.30 | F113: 1365.20 | G113: 1336.85 | H113: 1447.75 | I113: 1476.10 | J113: 1503.20 | K113: 1449 | L113: 1393.55 | M113: 0.16722
A114: 105 | B114: CROMPTON | C114: 206.2 | D114: 203.92 | E114: 200.58 | F114: 194.97 | G114: 191.63 | H114: 209.53 | I114: 212.87 | J114: 218.48 | K114: 207.25 | L114: 198.3 | M114: 3.07294
A115: 106 | B115: CUB | C115: 171.4 | D115: 170.62 | E115: 169.13 | F115: 166.87 | G115: 165.38 | H115: 172.88 | I115: 174.37 | J115: 176.63 | K115: 172.1 | L115: 168.35 | M115: 3.64595
A116: 107 | B116: CUMMINSIND | C116: 673.3 | D116: 674.15 | E116: 662.60 | F116: 651.90 | G116: 640.35 | H116: 684.85 | I116: 696.40 | J116: 707.10 | K116: 685.7 | L116: 663.45 | M116: 4.55587
A117: 108 | B117: CYIENT | C117: 620.3 | D117: 620.93 | E117: 615.37 | F117: 610.43 | G117: 604.87 | H117: 625.87 | I117: 631.43 | J117: 636.37 | K117: 626.5 | L117: 616 | M117: 2.99818
A118: 109 | B118: DABUR | C118: 396.35 | D118: 397.33 | E118: 387.22 | F118: 378.08 | G118: 367.97 | H118: 406.47 | I118: 416.58 | J118: 425.72 | K118: 407.45 | L118: 388.2 | M118: 48.06534
A119: 110 | B119: DBCORP | C119: 164.45 | D119: 163.70 | E119: 162.40 | F119: 160.35 | G119: 159.05 | H119: 165.75 | I119: 167.05 | J119: 169.10 | K119: 165 | L119: 161.65 | M119: 0.17124
A120: 111 | B120: DBL | C120: 400.85 | D120: 401.05 | E120: 387.80 | F120: 374.75 | G120: 361.50 | H120: 414.10 | I120: 427.35 | J120: 440.40 | K120: 414.3 | L120: 388 | M120: 6.90299
A121: 112 | B121: DBREALTY | C121: 17.35 | D121: 17.35 | E121: 16.90 | F121: 16.45 | G121: 16.00 | H121: 17.80 | I121: 18.25 | J121: 18.70 | K121: 17.8 | L121: 16.9 | M121: 2.69157
A122: 113 | B122: DCAL | C122: 229.15 | D122: 229.65 | E122: 226.50 | F122: 223.85 | G122: 220.70 | H122: 232.30 | I122: 235.45 | J122: 238.10 | K122: 232.8 | L122: 227 | M122: 0.49622
A123: 114 | B123: DCBBANK | C123: 158.9 | D123: 161.37 | E123: 154.78 | F123: 150.67 | G123: 144.08 | H123: 165.48 | I123: 172.07 | J123: 176.18 | K123: 167.95 | L123: 157.25 | M123: 31.51066
A124: 115 | B124: DCMSHRIRAM | C124: 411.75 | D124: 411.30 | E124: 398.70 | F124: 385.65 | G124: 373.05 | H124: 424.35 | I124: 436.95 | J124: 450.00 | K124: 423.9 | L124: 398.25 | M124: 1.49397
A125: 116 | B125: DEEPAKFERT | C125: 201.8 | D125: 202.40 | E125: 196.60 | F125: 191.40 | G125: 185.60 | H125: 207.60 | I125: 213.40 | J125: 218.60 | K125: 208.2 | L125: 197.2 | M125: 1.18737
A126: 117 | B126: DELTACORP | C126: 235.05 | D126: 233.32 | E126: 230.23 | F126: 225.42 | G126: 222.33 | H126: 238.13 | I126: 241.22 | J126: 246.03 | K126: 236.4 | L126: 228.5 | M126: 11.66499
A127: 118 | B127: DEN | C127: 68 | D127: 68.13 | E127: 67.47 | F127: 66.93 | G127: 66.27 | H127: 68.67 | I127: 69.33 | J127: 69.87 | K127: 68.8 | L127: 67.6 | M127: 1.34152
A128: 119 | B128: DENABANK | C128: 16 | D128: 16.23 | E128: 15.32 | F128: 14.63 | G128: 13.72 | H128: 16.92 | I128: 17.83 | J128: 18.52 | K128: 17.15 | L128: 15.55 | M128: 94.3195
A129: 120 | B129: DHFL | C129: 207.1 | D129: 203.97 | E129: 188.23 | F129: 169.37 | G129: 153.63 | H129: 222.83 | I129: 238.57 | J129: 257.43 | K129: 219.7 | L129: 185.1 | M129: 493.9441
A130: 121 | B130: DISHTV | C130: 43.7 | D130: 43.63 | E130: 42.82 | F130: 41.93 | G130: 41.12 | H130: 44.52 | I130: 45.33 | J130: 46.22 | K130: 44.45 | L130: 42.75 | M130: 58.92394
A131: 122 | B131: DIVISLAB | C131: 1485.75 | D131: 1474.25 | E131: 1448.00 | F131: 1410.25 | G131: 1384.00 | H131: 1512.00 | I131: 1538.25 | J131: 1576.00 | K131: 1500.5 | L131: 1436.5 | M131: 33.3843
A132: 123 | B132: DIXON | C132: 2080.05 | D132: 2083.67 | E132: 2037.53 | F132: 1995.02 | G132: 1948.88 | H132: 2126.18 | I132: 2172.32 | J132: 2214.83 | K132: 2129.8 | L132: 2041.15 | M132: 0.13932
A133: 124 | B133: DLF | C133: 161.85 | D133: 162.70 | E133: 158.90 | F133: 155.95 | G133: 152.15 | H133: 165.65 | I133: 169.45 | J133: 172.40 | K133: 166.5 | L133: 159.75 | M133: 57.47572
A134: 125 | B134: DMART | C134: 1273.6 | D134: 1288.22 | E134: 1251.43 | F134: 1229.27 | G134: 1192.48 | H134: 1310.38 | I134: 1347.17 | J134: 1369.33 | K134: 1325 | L134: 1266.05 | M134: 7.29259
A135: 126 | B135: DREDGECORP | C135: 308.5 | D135: 310.85 | E135: 304.20 | F135: 299.90 | G135: 293.25 | H135: 315.15 | I135: 321.80 | J135: 326.10 | K135: 317.5 | L135: 306.55 | M135: 1.05098
A136: 127 | B136: DRREDDY | C136: 2594.3 | D136: 2573.18 | E136: 2536.37 | F136: 2478.43 | G136: 2441.62 | H136: 2631.12 | I136: 2667.93 | J136: 2725.87 | K136: 2610 | L136: 2515.25 | M136: 9.71039
A137: 128 | B137: ECLERX | C137: 1052 | D137: 1051.50 | E137: 1037.15 | F137: 1022.30 | G137: 1007.95 | H137: 1066.35 | I137: 1080.70 | J137: 1095.55 | K137: 1065.85 | L137: 1036.65 | M137: 0.04114
A138: 129 | B138: EDELWEISS | C138: 154.9 | D138: 153.27 | E138: 151.63 | F138: 148.37 | G138: 146.73 | H138: 156.53 | I138: 158.17 | J138: 161.43 | K138: 154.9 | L138: 150 | M138: 11.20646
A139: 130 | B139: EICHERMOT | C139: 21026.15 | D139: 21174.85 | E139: 20836.30 | F139: 20646.45 | G139: 20307.90 | H139: 21364.70 | I139: 21703.25 | J139: 21893.10 | K139: 21513.4 | L139: 20985 | M139: 0.63135
A140: 131 | B140: EIDPARRY | C140: 227.25 | D140: 226.65 | E140: 223.60 | F140: 219.95 | G140: 216.90 | H140: 230.30 | I140: 233.35 | J140: 237.00 | K140: 229.7 | L140: 223 | M140: 0.91353
A141: 132 | B141: EIHOTEL | C141: 165.75 | D141: 165.13 | E141: 163.32 | F141: 160.88 | G141: 159.07 | H141: 167.57 | I141: 169.38 | J141: 171.82 | K141: 166.95 | L141: 162.7 | M141: 0.70253
A142: 133 | B142: EMAMILTD | C142: 402.4 | D142: 405.50 | E142: 393.00 | F142: 383.60 | G142: 371.10 | H142: 414.90 | I142: 427.40 | J142: 436.80 | K142: 418 | L142: 396.1 | M142: 6.49844
A143: 134 | B143: ENDURANCE | C143: 1198.4 | D143: 1181.13 | E143: 1147.27 | F143: 1096.13 | G143: 1062.27 | H143: 1232.27 | I143: 1266.13 | J143: 1317.27 | K143: 1215 | L143: 1130 | M143: 0.77732
A144: 135 | B144: ENGINERSIN | C144: 114.15 | D144: 115.28 | E144: 112.37 | F144: 110.58 | G144: 107.67 | H144: 117.07 | I144: 119.98 | J144: 121.77 | K144: 118.2 | L144: 113.5 | M144: 14.26046
A145: 136 | B145: EQUITAS | C145: 103.3 | D145: 101.90 | E145: 98.40 | F145: 93.50 | G145: 90.00 | H145: 106.80 | I145: 110.30 | J145: 115.20 | K145: 105.4 | L145: 97 | M145: 140.94031
A146: 137 | B146: ERIS | C146: 679.85 | D146: 678.83 | E146: 667.67 | F146: 655.48 | G146: 644.32 | H146: 691.02 | I146: 702.18 | J146: 714.37 | K146: 690 | L146: 666.65 | M146: 0.1288
A147: 138 | B147: EROSMEDIA | C147: 73.75 | D147: 73.00 | E147: 71.75 | F147: 69.75 | G147: 68.50 | H147: 75.00 | I147: 76.25 | J147: 78.25 | K147: 74.25 | L147: 71 | M147: 3.74221
A148: 139 | B148: ESCORTS | C148: 603.95 | D148: 600.45 | E148: 592.10 | F148: 580.25 | G148: 571.90 | H148: 612.30 | I148: 620.65 | J148: 632.50 | K148: 608.8 | L148: 588.6 | M148: 15.40361
A149: 140 | B149: EVEREADY | C149: 181.35 | D149: 183.20 | E149: 177.15 | F149: 172.95 | G149: 166.90 | H149: 187.40 | I149: 193.45 | J149: 197.65 | K149: 189.25 | L149: 179 | M149: 4.01542
A150: 141 | B150: EXIDEIND | C150: 261.45 | D150: 259.33 | E150: 255.12 | F150: 248.78 | G150: 244.57 | H150: 265.67 | I150: 269.88 | J150: 276.22 | K150: 263.55 | L150: 253 | M150: 14.60751
A151: 142 | B151: FCONSUMER | C151: 42.15 | D151: 42.15 | E151: 41.65 | F151: 41.15 | G151: 40.65 | H151: 42.65 | I151: 43.15 | J151: 43.65 | K151: 42.65 | L151: 41.65 | M151: 14.46582
A152: 143 | B152: FEDERALBNK | C152: 83.15 | D152: 83.23 | E152: 80.92 | F152: 78.68 | G152: 76.37 | H152: 85.47 | I152: 87.78 | J152: 90.02 | K152: 85.55 | L152: 81 | M152: 202.00119
A153: 144 | B153: FINCABLES | C153: 496.15 | D153: 499.35 | E153: 486.70 | F153: 477.25 | G153: 464.60 | H153: 508.80 | I153: 521.45 | J153: 530.90 | K153: 512 | L153: 489.9 | M153: 0.49364
A154: 145 | B154: FINPIPE | C154: 556 | D154: 561.93 | E154: 544.07 | F154: 532.13 | G154: 514.27 | H154: 573.87 | I154: 591.73 | J154: 603.67 | K154: 579.8 | L154: 550 | M154: 2.18635
A155: 146 | B155: FLFL | C155: 363.6 | D155: 365.27 | E155: 358.43 | F155: 353.27 | G155: 346.43 | H155: 370.43 | I155: 377.27 | J155: 382.43 | K155: 372.1 | L155: 360.1 | M155: 0.10886
A156: 147 | B156: FSL | C156: 61.05 | D156: 60.52 | E156: 58.43 | F156: 55.82 | G156: 53.73 | H156: 63.13 | I156: 65.22 | J156: 67.83 | K156: 62.6 | L156: 57.9 | M156: 41.15887
A157: 148 | B157: GAIL | C157: 360.25 | D157: 360.83 | E157: 352.67 | F157: 345.08 | G157: 336.92 | H157: 368.42 | I157: 376.58 | J157: 384.17 | K157: 369 | L157: 353.25 | M157: 71.76942
A158: 149 | B158: GATI | C158: 74.5 | D158: 75.03 | E158: 73.67 | F158: 72.83 | G158: 71.47 | H158: 75.87 | I158: 77.23 | J158: 78.07 | K158: 76.4 | L158: 74.2 | M158: 4.47654
A159: 150 | B159: GDL | C159: 136.15 | D159: 137.42 | E159: 133.78 | F159: 131.42 | G159: 127.78 | H159: 139.78 | I159: 143.42 | J159: 145.78 | K159: 141.05 | L159: 135.05 | M159: 1.93196
A160: 151 | B160: GEPIL | C160: 804.15 | D160: 806.78 | E160: 797.57 | F160: 790.98 | G160: 781.77 | H160: 813.37 | I160: 822.58 | J160: 829.17 | K160: 816 | L160: 800.2 | M160: 0.01986
A161: 152 | B161: GESHIP | C161: 307.6 | D161: 308.25 | E161: 299.10 | F161: 290.60 | G161: 281.45 | H161: 316.75 | I161: 325.90 | J161: 334.40 | K161: 317.4 | L161: 299.75 | M161: 3.84341
A162: 153 | B162: GET&D | C162: 232.65 | D162: 233.43 | E162: 230.37 | F162: 228.08 | G162: 225.02 | H162: 235.72 | I162: 238.78 | J162: 241.07 | K162: 236.5 | L162: 231.15 | M162: 0.08225
A163: 154 | B163: GHCL | C163: 207.65 | D163: 206.25 | E163: 201.80 | F163: 195.95 | G163: 191.50 | H163: 212.10 | I163: 216.55 | J163: 222.40 | K163: 210.7 | L163: 200.4 | M163: 0.76378
A164: 155 | B164: GICRE | C164: 323.7 | D164: 321.37 | E164: 317.73 | F164: 311.77 | G164: 308.13 | H164: 327.33 | I164: 330.97 | J164: 336.93 | K164: 325 | L164: 315.4 | M164: 0.56738
A165: 156 | B165: GILLETTE | C165: 6538.65 | D165: 6517.25 | E165: 6481.55 | F165: 6424.45 | G165: 6388.75 | H165: 6574.35 | I165: 6610.05 | J165: 6667.15 | K165: 6552.95 | L165: 6460.15 | M165: 0.08276
A166: 157 | B166: GLAXO | C166: 1385.85 | D166: 1369.40 | E166: 1339.80 | F166: 1293.75 | G166: 1264.15 | H166: 1415.45 | I166: 1445.05 | J166: 1491.10 | K166: 1399 | L166: 1323.35 | M166: 0.1772
A167: 158 | B167: GLENMARK | C167: 604 | D167: 606.40 | E167: 596.85 | F167: 589.70 | G167: 580.15 | H167: 613.55 | I167: 623.10 | J167: 630.25 | K167: 615.95 | L167: 599.25 | M167: 6.64523
A168: 159 | B168: GMDCLTD | C168: 86.1 | D168: 85.88 | E168: 83.77 | F168: 81.43 | G168: 79.32 | H168: 88.22 | I168: 90.33 | J168: 92.67 | K168: 88 | L168: 83.55 | M168: 3.19531
A169: 160 | B169: GMRINFRA | C169: 16.45 | D169: 16.38 | E169: 16.12 | F169: 15.78 | G169: 15.52 | H169: 16.72 | I169: 16.98 | J169: 17.32 | K169: 16.65 | L169: 16.05 | M169: 201.57795
A170: 161 | B170: GNFC | C170: 330.7 | D170: 330.67 | E170: 324.13 | F170: 317.57 | G170: 311.03 | H170: 337.23 | I170: 343.77 | J170: 350.33 | K170: 337.2 | L170: 324.1 | M170: 3.5095
A171: 162 | B171: GODFRYPHLP | C171: 774.1 | D171: 773.03 | E171: 752.07 | F171: 730.03 | G171: 709.07 | H171: 795.07 | I171: 816.03 | J171: 838.07 | K171: 794 | L171: 751 | M171: 3.03051
A172: 163 | B172: GODREJAGRO | C172: 522.25 | D172: 524.17 | E172: 517.23 | F172: 512.22 | G172: 505.28 | H172: 529.18 | I172: 536.12 | J172: 541.13 | K172: 531.1 | L172: 519.15 | M172: 0.39842
A173: 164 | B173: GODREJCP | C173: 713.85 | D173: 711.52 | E173: 704.03 | F173: 694.22 | G173: 686.73 | H173: 721.33 | I173: 728.82 | J173: 738.63 | K173: 719 | L173: 701.7 | M173: 4.96211
A174: 165 | B174: GODREJIND | C174: 461.65 | D174: 465.75 | E174: 453.90 | F174: 446.15 | G174: 434.30 | H174: 473.50 | I174: 485.35 | J174: 493.10 | K174: 477.6 | L174: 458 | M174: 5.62245
A175: 166 | B175: GODREJPROP | C175: 607.05 | D175: 599.02 | E175: 588.03 | F175: 569.02 | G175: 558.03 | H175: 618.03 | I175: 629.02 | J175: 648.03 | K175: 610 | L175: 580 | M175: 2.19309
A176: 167 | B176: GPPL | C176: 101.7 | D176: 101.98 | E176: 99.87 | F176: 98.03 | G176: 95.92 | H176: 103.82 | I176: 105.93 | J176: 107.77 | K176: 104.1 | L176: 100.15 | M176: 2.17266
A177: 168 | B177: GRANULES | C177: 97.05 | D177: 98.77 | E177: 94.03 | F177: 91.02 | G177: 86.28 | H177: 101.78 | I177: 106.52 | J177: 109.53 | K177: 103.5 | L177: 95.75 | M177: 124.66341
A178: 169 | B178: GRAPHITE | C178: 965.45 | D178: 972.52 | E178: 954.08 | F178: 942.72 | G178: 924.28 | H178: 983.88 | I178: 1002.32 | J178: 1013.68 | K178: 990.95 | L178: 961.15 | M178: 10.36436
A179: 170 | B179: GRASIM | C179: 804.75 | D179: 799.62 | E179: 789.78 | F179: 774.82 | G179: 764.98 | H179: 814.58 | I179: 824.42 | J179: 839.38 | K179: 809.45 | L179: 784.65 | M179: 28.86771
A180: 171 | B180: GREAVESCOT | C180: 116.1 | D180: 116.60 | E180: 114.50 | F180: 112.90 | G180: 110.80 | H180: 118.20 | I180: 120.30 | J180: 121.90 | K180: 118.7 | L180: 115 | M180: 4.64104
A181: 172 | B181: GREENPLY | C181: 132.4 | D181: 131.97 | E181: 128.43 | F181: 124.47 | G181: 120.93 | H181: 135.93 | I181: 139.47 | J181: 143.43 | K181: 135.5 | L181: 128 | M181: 1.95751
A182: 173 | B182: GRUH | C182: 274.85 | D182: 274.43 | E182: 265.97 | F182: 257.08 | G182: 248.62 | H182: 283.32 | I182: 291.78 | J182: 300.67 | K182: 282.9 | L182: 265.55 | M182: 7.93377
A183: 174 | B183: GSFC | C183: 102.7 | D183: 102.33 | E183: 99.87 | F183: 97.03 | G183: 94.57 | H183: 105.17 | I183: 107.63 | J183: 110.47 | K183: 104.8 | L183: 99.5 | M183: 23.43239
A184: 175 | B184: GSKCONS | C184: 6943.2 | D184: 6933.73 | E184: 6895.22 | F184: 6847.23 | G184: 6808.72 | H184: 6981.72 | I184: 7020.23 | J184: 7068.22 | K184: 6972.25 | L184: 6885.75 | M184: 0.15147
A185: 176 | B185: GSPL | C185: 175.5 | D185: 173.60 | E185: 171.00 | F185: 166.50 | G185: 163.90 | H185: 178.10 | I185: 180.70 | J185: 185.20 | K185: 176.2 | L185: 169.1 | M185: 1.24955
A186: 177 | B186: GUJALKALI | C186: 537.25 | D186: 541.92 | E186: 530.43 | F186: 523.62 | G186: 512.13 | H186: 548.73 | I186: 560.22 | J186: 567.03 | K186: 553.4 | L186: 535.1 | M186: 0.59137
A187: 178 | B187: GUJFLUORO | C187: 876.8 | D187: 880.78 | E187: 866.57 | F187: 856.33 | G187: 842.12 | H187: 891.02 | I187: 905.23 | J187: 915.47 | K187: 895 | L187: 870.55 | M187: 1.35704
A188: 179 | B188: GUJGASLTD | C188: 610.7 | D188: 614.12 | E188: 605.23 | F188: 599.77 | G188: 590.88 | H188: 619.58 | I188: 628.47 | J188: 633.93 | K188: 623 | L188: 608.65 | M188: 0.24581
A189: 180 | B189: GULFOILLUB | C189: 700.6 | D189: 699.87 | E189: 693.73 | F189: 686.87 | G189: 680.73 | H189: 706.73 | I189: 712.87 | J189: 719.73 | K189: 706 | L189: 693 | M189: 0.09113
A190: 181 | B190: GVKPIL | C190: 7.7 | D190: 7.67 | E190: 7.48 | F190: 7.27 | G190: 7.08 | H190: 7.88 | I190: 8.07 | J190: 8.28 | K190: 7.85 | L190: 7.45 | M190: 59.06718
A191: 182 | B191: HATHWAY | C191: 30.1 | D191: 30.13 | E191: 29.92 | F191: 29.73 | G191: 29.52 | H191: 30.32 | I191: 30.53 | J191: 30.72 | K191: 30.35 | L191: 29.95 | M191: 10.0659
A192: 183 | B192: HATSUN | C192: 609.85 | D192: 608.77 | E192: 590.58 | F192: 571.32 | G192: 553.13 | H192: 628.03 | I192: 646.22 | J192: 665.48 | K192: 626.95 | L192: 589.5 | M192: 0.0581
A193: 184 | B193: HAVELLS | C193: 634.5 | D193: 631.93 | E193: 624.87 | F193: 615.23 | G193: 608.17 | H193: 641.57 | I193: 648.63 | J193: 658.27 | K193: 639 | L193: 622.3 | M193: 17.26408
A194: 185 | B194: HCC | C194: 12.1 | D194: 12.22 | E194: 11.88 | F194: 11.67 | G194: 11.33 | H194: 12.43 | I194: 12.77 | J194: 12.98 | K194: 12.55 | L194: 12 | M194: 48.64654
A195: 186 | B195: HCL-INSYS | C195: 25.65 | D195: 25.72 | E195: 25.23 | F195: 24.82 | G195: 24.33 | H195: 26.13 | I195: 26.62 | J195: 27.03 | K195: 26.2 | L195: 25.3 | M195: 7.49534
A196: 187 | B196: HCLTECH | C196: 1004.85 | D196: 999.50 | E196: 982.05 | F196: 959.25 | G196: 941.80 | H196: 1022.30 | I196: 1039.75 | J196: 1062.55 | K196: 1016.95 | L196: 976.7 | M196: 30.60534
A197: 188 | B197: HDFC | C197: 1671.9 | D197: 1681.70 | E197: 1653.40 | F197: 1634.90 | G197: 1606.60 | H197: 1700.20 | I197: 1728.50 | J197: 1747.00 | K197: 1710 | L197: 1663.2 | M197: 20.73955
A198: 189 | B198: HDFCBANK | C198: 1912.75 | D198: 1914.68 | E198: 1897.37 | F198: 1881.98 | G198: 1864.67 | H198: 1930.07 | I198: 1947.38 | J198: 1962.77 | K198: 1932 | L198: 1899.3 | M198: 34.57176
A199: 190 | B199: HDIL | C199: 19.9 | D199: 19.80 | E199: 19.45 | F199: 19.00 | G199: 18.65 | H199: 20.25 | I199: 20.60 | J199: 21.05 | K199: 20.15 | L199: 19.35 | M199: 21.7879
A200: 191 | B200: HEG | C200: 4246.05 | D200: 4275.68 | E200: 4186.37 | F200: 4126.68 | G200: 4037.37 | H200: 4335.37 | I200: 4424.68 | J200: 4484.37 | K200: 4365 | L200: 4216 | M200: 2.52868
A201: 192 | B201: HEIDELBERG | C201: 145.55 | D201: 143.25 | E201: 139.10 | F201: 132.65 | G201: 128.50 | H201: 149.70 | I201: 153.85 | J201: 160.30 | K201: 147.4 | L201: 136.8 | M201: 2.84543
A202: 193 | B202: HERITGFOOD | C202: 499.7 | D202: 492.23 | E202: 475.47 | F202: 451.23 | G202: 434.47 | H202: 516.47 | I202: 533.23 | J202: 557.47 | K202: 509 | L202: 468 | M202: 0.62346
A203: 194 | B203: HEROMOTOCO | C203: 2773.9 | D203: 2772.95 | E203: 2735.95 | F203: 2698.00 | G203: 2661.00 | H203: 2810.90 | I203: 2847.90 | J203: 2885.85 | K203: 2809.95 | L203: 2735 | M203: 4.03508
A204: 195 | B204: HEXAWARE | C204: 324.95 | D204: 322.30 | E204: 316.65 | F204: 308.35 | G204: 302.70 | H204: 330.60 | I204: 336.25 | J204: 344.55 | K204: 327.95 | L204: 314 | M204: 15.11224
A205: 196 | B205: HFCL | C205: 21.05 | D205: 20.93 | E205: 20.37 | F205: 19.68 | G205: 19.12 | H205: 21.62 | I205: 22.18 | J205: 22.87 | K205: 21.5 | L205: 20.25 | M205: 36.37105
A206: 197 | B206: HIMATSEIDE | C206: 235.8 | D206: 234.22 | E206: 231.48 | F206: 227.17 | G206: 224.43 | H206: 238.53 | I206: 241.27 | J206: 245.58 | K206: 236.95 | L206: 229.9 | M206: 0.11911
... 304 more rows

Sheet Bulk Deals
E6: Back To Main Page
A7: Subject : | B7: BULK DEAL | D7: =Main!B10 -> 2018-10-31
A9: Date | B9: Scrip code | C9: Scrip Name | D9: Client Name | E9: Buy / Sell | F9: Quantity Traded | G9: Trade Price / Wt.Avg.trade price | H9: Exchange
A10: 2018-10-30 | B10: 542020 | C10: AKI | D10: NNM SECURITIES PVT LTD | E10: SELL | F10: 90,000 | G10: 11 | H10: BSE
A11: 2018-10-30 | B11: 542057 | C11: BCPL | D11: SHERWOOD SECURITIES PVT LTD | E11: BUY | F11: 548,000 | G11: 35.72 | H11: BSE
A12: 2018-10-30 | B12: 542057 | C12: BCPL | D12: DATTANI ARVIND NANDLAL | E12: SELL | F12: 132,000 | G12: 35.27 | H12: BSE
A13: 2018-10-30 | B13: 539559 | C13: DDIL | D13: PRAKASH R SOLANKI | E13: BUY | F13: 54,900 | G13: 10.04 | H13: BSE
A14: 2018-10-30 | B14: 539559 | C14: DDIL | D14: KALPANA DHIRAJ SHARMA | E14: SELL | F14: 55,000 | G14: 10.04 | H14: BSE
A15: 2018-10-30 | B15: 537536 | C15: DENISCHEM | D15: CHARANDEEP SINGH | E15: SELL | F15: 867,000 | G15: 60 | H15: BSE
A16: 2018-10-30 | B16: 537536 | C16: DENISCHEM | D16: OWN LEASING AND FINANCE PRIVATE LIMITED | E16: BUY | F16: 867,000 | G16: 60 | H16: BSE
A17: 2018-10-30 | B17: 539311 | C17: NFIL | D17: SANJEEV BURMAN JHAVERI | E17: SELL | F17: 100,000 | G17: 14.8 | H17: BSE
A18: 2018-10-30 | B18: 539760 | C18: RELICAB | D18: ARYAMAN BROKING LIMITED | E18: SELL | F18: 162,000 | G18: 26.74 | H18: BSE
A19: 2018-10-30 | B19: 539760 | C19: RELICAB | D19: ARYAMAN BROKING LIMITED | E19: BUY | F19: 162,000 | G19: 24.12 | H19: BSE
A20: 2018-10-30 | B20: 539760 | C20: RELICAB | D20: RAHUL R DAMANIA | E20: SELL | F20: 48,000 | G20: 24.29 | H20: BSE
A21: 2018-10-30 | B21: 539760 | C21: RELICAB | D21: NIVEDAN BHARADWAJ | E21: SELL | F21: 54,000 | G21: 24 | H21: BSE
A22: 2018-10-30 | B22: 539760 | C22: RELICAB | D22: RACHANABEN KETANKUMAR BRAHMBHATT | E22: SELL | F22: 30,000 | G22: 24 | H22: BSE
A23: 2018-10-30 | B23: 539760 | C23: RELICAB | D23: AMAR MUKESHBHAI SHAH | E23: BUY | F23: 42,000 | G23: 27 | H23: BSE
A24: 2018-10-30 | B24: 539760 | C24: RELICAB | D24: MUKESH BABULAL SHAH | E24: BUY | F24: 45,000 | G24: 27 | H24: BSE
A25: 2018-10-30 | B25: 539760 | C25: RELICAB | D25: REKHA MUKESH SHAH | E25: BUY | F25: 90,000 | G25: 27 | H25: BSE
A26: 2018-10-30 | B26: 540082 | C26: RSTL | D26: NIMMI CHANDIRAMANI | E26: BUY | F26: 48,000 | G26: 16.41 | H26: BSE
A27: 2018-10-30 | B27: 540082 | C27: RSTL | D27: MACRO COMMODEAL PRIVATE LIMITED | E27: SELL | F27: 48,000 | G27: 16.41 | H27: BSE
A28: 2018-10-30 | B28: 539798 | C28: UMIYA | D28: VIMAL RAMESHBHAI HIRAPARA | E28: SELL | F28: 106,252 | G28: 28.42 | H28: BSE
A29: 2018-10-30 | B29: 539798 | C29: UMIYA | D29: VIMAL RAMESHBHAI HIRAPARA | E29: BUY | F29: 131,418 | G29: 27.54 | H29: BSE
A30: 2018-10-30 | B30: 539798 | C30: UMIYA | D30: MITHUN SECURITIES PRIVATE LIMITED | E30: BUY | F30: 54,000 | G30: 28.91 | H30: BSE
A31: 2018-10-30 | B31: 542046 | C31: VIEL | D31: ARDI INVESTMENT AND TRADING COMPANY LIMITED | E31: BUY | F31: 62,000 | G31: 51.25 | H31: BSE
A32: 2018-10-30 | B32: DHFL | C32: Dewan Housing Fin Corp | D32: GRAVITON RESEARCH CAPITAL LLP | E32: BUY | F32: 1,801,648 | G32: 203.79 | H32: NSE
A33: 2018-10-30 | B33: DHFL | C33: Dewan Housing Fin Corp | D33: SHAASTRA SECURITIES TRADING PRIVATE LIMITED | E33: BUY | F33: 2,903,894 | G33: 203.09 | H33: NSE
A34: 2018-10-30 | B34: JETAIRWAYS | C34: Jet Airways (India) Ltd. | D34: CROSSLAND TRADING CO | E34: BUY | F34: 625,929 | G34: 228.29 | H34: NSE
A35: 2018-10-30 | B35: JETAIRWAYS | C35: Jet Airways (India) Ltd. | D35: SHAASTRA SECURITIES TRADING PRIVATE LIMITED | E35: BUY | F35: 1,009,146 | G35: 227.49 | H35: NSE
A36: 2018-10-30 | B36: JUSTDIAL | C36: Justdial Ltd. | D36: CROSSLAND TRADING CO | E36: BUY | F36: 550,578 | G36: 499.13 | H36: NSE
A37: 2018-10-30 | B37: JUSTDIAL | C37: Justdial Ltd. | D37: SHAASTRA SECURITIES TRADING PRIVATE LIMITED | E37: BUY | F37: 670,193 | G37: 496.3 | H37: NSE
A38: 2018-10-30 | B38: MITTAL | C38: Mittal Life Style Limited | D38: CHOICE EQUITY BROKING PRIVATE LIMITED | E38: BUY | F38: 6,000 | G38: 21 | H38: NSE
A39: 2018-10-30 | B39: PANACHE | C39: Panache Digilife Limited | D39: MUKUL A. VERMA (HUF) | E39: BUY | F39: 40,000 | G39: 79 | H39: NSE
A40: 2018-10-30 | B40: RCOM | C40: Reliance Comm. Ltd. | D40: SHAASTRA SECURITIES TRADING PRIVATE LIMITED | E40: BUY | F40: 15,150,333 | G40: 11.51 | H40: NSE
A41: 2018-10-30 | B41: REPCOHOME | C41: Repco Home Finance Ltd | D41: AB SICAV I - INDIA GROWTH PORTFOLIO | E41: BUY | F41: 1,113,379 | G41: 347.3 | H41: NSE
A42: 2018-10-30 | B42: ROLTA | C42: Rolta India Ltd. | D42: AMBE SECURITIES PRIVATE LIMITED | E42: BUY | F42: 20,000 | G42: 15 | H42: NSE
A43: 2018-10-30 | B43: VRLLOG | C43: VRL Logistics Limited | D43: AB SICAV I - INDIA GROWTH PORTFOLIO | E43: BUY | F43: 706,009 | G43: 258.4 | H43: NSE
A44: 2018-10-30 | B44: DHFL | C44: Dewan Housing Fin Corp | D44: GRAVITON RESEARCH CAPITAL LLP | E44: SELL | F44: 1,801,648 | G44: 204.29 | H44: NSE
A45: 2018-10-30 | B45: DHFL | C45: Dewan Housing Fin Corp | D45: SHAASTRA SECURITIES TRADING PRIVATE LIMITED | E45: SELL | F45: 2,903,894 | G45: 203.19 | H45: NSE
A46: 2018-10-30 | B46: JETAIRWAYS | C46: Jet Airways (India) Ltd. | D46: CROSSLAND TRADING CO | E46: SELL | F46: 625,929 | G46: 228.53 | H46: NSE
A47: 2018-10-30 | B47: JETAIRWAYS | C47: Jet Airways (India) Ltd. | D47: SHAASTRA SECURITIES TRADING PRIVATE LIMITED | E47: SELL | F47: 1,009,146 | G47: 227.55 | H47: NSE
A48: 2018-10-30 | B48: JUSTDIAL | C48: Justdial Ltd. | D48: CROSSLAND TRADING CO | E48: SELL | F48: 550,578 | G48: 499.32 | H48: NSE
A49: 2018-10-30 | B49: JUSTDIAL | C49: Justdial Ltd. | D49: SHAASTRA SECURITIES TRADING PRIVATE LIMITED | E49: SELL | F49: 670,193 | G49: 496.81 | H49: NSE
A50: 2018-10-30 | B50: MITTAL | C50: Mittal Life Style Limited | D50: CHOICE EQUITY BROKING PRIVATE LIMITED | E50: SELL | F50: 36,000 | G50: 21.1 | H50: NSE
A51: 2018-10-30 | B51: RCOM | C51: Reliance Comm. Ltd. | D51: SHAASTRA SECURITIES TRADING PRIVATE LIMITED | E51: SELL | F51: 15,150,333 | G51: 11.53 | H51: NSE
A52: 2018-10-30 | B52: REPCOHOME | C52: Repco Home Finance Ltd | D52: ALLIANCEBERNSTEIN INDIA GROWTH (MAURITIUS) LIMITED | E52: SELL | F52: 1,113,379 | G52: 347.3 | H52: NSE
A53: 2018-10-30 | B53: ROLTA | C53: Rolta India Ltd. | D53: AMBE SECURITIES PRIVATE LIMITED | E53: SELL | F53: 1,025,000 | G53: 15 | H53: NSE
A54: 2018-10-30 | B54: VRLLOG | C54: VRL Logistics Limited | D54: ALLIANCEBERNSTEIN INDIA GROWTH (MAURITIUS) LIMITED | E54: SELL | F54: 706,009 | G54: 258.4 | H54: NSE

Sheet Call Tracker (Equity & F&O)
M5: Back To Main Page
A6: Retail Research Technical Calls & Fundamental Performance Report for the month of October -2018
M7: =Main!B10 -> 2018-10-31
B8: Positional Call
A9: Sr.no | B9: Date | D9: Company | E9: Rec | F9: Rec Price | G9: Stop Loss*** | H9: Call Closed At | I9: Target | J9: Remark | K9: Profit / Loss per Share | L9: Gain / Loss % | M9: Status | N9: Closed Date | O9: NSE Closed Price
A10: 1 | B10: 2018-09-24 | D10: SUNPHARMA | E10: Buy | F10: 632.5 | G10: 610 | H10: 605 | I10: 670-680 | J10: Loss of Rs. 27.50/- | K10: =H10-F10 -> -27.5 | L10: =K10/F10 -> -4.35% | M10: Unsuccessful | N10: 2018-10-04 | R10: H
A11: 2 | B11: 2018-09-26 | D11: SBIN | E11: Buy | F11: 266 | G11: 249.7 | H11: 274.5 | I11: 285-295 | J11: Profit of Rs. 8.50/- | K11: =H11-F11 -> 8.5 | L11: =K11/F11 -> 3.20% | M11: Successful | N11: 2018-10-01 | R11: R
A12: 3 | B12: 2018-09-27 | D12: ITC | E12: Buy | F12: 291.5 | G12: 278 | H12: 301.5 | I12: 320 | J12: Profit of Rs. 10/- | K12: 10 | L12: =K12/F12 -> 3.43% | M12: Successful | N12: 2018-10-01 | R12: H
A13: 4 | B13: 2018-09-28 | D13: RBLBANK | E13: Buy | F13: 520 | G13: 499 | H13: 538 | I13: 570-580 | J13: Profit of Rs. 18/- | K13: 18 | L13: =K13/F13 -> 3.46% | M13: Successful | N13: 2018-10-03 | R13: H
A14: 5 | B14: 2018-09-28 | D14: PIDILITIND | E14: Buy | F14: 1049.5 | G14: 1017.7 | H14: 998 | I14: 1100-1120 | J14: Loss of Rs. 51.50/- | K14: -51.5 | L14: =K14/F14 -> -4.91% | M14: Unsuccessful | N14: 2018-10-03 | R14: R
A15: 6 | B15: 2018-10-01 | D15: M&MFIN | E15: Buy | F15: 400 | G15: 379 | H15: 414 | I15: 440 | J15: Profit of Rs. 14/- | K15: 14 | L15: =K15/F15 -> 3.50% | M15: Successful | N15: 2018-10-01 | R15: H
A16: 7 | B16: 2018-10-01 | D16: CONCOR | E16: Buy | F16: 634 | G16: 598.7 | H16: 659 | I16: 690-700 | J16: Profit of Rs. 25/- | K16: 25 | L16: 3.94% | M16: Successful | N16: 2018-10-01 | R16: R
A17: 8 | B17: 2018-10-03 | D17: SUDARSCHEM | E17: Buy | F17: 402 | G17: 384.4 | H17: 384.4 | I17: 430-440 | J17: Loss of Rs. 17.60/- | K17: =H17-F17 -> -17.6 | L17: -4.38% | M17: Unsuccessful | N17: 2018-10-04 | R17: R
A18: 9 | B18: 2018-10-03 | D18: CEATLTD | E18: Buy | F18: 1133 | G18: 1078 | H18: 1073 | I18: 1200-1220 | J18: Loss of Rs. 60/- | K18: =H18-F18 -> -60 | L18: =K18/F18 -> -5.30% | M18: Unsuccessful | N18: 2018-10-04 | R18: H
A19: 10 | B19: 2018-10-03 | D19: INDUSINDBK | E19: Buy | F19: 1655 | G19: 1597.7 | H19: 1570 | I19: 1760-1780 | J19: Loss of Rs. 85/- | K19: =H19-F19 -> -85 | L19: =K19/F19 -> -5.14% | M19: Unsuccessful | N19: 2018-10-04 | R19: R
A20: 11 | B20: 2018-10-04 | D20: RBLBANK | E20: Buy | F20: 512.55 | G20: 489 | H20: 492 | I20: 550-560 | J20: Loss of Rs. 20.55/- | K20: =H20-F20 -> -20.55 | L20: =K20/F20 -> -4.01% | M20: Unsuccessful | N20: 2018-10-05 | R20: H
A21: 12 | B21: 2018-10-05 | D21: ITC | E21: Buy | F21: 283 | G21: 274 | H21: 270 | I21: 300 | J21: Loss of Rs. 13/- | K21: =H21-F21 -> -13 | L21: =K21/F21 -> -4.59% | M21: Unsuccessful | N21: 2018-10-09 | R21: H
A22: 13 | B22: 2018-10-08 | D22: RBLBANK | E22: Buy | F22: 498.5 | G22: 479 | H22: 514.5 | I22: 540-550 | J22: Profit of Rs. 16/- | K22: 16 | L22: 3.21% | M22: Successful | N22: 2018-10-10 | R22: H
A23: 14 | B23: 2018-10-10 | D23: SBIN | E23: Buy | F23: 263 | G23: 249.7 | H23: 272.5 | I23: 285-290 | J23: Profit of Rs. 9.5/- | K23: =H23-F23 -> 9.5 | L23: =K23/F23 -> 3.61% | M23: Successful | N23: 2018-10-10 | R23: R
A24: 15 | B24: 2018-10-10 | D24: KPIT | E24: Buy | F24: 200.5 | G24: 189.7 | H24: 211.5 | I24: 218-222 | J24: Profit of Rs. 11/- | K24: 11 | L24: 5.49% | M24: Successful | N24: 2018-10-15 | R24: R
A25: 16 | B25: 2018-10-10 | D25: ASIANPAINT | E25: Buy | F25: 1207.5 | G25: 1148 | H25: 1249 | I25: 1280-1300 | J25: Profit of Rs. 41.5/- | K25: =H25-F25 -> 41.5 | L25: =K25/F25 -> 3.44% | M25: Successful | N25: 2018-10-12 | R25: H
A26: 17 | B26: 2018-10-10 | D26: MARICO | E26: Buy | F26: 301 | G26: 289.7 | H26: 310.5 | I26: 325-330 | J26: Profit of Rs. 9.5/- | K26: =H26-F26 -> 9.5 | L26: =K26/F26 -> 3.16% | M26: Successful | N26: 2018-10-12 | R26: R
A27: 18 | B27: 2018-10-10 | D27: DABUR | E27: Buy | F27: 407 | G27: 389 | H27: 420.5 | I27: 445 | J27: Profit of Rs. 13.5/- | K27: =H27-F27 -> 13.5 | L27: =K27/F27 -> 3.32% | M27: Successful | N27: 2018-10-17 | R27: H
A28: 19 | B28: 2018-10-11 | D28: RBLBANK | E28: Buy | F28: 511 | G28: 493 | H28: 525.5 | I28: 545-555 | J28: Profit of Rs. 14.50/- | K28: =H28-F28 -> 14.5 | L28: =K28/F28 -> 2.84% | M28: Successful | N28: 2018-10-11 | R28: H
A29: 20 | B29: 2018-10-11 | D29: MCDOWELL-N | E29: Buy | F29: 462.5 | G29: 436.6 | H29: 478.5 | I29: 500-510 | J29: Profit of Rs. 16/- | K29: =H29-F29 -> 16 | L29: =K29/F29 -> 3.46% | M29: Successful | N29: 2018-10-11 | R29: R
A30: 21 | B30: 2018-10-12 | D30: SIEMENS | E30: Buy{} | F30: 900 | G30: 853 | H30: 936.75 | I30: 980-1000 | J30: Profit of Rs. 36.75/- | K30: 36.75 | L30: 4.08% | M30: Successful | N30: 2018-10-16 | R30: R
A31: 22 | B31: 2018-10-15 | D31: ASIANPAINT | E31: Buy | F31: 1245 | G31: 1190 | H31: 1283.5 | I31: 1320-1350 | J31: Profit of Rs. 38.5/- | K31: =H31-F31 -> 38.5 | L31: =K31/F31 -> 3.09% | M31: Successful | N31: 2018-10-19 | R31: H
A32: 23 | B32: 2018-10-16 | D32: MCDOWELL-N | E32: Sell{} | F32: 527.5 | G32: 551 | H32: 505.75 | I32: 490-480 | J32: Profit of Rs. 21.75/- | K32: =F32-H32 -> 21.75 | L32: =K32/F32 -> 4.12% | M32: Successful | N32: 2018-10-23 | R32: R
A33: 24 | B33: 2018-10-16 | D33: INDUSINDBK | E33: Buy | F33: 1635 | G33: 1569.6 | H33: 1535 | I33: 1750-1770 | J33: Loss of Rs. 100/- | K33: =H33-F33 -> -100 | L33: -6.12% | M33: Unsuccessful | N33: 2018-10-22 | R33: R
A34: 25 | B34: 2018-10-16 | D34: ENGINERSIN | E34: Sell{} | F34: 118.5 | G34: 125.6 | H34: 113.75 | I34: 107-103 | J34: Profit of Rs.4.5/- | K34: =F34-H34 -> 4.75 | L34: =K34/F34 -> 4.01% | M34: Successful | N34: 2018-10-19 | R34: R
A35: 26 | B35: 2018-10-17 | D35: BAJFINANCE | E35: Buy | F35: 2210 | G35: 2119 | H35: 2085 | I35: 2350-2400 | J35: Loss of Rs. 125/- | K35: =H35-F35 -> -125 | L35: -5.66% | M35: Unsuccessful | N35: 2018-10-19 | R35: H
A36: 27 | B36: 2018-10-19 | D36: PEL | E36: Buy | F36: 2120 | G36: 2010 | H36: 2010 | I36: 2300-2330 | J36: Loss of Rs. 110/- | K36: =H36-F36 -> -110 | L36: =K36/F36 -> -5.19% | M36: Unsuccessful | N36: 2018-10-19 | R36: R
A37: 28 | B37: 2018-10-19 | D37: SIEMENS | E37: Buy | F37: 890-895 | G37: 853 | I37: 980-1000 | J37: Open | O37: =VLOOKUP(D37,Sheet2!A7:F1632,6,0) -> 907.45 | R37: R
A38: 29 | B38: 2018-10-19 | D38: RBLBANK | E38: Buy | F38: 517 | G38: 495 | H38: 495 | I38: 560-570 | J38: Loss of Rs. 22/- | K38: =H38-F38 -> -22 | L38: =K38/F38 -> -4.26% | M38: Unsuccessful | N38: 2018-10-22 | R38: H
A39: 30 | B39: 2018-10-19 | D39: HINDZINC | E39: Sell | F39: 290.5 | G39: 302 | H39: 284 | I39: 270-260 | J39: Profit of Rs.6.5/- | K39: =F39-H39 -> 6.5 | L39: =K39/F39 -> 2.24% | M39: Successful | N39: 2018-10-22 | R39: H
A40: 31 | B40: 2018-10-23 | D40: TORNTPHARM | E40: Buy{} | F40: 1572.5 | G40: 1495 | H40: 1628.75 | I40: 1700 | J40: Profit of Rs.56.25/- | K40: =H40-F40 -> 56.25 | L40: =K40/F40 -> 3.58% | M40: Successful | N40: 2018-10-26 | R40: H
A41: 32 | B41: 2018-10-23 | D41: DABUR | E41: Buy | F41: 405 | G41: 388 | H41: 392.5 | I41: 430-440 | J41: Loss of Rs. 12.5/- | K41: -12.5 | L41: -3.09% | M41: Unsuccessful | N41: 2018-10-30 | R41: H
A42: 33 | B42: 2018-10-25 | D42: SUNPHARMA | E42: Buy | F42: 566-572 | G42: 528 | I42: 620-630 | J42: Open | O42: =VLOOKUP(D42,Sheet2!A12:F1637,6,0) -> 562.05 | R42: H
A43: 34 | B43: 2018-10-26 | D43: HINDUNILVR | E43: Buy{} | F43: 1555 | G43: 1478 | H43: 1602.5 | I43: 1650-1700 | J43: Part Profit of Rs.47.5/- | K43: =H43-F43 -> 47.5 | L43: =K43/F43 -> 3.05% | M43: Successful | N43: 2018-10-30 | R43: H
A44: 35 | B44: 2018-10-30 | D44: TCS | E44: Buy | F44: 1870-1880 | G44: 1777.7 | I44: 2030-2050 | J44: Open | O44: =VLOOKUP(D44,Sheet2!A14:F1639,6,0) -> 1894.8 | R44: R
A47: CLBS = Closing Basis *** | F47: Reinitiated $
A48: Dividend adjusted <> | F48: Revised stoploss #
A49: Part book {}
A50: Master Trade High Risk
A51: Sr.no | B51: Date | D51: Company | E51: Rec | F51: Rec Price | G51: Stop Loss | H51: Call Closed At | I51: Target | J51: Remark | K51: Profit / Loss per share | L51: Gain / Loss per Lot | M51: Lot | N51: Status | O51: Closed Date
A52: 1 | B52: 2018-09-28 | D52: HDFCBANK OCT FUT | E52: Buy | F52: 2020 | G52: 1980 | H52: 2051.5 | I52: 2100 | J52: Profit of Rs 19.50/- | K52: =H52-F52 -> 31.5 | L52: 9750 | M52: 500 | N52: Successful | O52: 2018-10-01 | R52: H
D53: HDFCBANK OCT 2060 CE | E53: Sell | F53: 23 | H53: 35 | K53: =F53-H53 -> -12
A54: 2 | B54: 2018-10-01 | D54: NIFTY OCT FUT | E54: Buy | F54: 10920 | G54: 10780 | H54: 11030 | I54: 11200 | J54: Profit of Rs 85/- | K54: =H54-F54 -> 110 | L54: 6375 | M54: 75 | N54: Successful | O54: 2018-10-01 | R54: H
D55: NIFTY OCT 11100 CE | E55: Sell | F55: 112.5 | H55: 137.5 | K55: =F55-H55 -> -25
A56: 3 | B56: 2018-10-03 | D56: NIFTY OCT FUT | E56: Buy | F56: 10952.5 | G56: 10850 | H56: 10780 | I56: 11150 | J56: Loss of Rs.172.5/- | K56: =H56-F56 -> -172.5 | L56: =M56*K56 -> -12937.5 | M56: 75 | N56: Unsuccessful | O56: 2018-10-04 | R56: H
A57: 4 | B57: 2018-10-03 | D57: MARUTI OCT FUT | E57: Buy | F57: 7310 | G57: 7117 | H57: 7010 | I57: 7650-7700 | J57: Loss of Rs.300/- | K57: =H57-F57 -> -300 | L57: =M57*K57 -> -22500 | M57: 75 | N57: Unsuccessful | O57: 2018-10-05 | R57: R
A58: 5 | B58: 2018-10-03 | D58: RELIANCE OCT FUT | E58: Buy | F58: 1222.5 | G58: 1195 | H58: 1195 | I58: 1270-1280 | J58: Loss of Rs.16/- | K58: =H58-F58 -> -27.5 | L58: =-16*M58 -> -16000 | M58: 1000 | N58: Unsuccessful | O58: 2018-10-04 | R58: H
D59: RELIANCE OCT 1260 CE | E59: Sell | F59: 26 | H59: 14.5 | K59: =F59-H59 -> 11.5
A60: 6 | B60: 2018-10-05 | D60: NIFTY OCT FUT | E60: Buy | F60: 10535 | G60: 10400 | H60: 10410 | I60: 10800 | J60: Loss of Rs.55/- | K60: =H60-F60 -> -125 | L60: =-55*75 -> -4125 | M60: 75 | N60: Unsuccessful | O60: 2018-10-05 | R60: H
D61: NIFTY OCT 10700 CE | E61: Sell | F61: 132.5 | H61: 62.5 | K61: =F61-H61 -> 70
A62: 7 | B62: 2018-10-08 | D62: RECLTD OCT FUT | E62: Buy | F62: 100.25 | G62: 97 | H62: 102.4 | I62: 106 | J62: Profit of Rs 1.8/- | K62: =H62-F62 -> 2.15 | L62: =1.8*6000 -> 10800 | M62: 6000 | N62: Successful | O62: 2018-10-08 | R62: N
D63: RECLTD OCT 10700 CE | E63: Sell | F63: 3.3 | H63: 3.65 | K63: =F63-H63 -> -0.35
A64: 8 | B64: 2018-10-08 | D64: INFRATEL OCT FUT | E64: Sell | F64: 265.5 | G64: 275 | H64: 274.5 | I64: 250 | J64: Loss of Rs.5/- | K64: -9 | L64: =-5*1700 -> -8500 | M64: 1700 | N64: Unsuccessful | O64: 2018-10-10 | R64: H
D65: INFRATEL OCT 255 PE | E65: Sell | F65: 6.5 | H65: 2.5 | K65: 4
A66: 9 | B66: 2018-10-08 | D66: ONGC OCT FUT | E66: Sell | F66: 147.5 | G66: 153.5 | H66: 151 | I66: 140 | J66: Loss of Rs.0.75/- | K66: -3.5 | L66: =-0.75*3750 -> -2812.5 | M66: 3750 | N66: Unsuccessful | O66: 2018-10-11 | R66: H
D67: ONGC OCT 140 PE | E67: Sell | F67: 4.25 | H67: 1.5 | K67: 2.75
A68: 10 | B68: 2018-10-10 | D68: UPL OCT FUT | E68: Sell | F68: 619 | G68: 634 | H68: 600 | I68: 590 | J68: Profit of Rs 18/- | K68: 19 | L68: =18*1200 -> 21600 | M68: 1700 | N68: Successful | O68: 2018-10-11 | R68: N
D69: UPL OCT 580 PE | E69: Sell | F69: 12.5 | H69: 13.5 | K69: -1
A70: 11 | B70: 2018-10-12 | D70: NIFTY OCT FUT | E70: Sell | F70: 10450 | G70: 10615 | H70: 10675 | I70: 10300 | J70: Loss of Rs.145/- | K70: -225 | L70: =-145*75 -> -10875 | M70: 75 | N70: Unsuccessful | O70: 2018-10-17 | R70: H
D71: NIFTY OCT 10300 PE | E71: Sell | F71: 92.5 | H71: 12.5 | K71: =F71-H71 -> 80
A72: 12 | B72: 2018-10-26 | D72: NIFTY NOV FUT | E72: Buy | F72: 10075 | G72: 9940 | H72: 10165 | I72: 10300 | J72: Profit of Rs 64.5/- | K72: =H72-F72 -> 90 | L72: =75*64.5 -> 4837.5 | M72: 75 | N72: Successful | O72: 2018-10-26 | R72: H
D73: NIFTY NOV 10200 CE | E73: Sell | F73: 182 | H73: 207.5 | K73: =F73-H73 -> -25.5
A74: 13 | B74: 2018-10-26 | D74: NIFTY NOV FUT | E74: Buy | F74: 10065 | G74: 9930 | H74: 10145 | I74: 10300 | J74: Profit of Rs 60/- | K74: =H74-F74 -> 80 | L74: =M74*60 -> 4500 | M74: 75 | N74: Successful | O74: 2018-10-29 | R74: H
D75: NIFTY NOV 10200 CE | E75: Sell | F75: 172 | H75: 192 | K75: =F75-H75 -> -20
A83: Master Trade Medium Risk
A84: Sr.no | B84: Date | D84: Company | E84: Rec | F84: Rec Price | G84: Stop Loss | H84: Call Closed At | I84: Target | J84: Remark | K84: Profit/ Loss per lot | L84: Gain / Loss per Lot | M84: Lot | N84: Status | O84: Closed Date
A85: 1 | B85: 2018-10-11 | D85: NIFTY OCT 10500 CE | E85: Buy | F85: 42 | G85: 0 | H85: 57 | I85: 100 | J85: Profit of Rs.15/- | K85: =H85-F85 -> 15 | L85: =M85*K85 -> 1125 | M85: 75 | N85: Successful | O85: 2018-10-11 | R85: H
A86: 2 | B86: 2018-10-11 | D86: NIFTY OCT 10500 CE | E86: Buy | F86: 42 | G86: 0 | H86: 55 | I86: 100 | J86: Profit of Rs.13/- | K86: =H86-F86 -> 13 | L86: =M86*K86 -> 975 | M86: 75 | N86: Successful | O86: 2018-10-11 | R86: H
A87: 3 | B87: 2018-10-17 | D87: MARUTI OCT 7300 CE | E87: Buy | F87: 67.5 | H87: 0 | I87: 140 | J87: Loss of Rs. 67.5/- | K87: =H87-F87 -> -67.5 | L87: =M87*K87 -> -5062.5 | M87: 75 | N87: Unsuccessful | O87: 2018-10-25 | R87: H
A88: 4 | B88: 2018-10-19 | D88: NIFTY OCT 10450 CE | E88: Buy | F88: 42 | G88: 0 | H88: 0 | I88: 100 | J88: Loss of Rs. 42/- | K88: -42 | L88: -3150 | M88: 75 | N88: Unsuccessful | O88: 2018-10-25 | R88: H
A89: 5 | B89: 2018-10-23 | D89: ZEEL OCT 450 CE | E89: Buy | F89: 2.5 | H89: 0 | I89: 6.00-7.00 | J89: Loss of Rs. 2.5/- | K89: -2.5 | L89: -3250 | M89: 1300 | N89: Unsuccessful | O89: 2018-10-25 | R89: N
B97: Smart Delivery Trade
A98: Sr.no | B98: Date | D98: Company | E98: Rec | F98: Rec Price | G98: Stop Loss*** | H98: Call Closed At | I98: Target | J98: Remark | K98: Profit / Loss per Share | L98: Gain / Loss % | M98: Status | N98: Closed Date | O98: NSE Closed Price
A99: 1 | B99: 2018-09-27 | D99: COLPAL | E99: Buy | F99: 1094 | G99: 1058 | H99: 1050 | I99: 1140-1160 | J99: Loss of Rs. 44/- | K99: =H99-F99 -> -44 | L99: =K99/F99 -> -4.02% | M99: Unsuccessful | N99: 2018-10-08 | R99: H
A100: 2 | B100: 2018-10-03 | D100: BAJFINACE | E100: Buy | F100: 2210 | G100: 2140 | H100: 2275 | I100: 2300-2350 | J100: Profit of Rs. 65/- | K100: 65 | L100: =K100/F100 -> 2.94% | M100: Successful | N100: 2018-10-03 | R100: H
A101: 3 | B101: 2018-10-03 | D101: ADVENZYMES | E101: Buy | F101: 186 | G101: 179.7 | H101: 174.5 | I101: 197-200 | J101: Loss of Rs. 11.5/- | K101: -11.5 | L101: -6.18% | M101: Unsuccessful | N101: 2018-10-08 | R101: R
A102: 4 | B102: 2018-10-03 | D102: LT | E102: Buy | F102: 1249.5 | G102: 1195 | H102: 1277.5 | I102: 1330-1350 | J102: Profit of Rs. 28/- | K102: 28 | L102: =K102/F102 -> 2.24% | M102: Successful | N102: 2018-10-04 | R102: H
A103: 5 | B103: 2018-10-04 | D103: BAJFINANCE | E103: Buy | F103: 2180 | G103: 2135 | H103: 2135 | I103: 2250-2300 | J103: Loss of Rs. 45/- | K103: -45 | L103: =K103/F103 -> -2.06% | M103: Unsuccessful | N103: 2018-10-05 | R103: H
A104: 6 | B104: 2018-10-08 | D104: BAJFINANCE | E104: Buy | F104: 1980 | G104: 1935 | H104: 2047.5 | I104: 2100 | J104: Profit of Rs. 67/- | K104: 67.5 | L104: 3.41% | M104: Successful | N104: 2018-10-08 | R104: H
A105: 7 | B105: 2018-10-08 | D105: HDFCBANK | E105: Buy | F105: 1960 | G105: 1890 | H105: 2018 | I105: 2150-2170 | J105: Profit of Rs. 58/- | K105: =H105-F105 -> 58 | L105: =K105/F105 -> 2.96% | M105: Successful | N105: 2018-10-16 | R105: H
A106: 8 | B106: 2018-10-08 | D106: L&TFH | E106: Buy | F106: 122 | G106: 117 | H106: 117.5 | I106: 130-132 | J106: Loss of Rs. 4.5/- | K106: =H106-F106 -> -4.5 | L106: =K106/F106 -> -3.69% | M106: Unsuccessful | N106: 2018-10-08 | R106: H
A107: 9 | B107: 2018-10-08 | D107: JINDALSTEEL | E107: Sell | F107: 172 | G107: 178 | H107: 167.5 | I107: 160 | J107: Profit of Rs.4.5/- | K107: =F107-H107 -> 4.5 | L107: 2.62% | M107: Successful | N107: 2018-10-08 | R107: H
A108: 10 | B108: 2018-10-09 | D108: BAJFINACE | E108: Buy | F108: 1970 | G108: 1920 | H108: 2015 | I108: 2100 | J108: Profit of Rs. 45/- | K108: =H108-F108 -> 45 | L108: =K108/F108 -> 2.28% | M108: Successful | N108: 2018-10-09 | R108: H
A109: 11 | B109: 2018-10-09 | D109: BALKRISIND | E109: Buy | F109: 994 | G109: 957 | H109: 1028.5 | I109: 1050-1070 | J109: Profit of Rs. 34.5/- | K109: 34.5 | L109: 3.47% | M109: Successful | N109: 2018-10-10 | R109: H
A110: 12 | B110: 2018-10-09 | D110: JINDALSTEEL | E110: Sell | F110: 174 | G110: 182 | H110: 173.5 | I110: 160 | J110: Profit of Rs.0.5/- | K110: =F110-H110 -> 0.5 | L110: =K110/F110 -> 0.29% | M110: Neutral | N110: 2018-10-09 | R110: H
A111: 13 | B111: 2018-10-10 | D111: BIOCON | E111: Buy | F111: 600 | G111: 576 | H111: 617.5 | I111: 640-650 | J111: Profit of Rs. 17.5/- | K111: =H111-F111 -> 17.5 | L111: 2.92% | M111: Successful | N111: 2018-10-10 | R111: R
A112: 12 | B112: 2018-10-11 | D112: BAJFINACE | E112: Buy | F112: 2115 | G112: 2040 | H112: 2195 | I112: 2220-2250 | J112: Profit of Rs. 80/- | K112: =H112-F112 -> 80 | L112: =K112/F112 -> 3.78% | M112: Successful | N112: 2018-10-11 | R112: H
A113: 13 | B113: 2018-10-11 | D113: BALKRISIND | E113: Buy | F113: 1010 | G113: 970 | H113: 1037.5 | I113: 1060-1080 | J113: Profit of Rs. 27.50/- | K113: 27.5 | L113: 2.72% | M113: Successful | N113: 2018-10-11 | R113: H
A114: 14 | B114: 2018-10-11 | D114: EXIDEIND | E114: Buy | F114: 250.5 | G114: 239.7 | H114: 259 | I114: 274-280 | J114: Profit of Rs. 8.50/- | K114: =H114-F114 -> 8.5 | L114: =K114/F114 -> 3.39% | M114: Successful | N114: 2018-10-11 | R114: R
A115: 15 | B115: 2018-10-11 | D115: SUNPHARMA | E115: Buy | F115: 596 | G115: 578 | H115: 601 | I115: 620-630 | J115: Profit of Rs. 5/- | K115: 5 | L115: 0.84% | M115: Neutral | N115: 2018-10-16 | R115: H
A116: 16 | B116: 2018-10-12 | D116: BALKRISIND | E116: Buy | F116: 1020 | G116: 978 | H116: 1047.5 | I116: 1100 | J116: Profit of Rs. 27.50/- | K116: =H116-F116 -> 27.5 | L116: =K116/F116 -> 2.70% | M116: Successful | N116: 2018-10-12 | R116: H
A117: 17 | B117: 2018-10-12 | D117: NIITTECH | E117: Buy | F117: 1060 | G117: 1024.7 | H117: 1092.5 | I117: 1140-1160 | J117: Profit of Rs. 32.5/- | K117: 32.5 | L117: 3.07% | M117: Successful | N117: 2018-10-15 | R117: R
A118: 18 | B118: 2018-10-15 | D118: AUROPHARMA | E118: Buy | F118: 747 | G118: 718 | H118: 769.5 | I118: 800-810 | J118: Profit of Rs. 22.5/- | K118: =H118-F118 -> 22.5 | L118: =K118/F118 -> 3.01% | M118: Successful | N118: 2018-10-16 | R118: H
A119: 19 | B119: 2018-10-15 | D119: SUNTV | E119: Buy | F119: 659.5 | G119: 635.7 | H119: 680.5 | I119: 700-710 | J119: Profit of Rs. 21/- | K119: =H119-F119 -> 21 | L119: =K119/F119 -> 3.18% | M119: Successful | N119: 2018-10-16 | R119: R
A120: 20 | B120: 2018-10-16 | D120: UJJIVAN | E120: Buy | F120: 251 | G120: 241 | H120: 241 | I120: 265-270 | J120: Loss of Rs. 10/- | K120: -10 | L120: -3.98% | M120: Unsuccessful | N120: 2018-10-17 | R120: R
A121: 21 | B121: 2018-10-17 | D121: BIOCON | E121: Sell | F121: 643 | G121: 662.6 | H121: 677.5 | I121: 610-600 | J121: Loss of Rs. 34.5/- | K121: =F121-H121 -> -34.5 | L121: =K121/F121 -> -5.37% | M121: Unsuccessful | N121: 2018-10-22 | R121: R
A122: 22 | B122: 2018-10-22 | D122: GLENMARK | E122: Sell | F122: 616 | G122: 642 | H122: 597.5 | I122: 580 | J122: Profit of Rs.18.5/- | K122: =F122-H122 -> 18.5 | L122: 3.00% | M122: Successful | N122: 2018-10-26 | R122: H
A123: 23 | B123: 2018-10-22 | D123: VEDL | E123: Sell | F123: 216.5 | G123: 225 | H123: 210.5 | I123: 208 | J123: Profit of Rs.6/- | K123: =F123-H123 -> 6 | L123: =K123/F123 -> 2.77% | M123: Successful | N123: 2018-10-23 | R123: H
A124: 24 | B124: 2018-10-23 | D124: BRITANNIA | E124: Buy | F124: 5590 | G124: 5414 | H124: 5330 | I124: 5900-5950 | J124: Loss of Rs. 260/- | K124: =H124-F124 -> -260 | L124: -4.65% | M124: Unsuccessful | N124: 2018-10-24 | R124: R
A125: 25 | B125: 2018-10-23 | D125: BALKRISIND | E125: Buy | F125: 1008 | G125: 970 | H125: 1039 | I125: 1070-1080 | J125: Profit of Rs.31/- | K125: 31 | L125: 3.08% | M125: Successful | N125: 2018-10-25 | R125: H
A126: 26 | B126: 2018-10-23 | D126: OFSS | E126: Buy | F126: 3710 | G126: 3577 | H126: 3535 | I126: 3970-3800 | J126: Loss of Rs. 175/- | K126: =H126-F126 -> -175 | L126: =K126/F126 -> -4.72% | M126: Unsuccessful | N126: 2018-10-24 | R126: R
A127: 27 | B127: 2018-10-24 | D127: BATAINDIA | E127: Buy | F127: 865 | G127: 832 | H127: 899 | I127: 920-930 | J127: Profit of Rs.34/- | K127: 34 | L127: 3.93% | M127: Successful | N127: 2018-10-25 | R127: R
A128: 28 | B128: 2018-10-24 | D128: PIDILITIND | E128: Buy | F128: 931 | G128: 896 | H128: 964.5 | I128: 990-1000 | J128: Profit of Rs.33.5/- | K128: 33.5 | L128: 3.60% | M128: Successful | N128: 2018-10-29 | R128: R
A129: 29 | B129: 2018-10-24 | D129: EIHOTEL | E129: Buy | F129: 160.5 | G129: 154 | H129: 165.5 | I129: 168-172 | J129: Profit of Rs.5/- | K129: =H129-F129 -> 5 | L129: =K129/F129 -> 3.12% | M129: Successful | N129: 2018-10-29 | R129: R
A130: 30 | B130: 2018-10-25 | D130: VEDL | E130: Buy | F130: 203.5 | G130: 197 | H130: 209.5 | I130: 216-220 | J130: Profit of Rs.6/- | K130: =H130-F130 -> 6 | L130: =K130/F130 -> 2.95% | M130: Successful | N130: 2018-10-29 | R130: R
A131: 31 | B131: 2018-10-25 | D131: RELIANCE | E131: Buy | F131: 1025 | G131: 990 | H131: 1055 | I131: 1070-1080 | J131: Profit of Rs.30/- | K131: =H131-F131 -> 30 | L131: =K131/F131 -> 2.93% | M131: Successful | N131: 2018-10-26 | R131: H
A132: 32 | B132: 2018-10-25 | D132: MARUTI | E132: Buy | F132: 6660 | G132: 6470 | H132: 6865 | I132: 6900-7000 | J132: Profit of Rs.205/- | K132: 205 | L132: 3.08% | M132: Successful | N132: 2018-10-30 | R132: H
A133: 33 | B133: 2018-10-26 | D133: TITAN | E133: Buy | F133: 794.5 | G133: 768.7 | H133: 813 | I133: 840-850 | J133: Profit of Rs.18.5/- | K133: =H133-F133 -> 18.5 | L133: =K133/F133 -> 2.33% | M133: Successful | N133: 2018-10-26 | R133: R
A134: 34 | B134: 2018-10-26 | D134: TATAMOTORS | E134: Buy | F134: 169 | G134: 163 | H134: 175 | I134: 178-180 | J134: Profit of Rs.6/- | K134: 6 | L134: 3.55% | M134: Successful | N134: 2018-10-29 | R134: R
A135: 35 | B135: 2018-10-29 | D135: HCLTECH | E135: Buy | F135: 972.5 | G135: 942.7 | H135: 1008.5 | I135: 1025-1035 | J135: Profit of Rs.36/- | K135: =H135-F135 -> 36 | L135: =K135/F135 -> 3.70% | M135: Successful | N135: 2018-10-30 | R135: R
A136: 36 | B136: 2018-10-30 | D136: INFY | E136: Buy | F136: 659-663 | G136: 638 | I136: 690-700 | J136: Open | R136: H
A137: 37 | B137: 2018-10-30 | D137: ABB | E137: Buy | F137: 1225-1235 | G137: 1180 | I137: 1300 | J137: Open | R137: H
A141: CLBS = Closing Basis *** | F141: Reinitiated $
A142: Dividend adjusted <> | F142: Revised stoploss #
B145: Momentum Call
A146: Sr.no | B146: Date | D146: Company | E146: Rec | F146: Rec Price | G146: Stop Loss | H146: Call Closed At | I146: Target | J146: Remark | K146: Profit / Loss per Share/Lot | L146: Gain / Loss % | M146: Gain / Loss per Lot | N146: Lot | O146: Status | P146: Closed Date
A147: 1 | B147: 2018-10-01 | D147: INFRATEL OCT FUT | E147: Buy | F147: 268 | G147: 260 | H147: 260 | I147: 282 | J147: Loss of Rs.8/- | K147: =H147-F147 -> -8 | M147: =N147*K147 -> -13600 | N147: 1700 | O147: Unsuccessful | P147: 2018-10-03 | R147: N
A148: 2 | B148: 2018-10-03 | D148: TATASTEEL OCT FUT | E148: Buy | F148: 591.5 | G148: 579 | H148: 578 | I148: 610 | J148: Loss of Rs.13.5/- | K148: =H148-F148 -> -13.5 | M148: -14323.5 | N148: 1061 | O148: Unsuccessful | P148: 2018-10-04 | R148: N
A149: 3 | B149: 2018-10-03 | D149: UPL OCT FUT | E149: Buy | F149: 647 | G149: 636 | H149: 640 | I149: 665-670 | J149: Loss of Rs.7/- | K149: =H149-F149 -> -7 | M149: -8400 | N149: 1200 | O149: Unsuccessful | P149: 2018-10-04 | R149: N
A150: 4 | B150: 2018-10-08 | D150: INFRATEL OCT FUT | E150: Buy | F150: 256.5 | G150: 251 | H150: 262 | I150: 265-270 | J150: Profit of Rs.5.5/- | K150: =H150-F150 -> 5.5 | M150: 9350 | N150: 1700 | O150: Successful | P150: 2018-10-08 | R150: N
A151: 5 | B151: 2018-10-08 | D151: HDFC OCT FUT | E151: Sell | F151: 1672.5 | G151: 1702 | H151: 1659 | I151: 1620 | J151: Profit of Rs.13.5/- | K151: =F151-H151 -> 13.5 | M151: 6750 | N151: 500 | O151: Successful | P151: 2018-10-08 | R151: H
A152: 6 | B152: 2018-10-09 | D152: NIITTECH OCT FUT | E152: Buy | F152: 1132.5 | G152: 1115 | H152: 1115 | I152: 1160 | J152: Loss of Rs.17.50/- | K152: =H152-F152 -> -17.5 | M152: -13125 | N152: 750 | O152: Unsuccessful | P152: 2018-10-09 | R152: R
A153: 7 | B153: 2018-10-09 | D153: DIVISLAB OCT FUT | E153: Buy | F153: 1269 | G153: 1255 | H153: 1255 | I153: 1300 | J153: Loss of Rs.14/- | K153: =H153-F153 -> -14 | M153: -11200 | N153: 800 | O153: Unsuccessful | P153: 2018-10-09 | R153: N
A154: 8 | B154: 2018-10-09 | D154: APOLLOHOSP OCT FUT | E154: Buy | F154: 1087.5 | G154: 1058 | H154: 1106.5 | I154: 1150 | J154: Profit of Rs.19/- | K154: =H154-F154 -> 19 | M154: 9500 | N154: 500 | O154: Successful | P154: 2018-10-09 | R154: R
A155: 9 | B155: 2018-10-09 | D155: DIVISLAB OCT FUT | E155: Buy | F155: 1252.5 | G155: 1238 | H155: 1265 | I155: 1300 | J155: Profit of Rs.12.50/- | K155: =H155-F155 -> 12.5 | M155: 10000 | N155: 800 | O155: Successful | P155: 2018-10-09 | R155: R
A156: 10 | B156: 2018-10-10 | D156: VEDL OCT FUT | E156: Sell | F156: 220.5 | G156: 227.3 | H156: 202 | I156: 208-205 | J156: Profit of Rs.18.50/- | K156: =F156-H156 -> 18.5 | M156: =N156*K156 -> 32375 | N156: 1750 | O156: Successful | P156: 2018-10-11 | R156: R
A157: 11 | B157: 2018-10-10 | D157: KOTAKBANK OCT FUT | E157: Buy | F157: 1139 | G157: 1127 | H157: 1120 | I157: 1170 | J157: Loss of Rs.19/- | K157: =H157-F157 -> -19 | M157: -15200 | N157: 800 | O157: Unsuccessful | P157: 2018-10-11 | R157: H
A158: 12 | B158: 2018-10-10 | D158: HINDUNILVR OCT FUT | E158: Buy | F158: 1520 | G158: 1498.7 | H158: 1533.5 | I158: 1550-1560 | J158: Profit of Rs.13.50/- | K158: 13.5 | M158: =N158*K158 -> 8100 | N158: 600 | O158: Successful | P158: 2018-10-10 | R158: R
A159: 13 | B159: 2018-10-10 | D159: CIPLA OCT FUT | E159: Buy | F159: 639 | G159: 627 | H159: 627.5 | I159: 660 | J159: Loss of Rs.11.50/- | K159: -11.5 | M159: -11500 | N159: 1000 | O159: Unsuccessful | P159: 2018-10-11 | R159: R
A160: 14 | B160: 2018-10-11 | D160: BAJAJ-AUTO OCT FUT | E160: Buy | F160: 2550 | G160: 2497 | H160: 2585 | I160: 2650 | J160: Profit of Rs.35/- | K160: 35 | M160: 8750 | N160: 250 | O160: Successful | P160: 2018-10-12 | R160: R
A161: 15 | B161: 2018-10-11 | D161: RAYMOND OCT FUT | E161: Buy | F161: 638 | G161: 623 | H161: 647.5 | I161: 665 | J161: Profit of Rs.9.50/- | K161: 9.5 | M161: =N161*K161 -> 7600 | N161: 800 | O161: Successful | P161: 2018-10-11 | R161: N
A162: 16 | B162: 2018-10-11 | D162: DIVISLAB OCT FUT | E162: Buy | F162: 1283.5 | G162: 1268 | H162: 1268 | I162: 1310 | J162: Loss of Rs.15.50/- | K162: -15.5 | M162: -12400 | N162: 800 | O162: Unsuccessful | P162: 2018-10-11 | R162: R
A163: 17 | B163: 2018-10-12 | D163: APOLLOHOSP OCT FUT | E163: Buy | F163: 1106.5 | G163: 1080 | H163: 1123 | I163: 1160 | J163: Profit of Rs.16.5/- | K163: 16.5 | M163: 8250 | N163: 500 | O163: Successful | P163: 2018-10-12 | R163: N
A164: 18 | B164: 2018-10-12 | D164: ARVIND OCT FUT | E164: Buy | F164: 329.5 | G164: 323 | H164: 323.5 | I164: 345 | J164: Loss of Rs.6/- | K164: =H164-F164 -> -6 | M164: =N164*K164 -> -12000 | N164: 2000 | O164: Unsuccessful | P164: 2018-10-15 | R164: N
A165: 19 | B165: 2018-10-12 | D165: HINDALCO OCT FUT | E165: Sell | F165: 226 | G165: 229.8 | H165: 229.8 | I165: 220-218 | J165: Loss of Rs 3.8/- | K165: =F165-H165 -> -3.8 | M165: =N165*K165 -> -13300 | N165: 3500 | O165: Unsuccessful | P165: 2018-10-15 | R165: R
A166: 20 | B166: 2018-10-12 | D166: DIVISLAB OCT FUT | E166: Sell | F166: 1288.5 | G166: 1305 | H166: 1281 | I166: 1260 | J166: Profit of Rs.7.50/- | K166: =F166-H166 -> 7.5 | M166: =N166*K166 -> 6000 | N166: 800 | O166: Successful | P166: 2018-10-12 | R166: N
A167: 21 | B167: 2018-10-12 | D167: STAR OCT FUT | E167: Sell | F167: 423.5 | G167: 436 | H167: 436 | I167: 405 | J167: Loss of Rs.12.5/- | K167: =F167-H167 -> -12.5 | M167: -10000 | N167: 800 | O167: Unsuccessful | P167: 2018-10-15 | R167: H
A168: 22 | B168: 2018-10-15 | D168: ACC | E168: Buy | F168: 1474 | G168: 1441 | H168: 1498.5 | I168: 1520-1530 | J168: Profit of Rs.24.5/- | K168: =H168-F168 -> 24.5 | L168: =K168/F168 -> 1.66% | O168: Successful | P168: 2018-10-15 | R168: H
A169: 23 | B169: 2018-10-15 | D169: GRASIM OCT FUT | E169: Sell | F169: 893 | G169: 910 | H169: 910 | I169: 860 | J169: Loss of Rs.17/- | K169: =F169-H169 -> -17 | M169: =N169*K169 -> -12750 | N169: 750 | O169: Unsuccessful | P169: 2018-10-16 | R169: N
A170: 24 | B170: 2018-10-15 | D170: SUNTV OCT FUT | E170: Buy | F170: 661 | G170: 652 | H170: 652 | I170: 685 | J170: Loss of Rs.9/- | K170: =H170-F170 -> -9 | M170: =N170*K170 -> -9000 | N170: 1000 | O170: Unsuccessful | P170: 2018-10-15 | R170: R
A171: 25 | B171: 2018-10-16 | D171: INFRATEL OCT FUT | E171: Sell | F171: 275 | G171: 282.5 | H171: 267.5 | I171: 260-255 | J171: Profit of Rs.7.5/- | K171: =F171-H171 -> 7.5 | M171: 12750 | N171: 1700 | O171: Successful | P171: 2018-10-16 | R171: R
A172: 26 | B172: 2018-10-16 | D172: BALKRISIND | E172: Buy | F172: 1049 | G172: 1028 | H172: 1015 | I172: 1100 | J172: Loss of Rs.34/- | K172: =H172-F172 -> -34 | L172: =K172/F172 -> -3.24% | O172: Unsuccessful | P172: 2018-10-22 | R172: H
A173: 27 | B173: 2018-10-16 | D173: APOLLOHOSP OCT FUT | E173: Buy | F173: 1098 | G173: 1073 | H173: 1116 | I173: 1150 | J173: Profit of Rs.18/- | K173: =H173-F173 -> 18 | M173: =N173*K173 -> 9000 | N173: 500 | O173: Successful | P173: 2018-10-17 | R173: N
A174: 28 | B174: 2018-10-17 | D174: HCLTECH OCT FUT | E174: Sell | F174: 1034 | G174: 1052.3 | H174: 1023.5 | I174: 1000 | J174: Profit of Rs.10.50/- | K174: =F174-H174 -> 10.5 | M174: 6300 | N174: 600 | O174: Successful | P174: 2018-10-17 | R174: R
A175: 29 | B175: 2018-10-17 | D175: RAYMOND OCT FUT | E175: Buy | F175: 651 | G175: 636 | H175: 633 | I175: 680 | J175: Loss of Rs.18/- | K175: =H175-F175 -> -18 | M175: -14400 | N175: 800 | O175: Unsuccessful | P175: 2018-10-19 | R175: N
A176: 30 | B176: 2018-10-19 | D176: JUBLFOOD | E176: Buy | F176: 1220 | G176: 1195 | H176: 1244.5 | I176: 1260-1280 | J176: Profit of Rs.24.5/- | K176: 24.5 | L176: =K176/F176 -> 2.01% | O176: Successful | P176: 2018-10-19 | R176: R
A177: 31 | B177: 2018-10-19 | D177: MARUTI OCT FUT | E177: Buy | F177: 6815 | G177: 6650 | H177: 6905 | I177: 7200 | J177: Profit of Rs.90/- | K177: 90 | M177: =N177*K177 -> 6750 | N177: 75 | O177: Successful | P177: 2018-10-22 | R177: N
A178: 32 | B178: 2018-10-22 | D178: KOTAKBANK | E178: Buy | F178: 1195 | G178: 1158 | H178: 1210.5 | I178: 1250-1260 | J178: Profit of Rs.15.5/- | K178: =H178-F178 -> 15.5 | L178: =K178/F178 -> 1.30% | O178: Successful | P178: 2018-10-22 | R178: H
A179: 33 | B179: 2018-10-23 | D179: DIVISLAB OCT FUT | E179: Buy | F179: 1286.5 | G179: 1271 | H179: 1298 | I179: 1315 | J179: Profit of Rs.11.50/- | K179: =H179-F179 -> 11.5 | M179: =N179*K179 -> 9200 | N179: 800 | O179: Successful | P179: 2018-10-23 | R179: N
A180: 34 | B180: 2018-10-23 | D180: TATASTEEL NOV FUT | E180: Sell | F180: 542 | G180: 555 | H180: 555.5 | I180: 520 | J180: Loss of Rs.13.5/- | K180: =F180-H180 -> -13.5 | M180: -14323.5 | N180: 1061 | O180: Unsuccessful | P180: 2018-10-24 | R180: H
A181: 35 | B181: 2018-10-24 | D181: VOLTAS NOV FUT | E181: Sell | F181: 507 | G181: 517 | H181: 506 | I181: 490 | J181: Profit of Rs.1/- | K181: =F181-H181 -> 1 | M181: =N181*K181 -> 1000 | N181: 1000 | O181: Neutral | P181: 2018-10-26 | R181: R
A182: 36 | B182: 2018-10-24 | D182: DIVISLAB OCT FUT | E182: Buy | F182: 1253 | G182: 1238 | H182: 1239 | I182: 1290 | J182: Loss of Rs.14/- | K182: =H182-F182 -> -14 | M182: =N182*K182 -> -11200 | N182: 800 | O182: Unsuccessful | P182: 2018-10-24 | R182: N
A183: 37 | B183: 2018-10-25 | D183: ASHOKLEY NOV FUT | E183: Buy | F183: 112.25 | G183: 109 | H183: 114.75 | I183: 118 | J183: Profit of Rs.2.50/- | K183: =H183-F183 -> 2.5 | M183: 10000 | N183: 4000 | O183: Successful | P183: 2018-10-23 | R183: N
A184: 38 | B184: 2018-10-26 | D184: KPIT NOV FUT | E184: Sell | F184: 216 | G184: 222.2 | H184: 222.2 | I184: 208-205 | J184: Loss of Rs.6.2/- | K184: =F184-H184 -> -6.2 | M184: -13950 | N184: 2250 | O184: Unsuccessful | P184: 2018-10-30 | R184: R
A185: 39 | B185: 2018-10-26 | D185: M&M | E185: Buy | F185: 736 | G185: 718 | H185: 754.5 | I185: 770-780 | J185: Profit of Rs.18.5/- | K185: =H185-F185 -> 18.5 | L185: =K185/F185 -> 2.51% | O185: Successful | P185: 2018-10-30 | R185: H
A186: 40 | B186: 2018-10-26 | D186: LT NOV FUT | E186: Buy | F186: 1212.5 | G186: 1188 | H186: 1233.5 | I186: 1250-1260 | J186: Profit of Rs.21/- | K186: =H186-F186 -> 21 | M186: =N186*K186 -> 7875 | N186: 375 | O186: Successful | P186: 2018-10-29 | R186: H
A187: 41 | B187: 2018-10-26 | D187: EXIDEIND NOV FUT | E187: Buy | F187: 250.5 | G187: 244 | H187: 254 | I187: 262 | J187: Profit of Rs.3.50/- | K187: =H187-F187 -> 3.5 | M187: =N187*K187 -> 7000 | N187: 2000 | O187: Successful | P187: 2018-10-29 | R187: N
A188: 42 | B188: 2018-10-29 | D188: CIPLA NOV FUT | E188: Sell | F188: 614 | G188: 625 | H188: 625 | I188: 595 | J188: Loss of Rs.11/- | K188: =F188-H188 -> -11 | M188: =N188*K188 -> -11000 | N188: 1000 | O188: Unsuccessful | P188: 2018-10-29 | R188: H
A189: 43 | B189: 2018-10-29 | D189: HDFC | E189: Buy | F189: 1670 | G189: 1635 | H189: 1700 | I189: 1730-1750 | J189: Profit of Rs.30/- | K189: =H189-F189 -> 30 | L189: =K189/F189 -> 1.80% | O189: Successful | P189: 2018-10-29 | R189: H
A190: 44 | B190: 2018-10-30 | D190: JSWSTEEL NOV FUT | E190: Buy | F190: 338.50-339.50 | G190: 332 | I190: 354 | J190: Open | R190: N
A191: 45 | B191: 2018-10-30 | D191: AMBUJACEM | E191: Buy | F191: 194-195 | G191: 189.5 | I191: 202-205 | J191: Open | R191: H
A192: 46 | B192: 2018-10-30 | D192: BATAINDIA NOV FUT | E192: Sell | F192: 936.5 | G192: 955.3 | H192: 955.3 | I192: 910 | J192: Loss of Rs.18.8/- | K192: =F192-H192 -> -18.8 | M192: =N192*K192 -> -10340 | N192: 550 | O192: Unsuccessful | P192: 2018-10-30 | R192: R
A193: 47 | B193: 2018-10-30 | D193: PVR NOV FUT | E193: Sell | F193: 1348-1352 | G193: 1382 | I193: 1280 | J193: Open | R193: R
A194: 48 | B194: 2018-10-30 | D194: HDFC | E194: Buy | F194: 1670-1680 | G194: 1638 | I194: 1730-1750 | J194: Open | R194: H
A195: 49 | B195: 2018-10-30 | D195: MARUTI NOV FUT | E195: Buy | F195: 6755-6765 | G195: 6600 | I195: 7000 | J195: Open | R195: N
A198: CLBS = Closing Basis ***
A199: Dividend adjusted <> | F199: Reinitiated $
F200: Revised stoploss #
B201: Quick Pick Intraday
A202: Sr.no | B202: Date | D202: Company | E202: Rec | F202: Rec Price | G202: Stop Loss*** | H202: Call Closed At | I202: Target | J202: Remark | K202: Profit / Loss per Share | L202: Status | M202: Closed Date
A216: Techno -Funda (positional)
A217: Sr.no | B217: Date | D217: Company | E217: Rec | F217: Rec Price | G217: Stop Loss*** | H217: Call Closed At | I217: Target | J217: Remark | K217: Profit / Loss per Share | L217: Gain / Loss % | M217: Status | N217: Closed Date | O217: NSE Closed Price
A220: CLBS = Closing Basis *** | F220: Reinitiated $
A221: Dividend adjusted <> | F221: Revised stoploss #
B226: Investment Idea
A227: Sr.no | B227: Date | D227: Company | E227: Rec | F227: Rec Price | G227: Point of Review | H227: Close Rate | I227: Target | J227: Remark | K227: Profit / Loss per Share | L227: Gain / Loss % | M227: Status | N227: Closed Date
A228: 1 | B228: 2013-11-01 | D228: L&T Finance Holding | E228: Accu | F228: 82.00 | G228: - | H228: 100 | I228: 100.00 | J228: Target Achieved | K228: =H228-F228 -> 18.00 | L228: =K228/F228 -> 21.95% | M228: Successful | N228: 2016-10-14
A229: 2 | B229: 2014-06-04 | D229: Finolex Inds | E229: Buy | F229: 257.00 | G229: - | H229: 300 | I229: 300.00 | J229: Target Achieved | K229: =H229-F229 -> 43.00 | L229: 16.73% | M229: Successful | N229: 2014-07-02
A230: =1+A229 -> 3 | B230: 2014-07-08 | D230: JK Cement | E230: Buy | F230: 393.00 | G230: - | H230: 468 | I230: 468.00 | J230: Target Achieved | K230: =H230-F230 -> 75.00 | L230: 19.08% | M230: Successful | N230: 2014-08-12
A231: 4 | B231: 2014-08-06 | D231: Finolex Cables | E231: Buy | F231: 205.00 | G231: - | H231: 275 | I231: 250.00 | J231: Target Achieved | K231: 70.00 | L231: 34.15% | M231: Successful | N231: 2014-11-19
A232: 5 | B232: 2014-09-04 | D232: Exide Inds | E232: Buy | F232: 162.00 | G232: - | H232: 190 | I232: 190.00 | J232: Target Achieved | K232: 28.00 | L232: 17.28% | M232: Successful | N232: 2015-01-02
A233: 6 | B233: 2014-09-04 | D233: Deepak Nitrite | E233: Buy | F233: 75.00 | G233: - | H233: 91.5 | I233: 95-100 | J233: Profit of Rs.16.50/- | K233: 16.50 | L233: 22.00% | M233: Successful | N233: 2014-11-11
A234: 7 | B234: 2014-10-01 | D234: Mercks | E234: Buy | F234: 850.00 | G234: - | H234: 982.5 | I234: 1050.00 | J234: Profit of Rs.132.50/- | K234: 132.50 | L234: 15.59% | M234: Successful | N234: 2015-02-04
A235: 8 | B235: 2014-10-01 | D235: Grindwell Norton | E235: Buy | F235: 475.00 | G235: - | H235: 515 | I235: 600.00 | J235: Profit of Rs.40/- | K235: 40.00 | L235: 8.42% | M235: Successful | N235: 2014-10-27
A236: 9 | B236: 2014-10-01 | D236: Snowman Logistics | E236: Buy | F236: 86.00 | G236: - | H236: 99 | I236: 140.00 | J236: Profit of Rs.13.00/- | K236: 13.00 | L236: 15.12% | M236: Successful | N236: 2014-10-27
A237: 10 | B237: 2014-10-14 | D237: Birla Corp | E237: Buy | F237: 496.60 | G237: - | H237: 621 | I237: 580.00 | J237: Target Achieved | K237: 124.40 | L237: 25.05% | M237: Successful | N237: 2016-08-23
A238: 11 | B238: 2014-10-14 | D238: Ultratech Cem | E238: Buy | F238: 2481.90 | G238: - | H238: 2840 | I238: 2870.00 | J238: Profit of Rs.358.10/- | K238: 358.10 | L238: 14.43% | M238: Successful | N238: 2015-01-13
A239: =1+A236 -> 10 | B239: 2014-10-16 | D239: Sintex Inds | E239: Buy | F239: 84.50 | G239: - | H239: 93 | I239: 110.00 | J239: Profit of Rs.8.50/- | K239: 8.50 | L239: 10.06% | M239: Successful | N239: 2014-10-27
A240: =1+A239 -> 11 | B240: 2014-10-16 | D240: HSIL | E240: Buy | F240: 401.00 | G240: - | H240: 428 | I240: 450.00 | J240: Profit of Rs.27.00/- | K240: 27.00 | L240: 6.73% | M240: Successful | N240: 2015-01-16
A241: 12 | B241: 2014-10-16 | D241: Eveready Inds | E241: Buy | F241: 101.00 | G241: - | H241: 112 | I241: 120.00 | J241: Profit of Rs.11.00/- | K241: 11.00 | L241: 10.89% | M241: Successful | N241: 2014-10-27
A242: 13 | B242: 2014-11-11 | D242: Pennar Inds | E242: Buy | F242: 59.00 | G242: - | H242: 76 | I242: 76.00 | J242: Target Achieved | K242: 17.00 | L242: 28.81% | M242: Successful | N242: 2017-10-24
A243: 14 | B243: 2014-11-11 | D243: Snowman Logistics | E243: Buy | F243: 99.00 | G243: - | H243: 120 | I243: 120.00 | J243: Profit of Rs.21/- | K243: 21.00 | L243: 21.21% | M243: Successful | N243: 2014-11-17
A244: 15 | B244: 2014-11-13 | D244: Dharamsi Morarji Chem | E244: Buy | F244: 22.00 | G244: - | H244: 33.55 | I244: 32.00 | J244: Profit of Rs 11.55/- | K244: 11.55 | L244: 52.50% | M244: Successful | N244: 2015-07-03
A245: 16 | B245: 2014-12-03 | D245: Tatachem | E245: Buy | F245: 440.00 | G245: - | H245: 520 | I245: 520.00 | J245: Profit of Rs 80.00/- | K245: 80.00 | L245: 18.18% | M245: Successful | N245: 2015-07-23
A246: 17 | B246: 2014-12-03 | D246: Advanta | E246: Buy | F246: 360.00 | G246: - | H246: 427 | I246: 425.00 | J246: Profit of Rs.67.00/- | K246: 67.00 | L246: 18.61% | M246: Successful | N246: 2015-02-23
... 124 more rows

Sheet Sheet2 (hidden)
A1: SYMBOL | B1: SERIES | C1: OPEN | D1: HIGH | E1: LOW | F1: CLOSE | G1: LAST | H1: PREVCLOSE | I1: TOTTRDQTY | J1: TOTTRDVAL | K1: TIMESTAMP | L1: TOTALTRADES | M1: ISIN | N1: ISIN
A2: 20MICRONS | B2: EQ | C2: 40 | D2: 42 | E2: 40 | F2: 41.45 | G2: 41.65 | H2: 40.6 | I2: 38261 | J2: 1590680.95 | K2: 2018-10-30 | L2: 469 | M2: INE144J01027
A3: 21STCENMGM | B3: EQ | C3: 23.15 | D3: 23.15 | E3: 23.15 | F3: 23.15 | G3: 23.15 | H3: 23.6 | I3: 367 | J3: 8496.05 | K3: 2018-10-30 | L3: 9 | M3: INE253B01015
A4: 3IINFOTECH | B4: EQ | C4: 3.15 | D4: 3.55 | E4: 3.1 | F4: 3.4 | G4: 3.4 | H4: 3.1 | I4: 5086512 | J4: 17066358.4 | K4: 2018-10-30 | L4: 1658 | M4: INE748C01020
A5: 3MINDIA | B5: EQ | C5: 19895.6 | D5: 20453.45 | E5: 19802.75 | F5: 20271.75 | G5: 20401 | H5: 19772.05 | I5: 1894 | J5: 38233807.95 | K5: 2018-10-30 | L5: 807 | M5: INE470A01017
A6: 3PLAND | B6: BE | C6: 11.45 | D6: 11.5 | E6: 11.45 | F6: 11.5 | G6: 11.5 | H6: 11.5 | I6: 1686 | J6: 19339 | K6: 2018-10-30 | L6: 5 | M6: INE105C01023
A7: 5PAISA | B7: EQ | C7: 186.8 | D7: 186.8 | E7: 175.1 | F7: 177.4 | G7: 175.1 | H7: 179.9 | I7: 4522 | J7: 813901.15 | K7: 2018-10-30 | L7: 375 | M7: INE618L01018
A8: 63MOONS | B8: EQ | C8: 75.6 | D8: 77 | E8: 74.8 | F8: 75.3 | G8: 75.5 | H8: 75.85 | I8: 115437 | J8: 8769862.95 | K8: 2018-10-30 | L8: 1780 | M8: INE111B01023
A9: 8KMILES | B9: EQ | C9: 75.85 | D9: 75.85 | E9: 75.85 | F9: 75.85 | G9: 75.85 | H9: 79.8 | I9: 258606 | J9: 19615265.1 | K9: 2018-10-30 | L9: 479 | M9: INE650K01021
A10: A2ZINFRA | B10: EQ | C10: 11.9 | D10: 11.9 | E10: 11.3 | F10: 11.65 | G10: 11.7 | H10: 11.35 | I10: 377563 | J10: 4420493.1 | K10: 2018-10-30 | L10: 768 | M10: INE619I01012
A11: AARTIDRUGS | B11: EQ | C11: 584 | D11: 592.4 | E11: 559.7 | F11: 572.8 | G11: 575 | H11: 581.2 | I11: 24081 | J11: 13922329.25 | K11: 2018-10-30 | L11: 1976 | M11: INE767A01016
A12: AARTIIND | B12: EQ | C12: 1260 | D12: 1275 | E12: 1250 | F12: 1260.2 | G12: 1270.1 | H12: 1254.55 | I12: 62352 | J12: 78542962.1 | K12: 2018-10-30 | L12: 2058 | M12: INE769A01020
A13: AARVEEDEN | B13: EQ | C13: 24.55 | D13: 24.55 | E13: 23.5 | F13: 23.65 | G13: 23.85 | H13: 24.05 | I13: 3873 | J13: 91705.35 | K13: 2018-10-30 | L13: 69 | M13: INE273D01019
A14: AAVAS | B14: EQ | C14: 630 | D14: 648 | E14: 627.95 | F14: 645.5 | G14: 645 | H14: 635.4 | I14: 30058 | J14: 19231172 | K14: 2018-10-30 | L14: 1631 | M14: INE216P01012
A15: ABAN | B15: EQ | C15: 73.25 | D15: 75.35 | E15: 72.5 | F15: 73.75 | G15: 73.7 | H15: 73.25 | I15: 379551 | J15: 28047125.85 | K15: 2018-10-30 | L15: 4822 | M15: INE421A01028
A16: ABB | B16: EQ | C16: 1239.1 | D16: 1265 | E16: 1190 | F16: 1208.2 | G16: 1215 | H16: 1230.75 | I16: 370386 | J16: 454382001.5 | K16: 2018-10-30 | L16: 31622 | M16: INE117A01022
A17: ABBOTINDIA | B17: EQ | C17: 7141.35 | D17: 7226.3 | E17: 7010.6 | F17: 7141.7 | G17: 7116 | H17: 7110.05 | I17: 1857 | J17: 13257923.2 | K17: 2018-10-30 | L17: 687 | M17: INE358A01014
A18: ABCAPITAL | B18: EQ | C18: 100.7 | D18: 104 | E18: 100.1 | F18: 100.85 | G18: 100.8 | H18: 101.15 | I18: 1288058 | J18: 131361472.7 | K18: 2018-10-30 | L18: 14259 | M18: INE674K01013
A19: ABFRL | B19: EQ | C19: 178.2 | D19: 184.4 | E19: 178.2 | F19: 180.25 | G19: 180.05 | H19: 179.55 | I19: 315475 | J19: 57332255.4 | K19: 2018-10-30 | L19: 6890 | M19: INE647O01011
A20: ACC | B20: EQ | C20: 1356.25 | D20: 1366 | E20: 1336.2 | F20: 1344.9 | G20: 1345 | H20: 1350.4 | I20: 627050 | J20: 849067672.5 | K20: 2018-10-30 | L20: 17489 | M20: INE012A01025
A21: ACCELYA | B21: EQ | C21: 951 | D21: 975 | E21: 950.3 | F21: 969.45 | G21: 964.7 | H21: 953.35 | I21: 12698 | J21: 12266011.35 | K21: 2018-10-30 | L21: 811 | M21: INE793A01012
A22: ACE | B22: EQ | C22: 97.95 | D22: 101.65 | E22: 92 | F22: 95.2 | G22: 95 | H22: 99.35 | I22: 352066 | J22: 34279826.5 | K22: 2018-10-30 | L22: 7757 | M22: INE731H01025
A23: ADANIENT | B23: EQ | C23: 172.5 | D23: 174 | E23: 168.1 | F23: 169.05 | G23: 168.6 | H23: 171.75 | I23: 3885243 | J23: 664047762.8 | K23: 2018-10-30 | L23: 24838 | M23: INE423A01024
A24: ADANIGREEN | B24: EQ | C24: 39.9 | D24: 39.9 | E24: 38.45 | F24: 39.3 | G24: 38.95 | H24: 38 | I24: 3882939 | J24: 154226494.9 | K24: 2018-10-30 | L24: 6292 | M24: INE364U01010
A25: ADANIPORTS | B25: EQ | C25: 324 | D25: 335.4 | E25: 320 | F25: 322.6 | G25: 322.4 | H25: 326.4 | I25: 4301781 | J25: 1406072936 | K25: 2018-10-30 | L25: 62907 | M25: INE742F01042
A26: ADANIPOWER | B26: EQ | C26: 41.95 | D26: 45.6 | E26: 41.6 | F26: 44.75 | G26: 44.8 | H26: 42.3 | I26: 52394875 | J26: 2283084249 | K26: 2018-10-30 | L26: 83379 | M26: INE814H01011
A27: ADANITRANS | B27: EQ | C27: 167.5 | D27: 174 | E27: 162 | F27: 162.6 | G27: 162.5 | H27: 163.4 | I27: 313079 | J27: 52198599.25 | K27: 2018-10-30 | L27: 2973 | M27: INE931S01010
A28: ADFFOODS | B28: EQ | C28: 202.9 | D28: 205 | E28: 199 | F28: 200.1 | G28: 200 | H28: 202.3 | I28: 12078 | J28: 2435348.6 | K28: 2018-10-30 | L28: 403 | M28: INE982B01019
A29: ADHUNIK | B29: EQ | C29: 2.7 | D29: 2.8 | E29: 2.7 | F29: 2.8 | G29: 2.8 | H29: 2.7 | I29: 25627 | J29: 71289.65 | K29: 2018-10-30 | L29: 51 | M29: INE400H01019
A30: ADHUNIKIND | B30: EQ | C30: 46.15 | D30: 46.2 | E30: 40.3 | F30: 42.8 | G30: 42.65 | H30: 45.7 | I30: 28139 | J30: 1187305.6 | K30: 2018-10-30 | L30: 337 | M30: INE452L01012
A31: ADLABS | B31: EQ | C31: 12 | D31: 12.15 | E31: 11.45 | F31: 12.15 | G31: 12.15 | H31: 11.6 | I31: 272743 | J31: 3231226.15 | K31: 2018-10-30 | L31: 811 | M31: INE172N01012
A32: ADORWELD | B32: EQ | C32: 360.15 | D32: 365.65 | E32: 356 | F32: 360.05 | G32: 360 | H32: 360.55 | I32: 10802 | J32: 3904640.7 | K32: 2018-10-30 | L32: 342 | M32: INE045A01017
A33: ADROITINFO | B33: EQ | C33: 19.05 | D33: 20.5 | E33: 19 | F33: 20.5 | G33: 20.5 | H33: 19.8 | I33: 797 | J33: 15145 | K33: 2018-10-30 | L33: 9 | M33: INE737B01033
A34: ADSL | B34: EQ | C34: 13.2 | D34: 14.35 | E34: 12.65 | F34: 13.05 | G34: 13 | H34: 12.8 | I34: 13542 | J34: 178797.7 | K34: 2018-10-30 | L34: 81 | M34: INE102I01027
A35: ADVANIHOTR | B35: EQ | C35: 57 | D35: 59 | E35: 54.2 | F35: 55.15 | G35: 55 | H35: 58.4 | I35: 22537 | J35: 1276946.95 | K35: 2018-10-30 | L35: 256 | M35: INE199C01026
A36: ADVENZYMES | B36: EQ | C36: 179.5 | D36: 182 | E36: 176.55 | F36: 177.4 | G36: 178.9 | H36: 179.6 | I36: 89900 | J36: 16164419.8 | K36: 2018-10-30 | L36: 3519 | M36: INE837H01020
A37: AEGISCHEM | B37: EQ | C37: 230.55 | D37: 230.55 | E37: 224.45 | F37: 226.2 | G37: 225.75 | H37: 228.7 | I37: 116264 | J37: 26376482.2 | K37: 2018-10-30 | L37: 9046 | M37: INE208C01025
A38: AGARIND | B38: EQ | C38: 203.35 | D38: 203.35 | E38: 186.05 | F38: 189.8 | G38: 186.7 | H38: 185.8 | I38: 241 | J38: 45838.3 | K38: 2018-10-30 | L38: 20 | M38: INE204E01012
A39: AGCNET | B39: EQ | C39: 56.5 | D39: 56.5 | E39: 53.5 | F39: 54.75 | G39: 54.5 | H39: 53.5 | I39: 10195 | J39: 558441.2 | K39: 2018-10-30 | L39: 109 | M39: INE676A01019
A40: AGLSL | B40: EQ | C40: 77.2 | D40: 79.5 | E40: 75.5 | F40: 79.1 | G40: 79.5 | H40: 76.2 | I40: 902 | J40: 69370 | K40: 2018-10-30 | L40: 13 | M40: INE517U01013
A41: AGRITECH | B41: EQ | C41: 54.05 | D41: 56.55 | E41: 52 | F41: 53.65 | G41: 53.9 | H41: 55.25 | I41: 12018 | J41: 656689.2 | K41: 2018-10-30 | L41: 385 | M41: INE449G01018
A42: AHLEAST | B42: EQ | C42: 238 | D42: 240 | E42: 234.05 | F42: 240 | G42: 240 | H42: 238.7 | I42: 73 | J42: 17459.9 | K42: 2018-10-30 | L42: 9 | M42: INE926K01017
A43: AHLUCONT | B43: EQ | C43: 264.3 | D43: 284 | E43: 264.3 | F43: 281.9 | G43: 281.3 | H43: 264.2 | I43: 1825 | J43: 509172.75 | K43: 2018-10-30 | L43: 206 | M43: INE758C01029
A44: AIAENG | B44: EQ | C44: 1692.9 | D44: 1774.8 | E44: 1692.85 | F44: 1731.1 | G44: 1740 | H44: 1708.65 | I44: 32163 | J44: 55957696.95 | K44: 2018-10-30 | L44: 5345 | M44: INE212H01026
A45: AIFL | B45: EQ | C45: 88.05 | D45: 88.05 | E45: 88.05 | F45: 88.05 | G45: 88.05 | H45: 92.65 | I45: 610 | J45: 53710.5 | K45: 2018-10-30 | L45: 25 | M45: INE428O01016
A46: AIONJSW | B46: BE | C46: 31.5 | D46: 31.65 | E46: 29.75 | F46: 30.45 | G46: 30.05 | H46: 30.2 | I46: 44513 | J46: 1361431.35 | K46: 2018-10-30 | L46: 191 | M46: INE743C01021
A47: AJANTPHARM | B47: EQ | C47: 1024.7 | D47: 1037.65 | E47: 1005.6 | F47: 1010 | G47: 1012 | H47: 1016.3 | I47: 256601 | J47: 262822192.3 | K47: 2018-10-30 | L47: 10389 | M47: INE031B01049
A48: AJMERA | B48: EQ | C48: 147.95 | D48: 156.7 | E48: 145.45 | F48: 152.55 | G48: 152.5 | H48: 146.65 | I48: 32278 | J48: 4892432.85 | K48: 2018-10-30 | L48: 1057 | M48: INE298G01027
A49: AKSHARCHEM | B49: EQ | C49: 480.45 | D49: 499 | E49: 455.6 | F49: 461.55 | G49: 465.9 | H49: 480.45 | I49: 13281 | J49: 6280114.05 | K49: 2018-10-30 | L49: 865 | M49: INE542B01011
A50: AKSHOPTFBR | B50: EQ | C50: 27.35 | D50: 28.4 | E50: 27.05 | F50: 27.5 | G50: 27.45 | H50: 27.2 | I50: 2146767 | J50: 59685343.75 | K50: 2018-10-30 | L50: 5379 | M50: INE523B01011
A51: AKZOINDIA | B51: EQ | C51: 1539 | D51: 1544 | E51: 1479.5 | F51: 1502.3 | G51: 1527 | H51: 1539.3 | I51: 13226 | J51: 19964463.05 | K51: 2018-10-30 | L51: 1399 | M51: INE133A01011
A52: ALANKIT | B52: EQ | C52: 20.25 | D52: 20.6 | E52: 18.55 | F52: 19.8 | G52: 19.55 | H52: 20.35 | I52: 474540 | J52: 9520882.7 | K52: 2018-10-30 | L52: 856 | M52: INE914E01040
A53: ALBERTDAVD | B53: EQ | C53: 524 | D53: 528.95 | E53: 515 | F53: 519.35 | G53: 521.9 | H53: 510 | I53: 9441 | J53: 4927978.8 | K53: 2018-10-30 | L53: 435 | M53: INE155C01010
A54: ALBK | B54: EQ | C54: 40.5 | D54: 43.45 | E54: 40.15 | F54: 41.75 | G54: 41.75 | H54: 40.65 | I54: 8225585 | J54: 346041555.1 | K54: 2018-10-30 | L54: 19510 | M54: INE428A01015
A55: ALCHEM | B55: BE | C55: 3.55 | D55: 3.7 | E55: 3.4 | F55: 3.6 | G55: 3.55 | H55: 3.55 | I55: 6961 | J55: 24815.45 | K55: 2018-10-30 | L55: 42 | M55: INE964B01033
A56: ALEMBICLTD | B56: EQ | C56: 40.5 | D56: 43.2 | E56: 40.15 | F56: 42.8 | G56: 42.55 | H56: 40.45 | I56: 549078 | J56: 23038596.5 | K56: 2018-10-30 | L56: 3577 | M56: INE426A01027
A57: ALICON | B57: EQ | C57: 604 | D57: 633.8 | E57: 595 | F57: 600.95 | G57: 608 | H57: 599.5 | I57: 841 | J57: 504447.5 | K57: 2018-10-30 | L57: 74 | M57: INE062D01024
A58: ALKALI | B58: EQ | C58: 62.85 | D58: 65.55 | E58: 59 | F58: 60.6 | G58: 59.65 | H58: 61.45 | I58: 60580 | J58: 3817900.75 | K58: 2018-10-30 | L58: 597 | M58: INE773I01017
A59: ALKEM | B59: EQ | C59: 1925 | D59: 1943.3 | E59: 1901 | F59: 1918.6 | G59: 1919.95 | H59: 1924.6 | I59: 27349 | J59: 52446176.4 | K59: 2018-10-30 | L59: 3926 | M59: INE540L01014
A60: ALKYLAMINE | B60: EQ | C60: 586.95 | D60: 600 | E60: 575.3 | F60: 592.3 | G60: 592 | H60: 586.95 | I60: 1697 | J60: 1008182.8 | K60: 2018-10-30 | L60: 82 | M60: INE150B01021
A61: ALLCARGO | B61: EQ | C61: 100.9 | D61: 102.9 | E61: 99.75 | F61: 101.35 | G61: 101.25 | H61: 100.9 | I61: 100141 | J61: 10147022.85 | K61: 2018-10-30 | L61: 1174 | M61: INE418H01029
A62: ALLSEC | B62: EQ | C62: 235.1 | D62: 245 | E62: 229.75 | F62: 242.25 | G62: 244 | H62: 238.05 | I62: 4966 | J62: 1193547.75 | K62: 2018-10-30 | L62: 272 | M62: INE835G01018
A63: ALMONDZ | B63: EQ | C63: 21.1 | D63: 22.15 | E63: 21.1 | F63: 22.05 | G63: 21.55 | H63: 21.1 | I63: 1052 | J63: 23200.05 | K63: 2018-10-30 | L63: 20 | M63: INE326B01027
A64: ALOKTEXT | B64: EQ | C64: 3.25 | D64: 3.25 | E64: 3.05 | F64: 3.05 | G64: 3.1 | H64: 3.2 | I64: 3196532 | J64: 10057383.35 | K64: 2018-10-30 | L64: 1536 | M64: INE270A01011
A65: ALPA | B65: EQ | C65: 25.4 | D65: 26.4 | E65: 25.15 | F65: 26.25 | G65: 26.15 | H65: 25.95 | I65: 33140 | J65: 868371.8 | K65: 2018-10-30 | L65: 98 | M65: INE385I01010
A66: ALPHAGEO | B66: EQ | C66: 482.95 | D66: 490 | E66: 481.2 | F66: 489.5 | G66: 490 | H66: 480.7 | I66: 3814 | J66: 1863695.15 | K66: 2018-10-30 | L66: 203 | M66: INE137C01018
A67: ALPSINDUS | B67: BE | C67: 2.8 | D67: 2.8 | E67: 2.6 | F67: 2.6 | G67: 2.6 | H67: 2.7 | I67: 10906 | J67: 28975.25 | K67: 2018-10-30 | L67: 12 | M67: INE093B01015
A68: AMARAJABAT | B68: EQ | C68: 760.05 | D68: 772.5 | E68: 748.45 | F68: 753.2 | G68: 753 | H68: 764.25 | I68: 275795 | J68: 208879907.6 | K68: 2018-10-30 | L68: 9300 | M68: INE885A01032
A69: AMBER | B69: EQ | C69: 854.85 | D69: 867.05 | E69: 847.25 | F69: 860.45 | G69: 863 | H69: 845.2 | I69: 2298 | J69: 1976144.3 | K69: 2018-10-30 | L69: 315 | M69: INE371P01015
A70: AMBIKCO | B70: EQ | C70: 1138 | D70: 1166 | E70: 1138 | F70: 1148.2 | G70: 1143 | H70: 1137.15 | I70: 1120 | J70: 1286005.65 | K70: 2018-10-30 | L70: 121 | M70: INE540G01014
A71: AMBUJACEM | B71: EQ | C71: 193.1 | D71: 197.1 | E71: 192.05 | F71: 192.45 | G71: 192.35 | H71: 193.1 | I71: 3981871 | J71: 774513959.2 | K71: 2018-10-30 | L71: 34031 | M71: INE079A01024
A72: AMDIND | B72: EQ | C72: 20.45 | D72: 21.3 | E72: 20.1 | F72: 20.8 | G72: 20.35 | H72: 19.4 | I72: 17232 | J72: 359583.05 | K72: 2018-10-30 | L72: 76 | M72: INE005I01014
A73: AMJLAND | B73: EQ | C73: 21.3 | D73: 21.65 | E73: 21.25 | F73: 21.6 | G73: 21.6 | H73: 21.5 | I73: 10501 | J73: 225516.3 | K73: 2018-10-30 | L73: 69 | M73: INE606A01024
A74: AMRUTANJAN | B74: EQ | C74: 246.65 | D74: 293 | E74: 246.65 | F74: 268.25 | G74: 267.2 | H74: 244.45 | I74: 223517 | J74: 62262619.15 | K74: 2018-10-30 | L74: 10028 | M74: INE098F01031
A75: ANANTRAJ | B75: EQ | C75: 35.5 | D75: 35.7 | E75: 34.4 | F75: 34.95 | G75: 35 | H75: 35.3 | I75: 350143 | J75: 12271685.25 | K75: 2018-10-30 | L75: 2427 | M75: INE242C01024
A76: ANDHRABANK | B76: EQ | C76: 26.6 | D76: 28.35 | E76: 26.45 | F76: 27.8 | G76: 27.75 | H76: 26.55 | I76: 3781560 | J76: 104676793.2 | K76: 2018-10-30 | L76: 8640 | M76: INE434A01013
A77: ANDHRACEMT | B77: EQ | C77: 6.1 | D77: 6.35 | E77: 6.1 | F77: 6.25 | G77: 6.2 | H77: 6.05 | I77: 240438 | J77: 1506069.55 | K77: 2018-10-30 | L77: 158 | M77: INE666E01012
A78: ANDHRSUGAR | B78: EQ | C78: 344.65 | D78: 371.8 | E78: 339.05 | F78: 361.95 | G78: 362 | H78: 340.05 | I78: 144472 | J78: 52169043.65 | K78: 2018-10-30 | L78: 4299 | M78: INE715B01013
A79: ANGIND | B79: BE | C79: 1.45 | D79: 1.45 | E79: 1.45 | F79: 1.45 | G79: 1.45 | H79: 1.5 | I79: 3654 | J79: 5298.3 | K79: 2018-10-30 | L79: 19 | M79: INE017D01010
A80: ANIKINDS | B80: EQ | C80: 25.2 | D80: 27.8 | E80: 25.2 | F80: 26.8 | G80: 27 | H80: 26.05 | I80: 1361 | J80: 36019 | K80: 2018-10-30 | L80: 28 | M80: INE087B01017
A81: ANKITMETAL | B81: BE | C81: 0.45 | D81: 0.5 | E81: 0.45 | F81: 0.5 | G81: 0.5 | H81: 0.5 | I81: 5000 | J81: 2260 | K81: 2018-10-30 | L81: 5 | M81: INE106I01010
A82: ANSALAPI | B82: EQ | C82: 10.8 | D82: 11.25 | E82: 10.65 | F82: 10.75 | G82: 10.75 | H82: 10.95 | I82: 72956 | J82: 795222 | K82: 2018-10-30 | L82: 127 | M82: INE436A01026
A83: ANSALHSG | B83: EQ | C83: 10.5 | D83: 10.5 | E83: 10.05 | F83: 10.25 | G83: 10.25 | H83: 10.3 | I83: 4297 | J83: 43967.65 | K83: 2018-10-30 | L83: 70 | M83: INE880B01015
A84: ANTGRAPHIC | B84: BE | C84: 0.5 | D84: 0.55 | E84: 0.5 | F84: 0.55 | G84: 0.55 | H84: 0.55 | I84: 6311 | J84: 3159.35 | K84: 2018-10-30 | L84: 9 | M84: INE414B01021
A85: APARINDS | B85: EQ | C85: 550.45 | D85: 561.45 | E85: 550.45 | F85: 560.8 | G85: 557.1 | H85: 555 | I85: 6963 | J85: 3883566.65 | K85: 2018-10-30 | L85: 330 | M85: INE372A01015
A86: APCL | B86: EQ | C86: 115 | D86: 120.2 | E86: 112 | F86: 118.75 | G86: 119.95 | H86: 118.05 | I86: 1229 | J86: 146245.2 | K86: 2018-10-30 | L86: 108 | M86: INE071F01012
A87: APCOTEXIND | B87: EQ | C87: 520.05 | D87: 542.45 | E87: 520 | F87: 534.15 | G87: 540 | H87: 522.95 | I87: 8371 | J87: 4444667.55 | K87: 2018-10-30 | L87: 448 | M87: INE116A01024
A88: APEX | B88: EQ | C88: 378 | D88: 392.8 | E88: 372 | F88: 388.45 | G88: 387 | H88: 357.1 | I88: 422216 | J88: 163491546.4 | K88: 2018-10-30 | L88: 8856 | M88: INE346W01013
A89: APLAPOLLO | B89: EQ | C89: 1219.05 | D89: 1224.9 | E89: 1198 | F89: 1208.8 | G89: 1210 | H89: 1216.95 | I89: 27775 | J89: 33546039.85 | K89: 2018-10-30 | L89: 2220 | M89: INE702C01019
A90: APLLTD | B90: EQ | C90: 580 | D90: 614 | E90: 580 | F90: 593.55 | G90: 599.4 | H90: 580.35 | I90: 89020 | J90: 53520331.05 | K90: 2018-10-30 | L90: 5905 | M90: INE901L01018
A91: APOLLO | B91: EQ | C91: 119.35 | D91: 123.85 | E91: 118.45 | F91: 121.75 | G91: 122 | H91: 120 | I91: 22010 | J91: 2690749.9 | K91: 2018-10-30 | L91: 729 | M91: INE713T01010
A92: APOLLOHOSP | B92: EQ | C92: 1134.15 | D92: 1176 | E92: 1130 | F92: 1166.6 | G92: 1164 | H92: 1142.85 | I92: 617733 | J92: 711713761 | K92: 2018-10-30 | L92: 31628 | M92: INE437A01024
A93: APOLLOTYRE | B93: EQ | C93: 215.2 | D93: 219.7 | E93: 213.6 | F93: 215.05 | G93: 215 | H93: 214.95 | I93: 2383136 | J93: 516311575.8 | K93: 2018-10-30 | L93: 21585 | M93: INE438A01022
A94: APOLSINHOT | B94: EQ | C94: 610 | D94: 630 | E94: 608 | F94: 615.45 | G94: 615.3 | H94: 618.7 | I94: 402 | J94: 247234.1 | K94: 2018-10-30 | L94: 34 | M94: INE451F01024
A95: APTECHT | B95: EQ | C95: 149.2 | D95: 155.6 | E95: 147.45 | F95: 150.25 | G95: 149.85 | H95: 149.4 | I95: 319504 | J95: 48563424.85 | K95: 2018-10-30 | L95: 5859 | M95: INE266F01018
A96: ARCHIDPLY | B96: EQ | C96: 43.2 | D96: 43.2 | E96: 40.75 | F96: 41.2 | G96: 41.1 | H96: 43.45 | I96: 31696 | J96: 1327800.1 | K96: 2018-10-30 | L96: 349 | M96: INE877I01016
A97: ARCHIES | B97: EQ | C97: 24.95 | D97: 25.9 | E97: 24.55 | F97: 25.4 | G97: 25.25 | H97: 24.95 | I97: 35400 | J97: 904085.55 | K97: 2018-10-30 | L97: 229 | M97: INE731A01020
A98: ARCOTECH | B98: BE | C98: 5.65 | D98: 5.75 | E98: 5.3 | F98: 5.75 | G98: 5.75 | H98: 5.5 | I98: 191916 | J98: 1096671.7 | K98: 2018-10-30 | L98: 223 | M98: INE574I01035
A99: ARIES | B99: EQ | C99: 96.15 | D99: 97 | E99: 94.95 | F99: 95.75 | G99: 95.5 | H99: 94.6 | I99: 19787 | J99: 1899128.85 | K99: 2018-10-30 | L99: 269 | M99: INE298I01015
A100: ARIHANT | B100: EQ | C100: 28.1 | D100: 28.45 | E100: 22.45 | F100: 25 | G100: 24.8 | H100: 25.3 | I100: 2119 | J100: 54511.95 | K100: 2018-10-30 | L100: 43 | M100: INE413D01011
A101: ARIHANTSUP | B101: EQ | C101: 53.4 | D101: 54.95 | E101: 52.15 | F101: 52.85 | G101: 53 | H101: 53.45 | I101: 49974 | J101: 2630928.35 | K101: 2018-10-30 | L101: 218 | M101: INE643K01018
A102: ARMANFIN | B102: EQ | C102: 314.9 | D102: 328 | E102: 301 | F102: 325.05 | G102: 328 | H102: 302.15 | I102: 1579 | J102: 499929.2 | K102: 2018-10-30 | L102: 58 | M102: INE109C01017
A103: AROGRANITE | B103: EQ | C103: 53.7 | D103: 53.7 | E103: 51.5 | F103: 52 | G103: 52.5 | H103: 51.6 | I103: 6487 | J103: 338245.7 | K103: 2018-10-30 | L103: 100 | M103: INE210C01013
A104: ARROWGREEN | B104: EQ | C104: 113.4 | D104: 113.4 | E104: 102.6 | F104: 106.65 | G104: 107.05 | H104: 108 | I104: 19342 | J104: 2081602.45 | K104: 2018-10-30 | L104: 328 | M104: INE570D01018
A105: ARROWTEX | B105: EQ | C105: 25.75 | D105: 25.75 | E105: 24.05 | F105: 24.85 | G105: 24.95 | H105: 24.1 | I105: 6200 | J105: 151240.85 | K105: 2018-10-30 | L105: 50 | M105: INE933J01015
A106: ARSHIYA | B106: EQ | C106: 34.7 | D106: 36.9 | E106: 33.35 | F106: 34 | G106: 34 | H106: 34.65 | I106: 177343 | J106: 6138766.9 | K106: 2018-10-30 | L106: 499 | M106: INE968D01022
A107: ARSSINFRA | B107: EQ | C107: 23.2 | D107: 23.95 | E107: 22.7 | F107: 23 | G107: 23 | H107: 23.55 | I107: 5056 | J107: 116760.2 | K107: 2018-10-30 | L107: 44 | M107: INE267I01010
A108: ARVIND | B108: EQ | C108: 334.25 | D108: 347.9 | E108: 330.6 | F108: 345.85 | G108: 347.5 | H108: 334.2 | I108: 2354790 | J108: 803181940.8 | K108: 2018-10-30 | L108: 32873 | M108: INE034A01011
A109: ARVSMART | B109: EQ | C109: 111.95 | D109: 117.6 | E109: 110.05 | F109: 113.2 | G109: 113 | H109: 110.3 | I109: 34656 | J109: 3987639.55 | K109: 2018-10-30 | L109: 560 | M109: INE034S01021
A110: ASAHIINDIA | B110: EQ | C110: 290.95 | D110: 290.95 | E110: 276.9 | F110: 285.85 | G110: 287 | H110: 288.85 | I110: 89286 | J110: 25272738 | K110: 2018-10-30 | L110: 1749 | M110: INE439A01020
A111: ASAHISONG | B111: EQ | C111: 246.25 | D111: 255 | E111: 241 | F111: 247.35 | G111: 248 | H111: 241.45 | I111: 1443 | J111: 356877.5 | K111: 2018-10-30 | L111: 174 | M111: INE228I01012
A112: ASAL | B112: EQ | C112: 55.7 | D112: 57.75 | E112: 50.65 | F112: 52.45 | G112: 52.55 | H112: 50.4 | I112: 230319 | J112: 12541002.4 | K112: 2018-10-30 | L112: 3007 | M112: INE900C01027
A113: ASHAPURMIN | B113: EQ | C113: 27.9 | D113: 28.9 | E113: 27.3 | F113: 28.4 | G113: 28.2 | H113: 27.65 | I113: 39133 | J113: 1098545.35 | K113: 2018-10-30 | L113: 461 | M113: INE348A01023
A114: ASHIANA | B114: EQ | C114: 121.3 | D114: 128 | E114: 121.3 | F114: 125.5 | G114: 125 | H114: 121.1 | I114: 63590 | J114: 7946188.75 | K114: 2018-10-30 | L114: 1274 | M114: INE365D01021
A115: ASHIMASYN | B115: EQ | C115: 15.3 | D115: 15.4 | E115: 14.6 | F115: 14.7 | G115: 14.6 | H115: 15.15 | I115: 31075 | J115: 465775.9 | K115: 2018-10-30 | L115: 296 | M115: INE440A01010
A116: ASHOKA | B116: EQ | C116: 107 | D116: 112.5 | E116: 106.5 | F116: 110.7 | G116: 110 | H116: 107.9 | I116: 100230 | J116: 10995042.2 | K116: 2018-10-30 | L116: 2130 | M116: INE442H01029
A117: ASHOKLEY | B117: EQ | C117: 114.5 | D117: 116.75 | E117: 114.2 | F117: 115 | G117: 115 | H117: 115.25 | I117: 13868396 | J117: 1602170768 | K117: 2018-10-30 | L117: 58657 | M117: INE208A01029
A118: ASIANHOTNR | B118: EQ | C118: 156.8 | D118: 163.95 | E118: 146.35 | F118: 149.8 | G118: 149.85 | H118: 154.05 | I118: 8956 | J118: 1381607.65 | K118: 2018-10-30 | L118: 91 | M118: INE363A01022
A119: ASIANPAINT | B119: EQ | C119: 1194.8 | D119: 1208 | E119: 1175.55 | F119: 1196.3 | G119: 1197.5 | H119: 1196.05 | I119: 1075337 | J119: 1289002088 | K119: 2018-10-30 | L119: 55316 | M119: INE021A01026
A120: ASIANTILES | B120: EQ | C120: 176.9 | D120: 182 | E120: 174.75 | F120: 178.45 | G120: 178 | H120: 176.9 | I120: 59360 | J120: 10661657.95 | K120: 2018-10-30 | L120: 1730 | M120: INE022I01019
A121: ASPINWALL | B121: EQ | C121: 181 | D121: 190.2 | E121: 181 | F121: 181.05 | G121: 181 | H121: 185 | I121: 1879 | J121: 349177.1 | K121: 2018-10-30 | L121: 38 | M121: INE991I01015
A122: ASSAMCO | B122: BE | C122: 2.35 | D122: 2.35 | E122: 2.35 | F122: 2.35 | G122: 2.35 | H122: 2.45 | I122: 18718 | J122: 43987.3 | K122: 2018-10-30 | L122: 33 | M122: INE442A01024
A123: ASTEC | B123: EQ | C123: 536.05 | D123: 547 | E123: 528.6 | F123: 531.55 | G123: 530.65 | H123: 535.8 | I123: 14258 | J123: 7638597.9 | K123: 2018-10-30 | L123: 922 | M123: INE563J01010
A124: ASTERDM | B124: EQ | C124: 159.05 | D124: 161.35 | E124: 155.1 | F124: 156.95 | G124: 156.15 | H124: 159.6 | I124: 48448 | J124: 7693373.1 | K124: 2018-10-30 | L124: 3713 | M124: INE914M01019
A125: ASTRAL | B125: EQ | C125: 874.35 | D125: 917.95 | E125: 862.25 | F125: 909.2 | G125: 901 | H125: 869.95 | I125: 119956 | J125: 105218036.8 | K125: 2018-10-30 | L125: 7778 | M125: INE006I01046
A126: ASTRAMICRO | B126: EQ | C126: 79.95 | D126: 80.2 | E126: 76.7 | F126: 78.2 | G126: 77.7 | H126: 79.35 | I126: 622507 | J126: 48756316.2 | K126: 2018-10-30 | L126: 5367 | M126: INE386C01029
A127: ASTRAZEN | B127: EQ | C127: 1690.45 | D127: 1700 | E127: 1672.85 | F127: 1684.4 | G127: 1688.75 | H127: 1698.9 | I127: 22286 | J127: 37568223.55 | K127: 2018-10-30 | L127: 1317 | M127: INE203A01020
A128: ASTRON | B128: EQ | C128: 113.15 | D128: 114 | E128: 111.8 | F128: 112.6 | G128: 111.8 | H128: 113.15 | I128: 51422 | J128: 5821081.3 | K128: 2018-10-30 | L128: 708 | M128: INE646X01014
A129: ATFL | B129: EQ | C129: 533 | D129: 533 | E129: 501.25 | F129: 504.05 | G129: 503.1 | H129: 529.2 | I129: 14440 | J129: 7406520.15 | K129: 2018-10-30 | L129: 896 | M129: INE209A01019
A130: ATLANTA | B130: EQ | C130: 29.1 | D130: 29.1 | E130: 27.6 | F130: 27.85 | G130: 27.8 | H130: 29.05 | I130: 38598 | J130: 1072432.95 | K130: 2018-10-30 | L130: 342 | M130: INE285H01022
A131: ATNINTER | B131: BE | C131: 0.3 | D131: 0.3 | E131: 0.25 | F131: 0.3 | G131: 0.3 | H131: 0.25 | I131: 82351 | J131: 24680.25 | K131: 2018-10-30 | L131: 50 | M131: INE803A01027
A132: ATUL | B132: EQ | C132: 3309 | D132: 3309 | E132: 3221 | F132: 3260.2 | G132: 3280 | H132: 3284.6 | I132: 10664 | J132: 34794236.5 | K132: 2018-10-30 | L132: 1419 | M132: INE100A01010
A133: ATULAUTO | B133: EQ | C133: 331.05 | D133: 336.55 | E133: 327.95 | F133: 331.1 | G133: 331.15 | H133: 331.05 | I133: 6508 | J133: 2159429.85 | K133: 2018-10-30 | L133: 458 | M133: INE951D01028
A134: AUBANK | B134: EQ | C134: 524.3 | D134: 549.95 | E134: 524 | F134: 546.1 | G134: 544.75 | H134: 528.7 | I134: 409842 | J134: 221359823.6 | K134: 2018-10-30 | L134: 20025 | M134: INE949L01017
A135: AURIONPRO | B135: EQ | C135: 154.85 | D135: 154.9 | E135: 151.05 | F135: 151.8 | G135: 151.75 | H135: 153.3 | I135: 9542 | J135: 1455544.4 | K135: 2018-10-30 | L135: 180 | M135: INE132H01018
A136: AUROPHARMA | B136: EQ | C136: 771.15 | D136: 776.5 | E136: 760.7 | F136: 770.5 | G136: 771.95 | H136: 773.05 | I136: 1669833 | J136: 1282555187 | K136: 2018-10-30 | L136: 55523 | M136: INE406A01037
A137: AUSOMENT | B137: EQ | C137: 50.55 | D137: 52.35 | E137: 48.5 | F137: 49.05 | G137: 48.5 | H137: 51.55 | I137: 11227 | J137: 557947.25 | K137: 2018-10-30 | L137: 269 | M137: INE218C01016
A138: AUTOAXLES | B138: EQ | C138: 1076.9 | D138: 1125 | E138: 1071 | F138: 1109.75 | G138: 1118 | H138: 1076.9 | I138: 19540 | J138: 21383489.45 | K138: 2018-10-30 | L138: 2796 | M138: INE449A01011
A139: AUTOIND | B139: EQ | C139: 57.85 | D139: 58.8 | E139: 57.4 | F139: 57.75 | G139: 57.45 | H139: 57.35 | I139: 10508 | J139: 610616.3 | K139: 2018-10-30 | L139: 143 | M139: INE718H01014
A140: AUTOLITIND | B140: EQ | C140: 40.2 | D140: 42.65 | E140: 38.05 | F140: 41.75 | G140: 41.5 | H140: 40.25 | I140: 6875 | J140: 283639.75 | K140: 2018-10-30 | L140: 175 | M140: INE448A01013
A141: AVADHSUGAR | B141: EQ | C141: 508 | D141: 517.45 | E141: 486.4 | F141: 494.25 | G141: 492 | H141: 497.2 | I141: 70046 | J141: 35439446.8 | K141: 2018-10-30 | L141: 2904 | M141: INE349W01017
A142: AVANTIFEED | B142: EQ | C142: 392.9 | D142: 405.2 | E142: 391.25 | F142: 397.45 | G142: 395.9 | H142: 390.8 | I142: 390803 | J142: 156332412.6 | K142: 2018-10-30 | L142: 12270 | M142: INE871C01038
A143: AVTNPL | B143: EQ | C143: 26.05 | D143: 27.2 | E143: 26 | F143: 26.85 | G143: 26.95 | H143: 26.5 | I143: 15606 | J143: 419312.75 | K143: 2018-10-30 | L143: 116 | M143: INE488D01021
A144: AXISBANK | B144: EQ | C144: 564.85 | D144: 571.75 | E144: 559 | F144: 562.7 | G144: 564.4 | H144: 566.7 | I144: 8522604 | J144: 4811497766 | K144: 2018-10-30 | L144: 121646 | M144: INE238A01034
A145: AXISCADES | B145: EQ | C145: 67.4 | D145: 73.4 | E145: 66.75 | F145: 72.75 | G145: 72.6 | H145: 67.35 | I145: 103358 | J145: 7337310 | K145: 2018-10-30 | L145: 1518 | M145: INE555B01013
A146: AXISGOLD | B146: EQ | C146: 2844 | D146: 2844 | E146: 2796 | F146: 2823 | G146: 2822.9 | H146: 2800.1 | I146: 63 | J146: 177405.65 | K146: 2018-10-30 | L146: 14 | M146: INF846K01347
A147: AXISNIFTY | B147: EQ | C147: 1048 | D147: 1050.48 | E147: 1037.08 | F147: 1042.55 | G147: 1042.55 | H147: 1072 | I147: 87 | J147: 90805.37 | K147: 2018-10-30 | L147: 14 | M147: INF846K01ZL0
A148: AYMSYNTEX | B148: EQ | C148: 42.75 | D148: 42.75 | E148: 40.6 | F148: 41 | G148: 41 | H148: 42 | I148: 19455 | J148: 801116.1 | K148: 2018-10-30 | L148: 100 | M148: INE193B01039
A149: BAFNAPHARM | B149: EQ | C149: 13.9 | D149: 14.45 | E149: 13.65 | F149: 14.25 | G149: 14.25 | H149: 13.85 | I149: 3146 | J149: 44897.35 | K149: 2018-10-30 | L149: 38 | M149: INE878I01014
A150: BAGFILMS | B150: EQ | C150: 4.65 | D150: 4.65 | E150: 4.5 | F150: 4.55 | G150: 4.55 | H150: 4.6 | I150: 50085 | J150: 228660.45 | K150: 2018-10-30 | L150: 110 | M150: INE116D01028
A151: BAJAJ-AUTO | B151: EQ | C151: 2554 | D151: 2583 | E151: 2532.9 | F151: 2556.25 | G151: 2546.25 | H151: 2549.1 | I151: 270336 | J151: 692557774.1 | K151: 2018-10-30 | L151: 26944 | M151: INE917I01010
A152: BAJAJCORP | B152: EQ | C152: 358.95 | D152: 360.1 | E152: 350 | F152: 354 | G152: 350.8 | H152: 359.6 | I152: 69615 | J152: 24678795.15 | K152: 2018-10-30 | L152: 951 | M152: INE933K01021
A153: BAJAJELEC | B153: EQ | C153: 470 | D153: 476.95 | E153: 463.55 | F153: 472.5 | G153: 474 | H153: 462.75 | I153: 127139 | J153: 59983427.3 | K153: 2018-10-30 | L153: 3795 | M153: INE193E01025
A154: BAJAJFINSV | B154: EQ | C154: 5420 | D154: 5455 | E154: 5322.55 | F154: 5391.15 | G154: 5378 | H154: 5409.85 | I154: 291037 | J154: 1569923922 | K154: 2018-10-30 | L154: 21953 | M154: INE918I01018
A155: BAJAJHIND | B155: EQ | C155: 10.6 | D155: 10.85 | E155: 10.35 | F155: 10.45 | G155: 10.5 | H155: 10.5 | I155: 3470595 | J155: 36937153.45 | K155: 2018-10-30 | L155: 5031 | M155: INE306A01021
A156: BAJAJHLDNG | B156: EQ | C156: 2675.15 | D156: 2749 | E156: 2660 | F156: 2734.4 | G156: 2740 | H156: 2698.4 | I156: 6168 | J156: 16761684.1 | K156: 2018-10-30 | L156: 1032 | M156: INE118A01012
A157: BAJFINANCE | B157: EQ | C157: 2395 | D157: 2423.9 | E157: 2350.35 | F157: 2356.35 | G157: 2356.35 | H157: 2380.45 | I157: 2202230 | J157: 5257910982 | K157: 2018-10-30 | L157: 101049 | M157: INE296A01024
A158: BALAJITELE | B158: EQ | C158: 96.25 | D158: 99.65 | E158: 95.75 | F158: 96.4 | G158: 96.1 | H158: 96.25 | I158: 26353 | J158: 2557895.9 | K158: 2018-10-30 | L158: 423 | M158: INE794B01026
A159: BALAMINES | B159: EQ | C159: 453.85 | D159: 461.85 | E159: 442.2 | F159: 452.6 | G159: 455 | H159: 453.85 | I159: 12161 | J159: 5535602.55 | K159: 2018-10-30 | L159: 718 | M159: INE050E01027
A160: BALKRISHNA | B160: EQ | C160: 52.95 | D160: 54 | E160: 50.6 | F160: 52.75 | G160: 53 | H160: 51.25 | I160: 31488 | J160: 1637927.65 | K160: 2018-10-30 | L160: 479 | M160: INE875R01011
A161: BALKRISIND | B161: EQ | C161: 1064 | D161: 1114.9 | E161: 1060.85 | F161: 1069.25 | G161: 1068.1 | H161: 1065.55 | I161: 920161 | J161: 1003131846 | K161: 2018-10-30 | L161: 31703 | M161: INE787D01026
A162: BALLARPUR | B162: EQ | C162: 6.5 | D162: 6.6 | E162: 6.15 | F162: 6.2 | G162: 6.25 | H162: 6.5 | I162: 564244 | J162: 3607669.1 | K162: 2018-10-30 | L162: 595 | M162: INE294A01037
A163: BALMLAWRIE | B163: EQ | C163: 190.85 | D163: 200.2 | E163: 190.05 | F163: 196.3 | G163: 197.75 | H163: 189.9 | I163: 72658 | J163: 14091956.4 | K163: 2018-10-30 | L163: 1576 | M163: INE164A01016
A164: BALPHARMA | B164: EQ | C164: 80.75 | D164: 83 | E164: 80.1 | F164: 81.05 | G164: 81 | H164: 81.3 | I164: 13819 | J164: 1126592.35 | K164: 2018-10-30 | L164: 301 | M164: INE083D01012
A165: BALRAMCHIN | B165: EQ | C165: 108.8 | D165: 113.35 | E165: 108.2 | F165: 109.95 | G165: 110.1 | H165: 107.9 | I165: 6553926 | J165: 724844251.4 | K165: 2018-10-30 | L165: 46796 | M165: INE119A01028
A166: BANARBEADS | B166: EQ | C166: 49.35 | D166: 49.35 | E166: 49 | F166: 49.15 | G166: 49.05 | H166: 49.1 | I166: 452 | J166: 22225.5 | K166: 2018-10-30 | L166: 6 | M166: INE655B01011
A167: BANARISUG | B167: EQ | C167: 1800 | D167: 1800 | E167: 1754.25 | F167: 1764.1 | G167: 1762 | H167: 1792.95 | I167: 367 | J167: 654051.75 | K167: 2018-10-30 | L167: 104 | M167: INE459A01010
A168: BANCOINDIA | B168: EQ | C168: 179 | D168: 180 | E168: 171.8 | F168: 172.6 | G168: 172.2 | H168: 178.45 | I168: 109476 | J168: 19301317.15 | K168: 2018-10-30 | L168: 1728 | M168: INE213C01025
A169: BANDHANBNK | B169: EQ | C169: 399.8 | D169: 399.8 | E169: 383 | F169: 384.6 | G169: 383.5 | H169: 398.7 | I169: 1355884 | J169: 528336557.3 | K169: 2018-10-30 | L169: 47248 | M169: INE545U01014
A170: BANG | B170: EQ | C170: 48.95 | D170: 49.65 | E170: 47.5 | F170: 47.9 | G170: 47.9 | H170: 47.8 | I170: 13805 | J170: 665594.25 | K170: 2018-10-30 | L170: 216 | M170: INE863I01016
A171: BANKBARODA | B171: EQ | C171: 107.7 | D171: 113.7 | E171: 105.85 | F171: 110 | G171: 111.2 | H171: 107.1 | I171: 51240583 | J171: 5649461934 | K171: 2018-10-30 | L171: 204670 | M171: INE028A01039
A172: BANKBEES | B172: EQ | C172: 2520 | D172: 2556.9 | E172: 2480 | F172: 2525.33 | G172: 2529.7 | H172: 2542.73 | I172: 1146 | J172: 2904249.5 | K172: 2018-10-30 | L172: 187 | M172: INF732E01078
A173: BANKINDIA | B173: EQ | C173: 80.75 | D173: 88 | E173: 80.25 | F173: 84.35 | G173: 84.7 | H173: 81.1 | I173: 13718542 | J173: 1170112955 | K173: 2018-10-30 | L173: 43886 | M173: INE084A01016
A174: BANSWRAS | B174: EQ | C174: 68.8 | D174: 69 | E174: 66.6 | F174: 67.8 | G174: 67.3 | H174: 66.55 | I174: 863 | J174: 58929.1 | K174: 2018-10-30 | L174: 27 | M174: INE629D01012
A175: BARTRONICS | B175: EQ | C175: 7.3 | D175: 7.3 | E175: 7 | F175: 7.05 | G175: 7.05 | H175: 7.05 | I175: 17828 | J175: 127156.65 | K175: 2018-10-30 | L175: 54 | M175: INE855F01034
A176: BASF | B176: EQ | C176: 1655 | D176: 1725 | E176: 1590.1 | F176: 1656 | G176: 1717.6 | H176: 1642.75 | I176: 51782 | J176: 85965168.95 | K176: 2018-10-30 | L176: 4642 | M176: INE373A01013
A177: BASML | B177: EQ | C177: 190.1 | D177: 205.5 | E177: 190.1 | F177: 197 | G177: 196 | H177: 192.05 | I177: 1660 | J177: 333458.9 | K177: 2018-10-30 | L177: 52 | M177: INE186H01014
A178: BATAINDIA | B178: EQ | C178: 935.7 | D178: 954.55 | E178: 921.85 | F178: 939.55 | G178: 940 | H178: 935.4 | I178: 917806 | J178: 862476918.4 | K178: 2018-10-30 | L178: 22264 | M178: INE176A01028
A179: BAYERCROP | B179: EQ | C179: 3811.75 | D179: 3935.1 | E179: 3775 | F179: 3899.15 | G179: 3883 | H179: 3811.75 | I179: 10479 | J179: 40775903.95 | K179: 2018-10-30 | L179: 3061 | M179: INE462A01022
A180: BBL | B180: EQ | C180: 1124.05 | D180: 1160.55 | E180: 1122.95 | F180: 1152.6 | G180: 1156.8 | H180: 1123.35 | I180: 4820 | J180: 5532157.1 | K180: 2018-10-30 | L180: 675 | M180: INE464A01028
A181: BBTC | B181: EQ | C181: 1208 | D181: 1223.55 | E181: 1185.1 | F181: 1204.05 | G181: 1202.9 | H181: 1195.25 | I181: 145393 | J181: 175280201.6 | K181: 2018-10-30 | L181: 13161 | M181: INE050A01025
A182: BCG | B182: EQ | C182: 3.7 | D182: 3.85 | E182: 3.55 | F182: 3.8 | G182: 3.85 | H182: 3.6 | I182: 317224 | J182: 1172600.75 | K182: 2018-10-30 | L182: 288 | M182: INE425B01027
A183: BDL | B183: EQ | C183: 279.95 | D183: 282.7 | E183: 278.45 | F183: 281.45 | G183: 280.15 | H183: 279.9 | I183: 10515 | J183: 2950343.6 | K183: 2018-10-30 | L183: 749 | M183: INE171Z01018
A184: BEARDSELL | B184: EQ | C184: 24.7 | D184: 24.9 | E184: 23.8 | F184: 24.9 | G184: 24.9 | H184: 23.25 | I184: 4232 | J184: 103143.25 | K184: 2018-10-30 | L184: 27 | M184: INE520H01022
A185: BEDMUTHA | B185: BE | C185: 19 | D185: 19.8 | E185: 19 | F185: 19.2 | G185: 19.15 | H185: 19.65 | I185: 5247 | J185: 101521.8 | K185: 2018-10-30 | L185: 32 | M185: INE844K01012
A186: BEL | B186: EQ | C186: 86.4 | D186: 91 | E186: 86.4 | F186: 89.85 | G186: 90.35 | H186: 86.4 | I186: 17845565 | J186: 1596825301 | K186: 2018-10-30 | L186: 69748 | M186: INE263A01024
A187: BEML | B187: EQ | C187: 557.15 | D187: 594.55 | E187: 555.5 | F187: 585.65 | G187: 585 | H187: 561.15 | I187: 1101102 | J187: 640014856.6 | K187: 2018-10-30 | L187: 28252 | M187: INE258A01016
A188: BEPL | B188: EQ | C188: 94.7 | D188: 94.9 | E188: 91 | F188: 91.85 | G188: 91.9 | H188: 93.9 | I188: 320237 | J188: 29573377.35 | K188: 2018-10-30 | L188: 2964 | M188: INE922A01025
A189: BERGEPAINT | B189: EQ | C189: 286.4 | D189: 287.75 | E189: 283.5 | F189: 285 | G189: 285.5 | H189: 285.4 | I189: 383406 | J189: 109434302.6 | K189: 2018-10-30 | L189: 6450 | M189: INE463A01038
A190: BFINVEST | B190: EQ | C190: 232 | D190: 234.8 | E190: 224.85 | F190: 226.75 | G190: 226.25 | H190: 231.55 | I190: 98214 | J190: 22617338.05 | K190: 2018-10-30 | L190: 3065 | M190: INE878K01010
A191: BFUTILITIE | B191: EQ | C191: 207 | D191: 208.5 | E191: 199.3 | F191: 200.3 | G191: 200 | H191: 206 | I191: 241889 | J191: 49228801.75 | K191: 2018-10-30 | L191: 6449 | M191: INE243D01012
A192: BGLOBAL | B192: BE | C192: 2.55 | D192: 2.55 | E192: 2.4 | F192: 2.4 | G192: 2.4 | H192: 2.45 | I192: 11853 | J192: 29417.9 | K192: 2018-10-30 | L192: 17 | M192: INE224M01013
A193: BGRENERGY | B193: EQ | C193: 54.25 | D193: 56.7 | E193: 54 | F193: 55.8 | G193: 56 | H193: 54.15 | I193: 84750 | J193: 4725710.35 | K193: 2018-10-30 | L193: 1114 | M193: INE661I01014
A194: BHAGERIA | B194: EQ | C194: 304.4 | D194: 314 | E194: 298 | F194: 301.7 | G194: 303.9 | H194: 298.7 | I194: 37722 | J194: 11526678.8 | K194: 2018-10-30 | L194: 951 | M194: INE354C01027
A195: BHAGYANGR | B195: EQ | C195: 30.6 | D195: 31.6 | E195: 30 | F195: 31.15 | G195: 31.2 | H195: 30.5 | I195: 8700 | J195: 269970.4 | K195: 2018-10-30 | L195: 94 | M195: INE458B01036
A196: BHAGYAPROP | B196: EQ | C196: 22.5 | D196: 25.4 | E196: 21.35 | F196: 24.5 | G196: 24.5 | H196: 23.7 | I196: 2910 | J196: 69018.05 | K196: 2018-10-30 | L196: 18 | M196: INE363W01018
A197: BHANDARI | B197: EQ | C197: 1.95 | D197: 2 | E197: 1.85 | F197: 2 | G197: 2 | H197: 1.95 | I197: 138934 | J197: 268455.55 | K197: 2018-10-30 | L197: 122 | M197: INE474E01029
A198: BHARATFIN | B198: EQ | C198: 857.4 | D198: 860.9 | E198: 830.55 | F198: 839.9 | G198: 832 | H198: 860.25 | I198: 757033 | J198: 640837571.4 | K198: 2018-10-30 | L198: 39528 | M198: INE180K01011
A199: BHARATFORG | B199: EQ | C199: 556 | D199: 574.2 | E199: 553.5 | F199: 569.5 | G199: 569.35 | H199: 556.9 | I199: 952329 | J199: 541638088.5 | K199: 2018-10-30 | L199: 36104 | M199: INE465A01025
A200: BHARATGEAR | B200: EQ | C200: 169.85 | D200: 185 | E200: 169.85 | F200: 180.35 | G200: 182.25 | H200: 168.05 | I200: 130628 | J200: 23443142.95 | K200: 2018-10-30 | L200: 3505 | M200: INE561C01019
... 1438 more rows
